Workbook

Sheet Outline
C4: Create Model with Single Debt Facility
C5: Add UDF with Single Facility
C6: Add ECA Debt, Shareholder Debt to Model
C7: Add UDF to Model
C8: Add VAT Debt to Model
C9: Add UDF with VAT

Sheet Exercise
A1: Timing | G1: Driver 1 | H1: Driver 2 | I1: Sum
B2: Period | E2: Period | J2: 1 | K2: 2 | L2: 3 | M2: 4 | N2: 5 | O2: 6 | P2: 7 | Q2: 8 | R2: 9 | S2: 10 | T2: 11 | U2: 12 | V2: 13 | W2: 14 | X2: 15 | Y2: 16 | Z2: 17 | AA2: 18 | AB2: 19 | AC2: 20 | AD2: 21 | AE2: 22 | AF2: 23 | AG2: 24 | AH2: 25 | AI2: 26 | AJ2: 27 | AK2: 28 | AL2: 29 | AM2: 30 | AN2: 31 | AO2: 32 | AP2: 33 | AQ2: 34 | AR2: 35 | AS2: 36 | AT2: 37 | AU2: 38 | AV2: 39 | AW2: 40 | AX2: 41 | AY2: 42 | AZ2: 43 | BA2: 44 | BB2: 45 | BC2: 46 | BD2: 47 | BE2: 48 | BF2: 49 | BG2: 50 | BH2: 51 | BI2: 52 | BJ2: 53 | BK2: 54 | BL2: 55 | BM2: 56 | BN2: 57 | BO2: 58 | BP2: 59 | BQ2: 60 | BR2: 61 | BS2: 62 | BT2: 63 | BU2: 64 | BV2: 65 | BW2: 66 | BX2: 67 | BY2: 68 | BZ2: 69 | CA2: 70 | CB2: 71 | CC2: 72 | CD2: 73 | CE2: 74 | CF2: 75 | CG2: 76 | CH2: 77 | CI2: 78 | CJ2: 79 | CK2: 80 | CL2: 81 | CM2: 82 | CN2: 83 | CO2: 84 | CP2: 85 | CQ2: 86 | CR2: 87 | CS2: 88 | CT2: 89 | CU2: 90 | CV2: 91 | CW2: 92 | CX2: 93 | CY2: 94 | CZ2: 95 | DA2: 96 | DB2: 97 | DC2: 98 | DD2: 99 | DE2: 100 | DF2: 101 | DG2: 102 | DH2: 103 | DI2: 104 | DJ2: 105 | DK2: 106 | DL2: 107 | DM2: 108 | DN2: 109 | DO2: 110 | DP2: 111 | DQ2: 112 | DR2: 113 | DS2: 114 | DT2: 115 | DU2: 116 | DV2: 117 | DW2: 118 | DX2: 119 | DY2: 120 | DZ2: 121 | EA2: 122 | EB2: 123 | EC2: 124 | ED2: 125 | EE2: 126 | EF2: 127 | EG2: 128 | EH2: 129 | EI2: 130 | EJ2: 131 | EK2: 132 | EL2: 133 | EM2: 134 | EN2: 135 | EO2: 136 | EP2: 137 | EQ2: 138 | ER2: 139 | ES2: 140 | ET2: 141 | EU2: 142 | EV2: 143 | EW2: 144 | EX2: 145 | EY2: 146 | EZ2: 147 | FA2: 148 | FB2: 149 | FC2: 150
B3: Pre-COD | E3: Flag | G3: =F10 -> 40 | I3: =SUM(J3:FC3) -> 40 | J3: =(J2<=$G$3)*1 -> 1 | K3: =(K2<=$G$3)*1 -> 1 | L3: 1 | M3: 1 | N3: 1 | O3: 1 | P3: 1 | Q3: 1 | R3: 1 | S3: 1 | T3: 1 | U3: 1 | V3: 1 | W3: 1 | X3: 1 | Y3: 1 | Z3: 1 | AA3: 1 | AB3: 1 | AC3: 1 | AD3: 1 | AE3: 1 | AF3: 1 | AG3: 1 | AH3: 1 | AI3: 1 | AJ3: 1 | AK3: 1 | AL3: 1 | AM3: 1 | AN3: 1 | AO3: 1 | AP3: 1 | AQ3: 1 | AR3: 1 | AS3: 1 | AT3: 1 | AU3: 1 | AV3: 1 | AW3: 1 | AX3: 0 | AY3: 0 | AZ3: 0 | BA3: 0 | BB3: 0 | BC3: 0 | BD3: 0 | BE3: 0 | BF3: 0 | BG3: 0 | BH3: 0 | BI3: 0 | BJ3: 0 | BK3: 0 | BL3: 0 | BM3: 0 | BN3: 0 | BO3: 0 | BP3: 0 | BQ3: 0 | BR3: 0 | BS3: 0 | BT3: 0 | BU3: 0 | BV3: 0 | BW3: =(BW2<=$G$3)*1 -> 0 | BX3: 0 | BY3: 0 | BZ3: 0 | CA3: 0 | CB3: 0 | CC3: 0 | CD3: 0 | CE3: 0 | CF3: 0 | CG3: 0 | CH3: 0 | CI3: 0 | CJ3: 0 | CK3: 0 | CL3: 0 | CM3: 0 | CN3: 0 | CO3: 0 | CP3: 0 | CQ3: 0 | CR3: 0 | CS3: 0 | CT3: 0 | CU3: 0 | CV3: 0 | CW3: 0 | CX3: 0 | CY3: 0 | CZ3: 0 | DA3: 0 | DB3: 0 | DC3: 0 | DD3: 0 | DE3: 0 | DF3: 0 | DG3: 0 | DH3: 0 | DI3: 0 | DJ3: 0 | DK3: 0 | DL3: 0 | DM3: 0 | DN3: 0 | DO3: 0 | DP3: 0 | DQ3: 0 | DR3: 0 | DS3: 0 | DT3: 0 | DU3: 0 | DV3: 0 | DW3: 0 | DX3: 0 | DY3: 0 | DZ3: 0 | EA3: 0 | EB3: 0 | EC3: 0 | ED3: 0 | EE3: 0 | EF3: 0 | EG3: 0 | EH3: 0 | EI3: =(EI2<=$G$3)*1 -> 0 | EJ3: 0 | EK3: 0 | EL3: 0 | EM3: 0 | EN3: 0 | EO3: 0 | EP3: 0 | EQ3: 0 | ER3: 0 | ES3: 0 | ET3: 0 | EU3: 0 | EV3: 0 | EW3: 0 | EX3: 0 | EY3: 0 | EZ3: 0 | FA3: 0 | FB3: 0 | FC3: 0
B4: Months in Period | E4: Months | G4: =F15 -> 1 | H4: =F16 -> 6 | J4: =IF(J3,$G$4,$H$4) -> 1 | K4: =IF(K3,$G$4,$H$4) -> 1 | L4: 1 | M4: 1 | N4: 1 | O4: 1 | P4: 1 | Q4: 1 | R4: 1 | S4: 1 | T4: 1 | U4: 1 | V4: 1 | W4: 1 | X4: 1 | Y4: 1 | Z4: 1 | AA4: 1 | AB4: 1 | AC4: 1 | AD4: 1 | AE4: 1 | AF4: 1 | AG4: 1 | AH4: 1 | AI4: 1 | AJ4: 1 | AK4: 1 | AL4: 1 | AM4: 1 | AN4: 1 | AO4: 1 | AP4: 1 | AQ4: 1 | AR4: 1 | AS4: 1 | AT4: 1 | AU4: 1 | AV4: 1 | AW4: 1 | AX4: 6 | AY4: 6 | AZ4: 6 | BA4: 6 | BB4: 6 | BC4: 6 | BD4: 6 | BE4: 6 | BF4: 6 | BG4: 6 | BH4: 6 | BI4: 6 | BJ4: 6 | BK4: 6 | BL4: 6 | BM4: 6 | BN4: 6 | BO4: 6 | BP4: 6 | BQ4: 6 | BR4: 6 | BS4: 6 | BT4: 6 | BU4: 6 | BV4: 6 | BW4: =IF(BW3,$G$4,$H$4) -> 6 | BX4: 6 | BY4: 6 | BZ4: 6 | CA4: 6 | CB4: 6 | CC4: 6 | CD4: 6 | CE4: 6 | CF4: 6 | CG4: 6 | CH4: 6 | CI4: 6 | CJ4: 6 | CK4: 6 | CL4: 6 | CM4: 6 | CN4: 6 | CO4: 6 | CP4: 6 | CQ4: 6 | CR4: 6 | CS4: 6 | CT4: 6 | CU4: 6 | CV4: 6 | CW4: 6 | CX4: 6 | CY4: 6 | CZ4: 6 | DA4: 6 | DB4: 6 | DC4: 6 | DD4: 6 | DE4: 6 | DF4: 6 | DG4: 6 | DH4: 6 | DI4: 6 | DJ4: 6 | DK4: 6 | DL4: 6 | DM4: 6 | DN4: 6 | DO4: 6 | DP4: 6 | DQ4: 6 | DR4: 6 | DS4: 6 | DT4: 6 | DU4: 6 | DV4: 6 | DW4: 6 | DX4: 6 | DY4: 6 | DZ4: 6 | EA4: 6 | EB4: 6 | EC4: 6 | ED4: 6 | EE4: 6 | EF4: 6 | EG4: 6 | EH4: 6 | EI4: =IF(EI3,$G$4,$H$4) -> 6 | EJ4: 6 | EK4: 6 | EL4: 6 | EM4: 6 | EN4: 6 | EO4: 6 | EP4: 6 | EQ4: 6 | ER4: 6 | ES4: 6 | ET4: 6 | EU4: 6 | EV4: 6 | EW4: 6 | EX4: 6 | EY4: 6 | EZ4: 6 | FA4: 6 | FB4: 6 | FC4: 6
B5: Start of Period | E5: Date | J5: =I6+1 -> 2020-05-01 | K5: =J6+1 -> 2020-06-01 | L5: 2020-07-01 | M5: 2020-08-01 | N5: 2020-09-01 | O5: 2020-10-01 | P5: 2020-11-01 | Q5: 2020-12-01 | R5: 2021-01-01 | S5: 2021-02-01 | T5: 2021-03-01 | U5: 2021-04-01 | V5: 2021-05-01 | W5: 2021-06-01 | X5: 2021-07-01 | Y5: 2021-08-01 | Z5: 2021-09-01 | AA5: 2021-10-01 | AB5: 2021-11-01 | AC5: 2021-12-01 | AD5: 2022-01-01 | AE5: 2022-02-01 | AF5: 2022-03-01 | AG5: 2022-04-01 | AH5: 2022-05-01 | AI5: 2022-06-01 | AJ5: 2022-07-01 | AK5: 2022-08-01 | AL5: 2022-09-01 | AM5: 2022-10-01 | AN5: 2022-11-01 | AO5: 2022-12-01 | AP5: 2023-01-01 | AQ5: 2023-02-01 | AR5: 2023-03-01 | AS5: 2023-04-01 | AT5: 2023-05-01 | AU5: 2023-06-01 | AV5: 2023-07-01 | AW5: 2023-08-01 | AX5: 2023-09-01 | AY5: 2024-03-01 | AZ5: 2024-09-01 | BA5: 2025-03-01 | BB5: 2025-09-01 | BC5: 2026-03-01 | BD5: 2026-09-01 | BE5: 2027-03-01 | BF5: 2027-09-01 | BG5: 2028-03-01 | BH5: 2028-09-01 | BI5: 2029-03-01 | BJ5: 2029-09-01 | BK5: 2030-03-01 | BL5: 2030-09-01 | BM5: 2031-03-01 | BN5: 2031-09-01 | BO5: 2032-03-01 | BP5: 2032-09-01 | BQ5: 2033-03-01 | BR5: 2033-09-01 | BS5: 2034-03-01 | BT5: 2034-09-01 | BU5: 2035-03-01 | BV5: 2035-09-01 | BW5: =BV6+1 -> 2036-03-01 | BX5: 2036-09-01 | BY5: 2037-03-01 | BZ5: 2037-09-01 | CA5: 2038-03-01 | CB5: 2038-09-01 | CC5: 2039-03-01 | CD5: 2039-09-01 | CE5: 2040-03-01 | CF5: 2040-09-01 | CG5: 2041-03-01 | CH5: 2041-09-01 | CI5: 2042-03-01 | CJ5: 2042-09-01 | CK5: 2043-03-01 | CL5: 2043-09-01 | CM5: 2044-03-01 | CN5: 2044-09-01 | CO5: 2045-03-01 | CP5: 2045-09-01 | CQ5: 2046-03-01 | CR5: 2046-09-01 | CS5: 2047-03-01 | CT5: 2047-09-01 | CU5: 2048-03-01 | CV5: 2048-09-01 | CW5: 2049-03-01 | CX5: 2049-09-01 | CY5: 2050-03-01 | CZ5: 2050-09-01 | DA5: 2051-03-01 | DB5: 2051-09-01 | DC5: 2052-03-01 | DD5: 2052-09-01 | DE5: 2053-03-01 | DF5: 2053-09-01 | DG5: 2054-03-01 | DH5: 2054-09-01 | DI5: 2055-03-01 | DJ5: 2055-09-01 | DK5: 2056-03-01 | DL5: 2056-09-01 | DM5: 2057-03-01 | DN5: 2057-09-01 | DO5: 2058-03-01 | DP5: 2058-09-01 | DQ5: 2059-03-01 | DR5: 2059-09-01 | DS5: 2060-03-01 | DT5: 2060-09-01 | DU5: 2061-03-01 | DV5: 2061-09-01 | DW5: 2062-03-01 | DX5: 2062-09-01 | DY5: 2063-03-01 | DZ5: 2063-09-01 | EA5: 2064-03-01 | EB5: 2064-09-01 | EC5: 2065-03-01 | ED5: 2065-09-01 | EE5: 2066-03-01 | EF5: 2066-09-01 | EG5: 2067-03-01 | EH5: 2067-09-01 | EI5: =EH6+1 -> 2068-03-01 | EJ5: 2068-09-01 | EK5: 2069-03-01 | EL5: 2069-09-01 | EM5: 2070-03-01 | EN5: 2070-09-01 | EO5: 2071-03-01 | EP5: 2071-09-01 | EQ5: 2072-03-01 | ER5: 2072-09-01 | ES5: 2073-03-01 | ET5: 2073-09-01 | EU5: 2074-03-01 | EV5: 2074-09-01 | EW5: 2075-03-01 | EX5: 2075-09-01 | EY5: 2076-03-01 | EZ5: 2076-09-01 | FA5: 2077-03-01 | FB5: 2077-09-01 | FC5: 2078-03-01
B6: End of Period | E6: Date | I6: =F9-1 -> 2020-04-30 | J6: =EDATE(J5,J4)-1 -> 2020-05-31 | K6: =EDATE(K5,K4)-1 -> 2020-06-30 | L6: 2020-07-31 | M6: 2020-08-31 | N6: 2020-09-30 | O6: 2020-10-31 | P6: 2020-11-30 | Q6: 2020-12-31 | R6: 2021-01-31 | S6: 2021-02-28 | T6: 2021-03-31 | U6: 2021-04-30 | V6: 2021-05-31 | W6: 2021-06-30 | X6: 2021-07-31 | Y6: 2021-08-31 | Z6: 2021-09-30 | AA6: 2021-10-31 | AB6: 2021-11-30 | AC6: 2021-12-31 | AD6: 2022-01-31 | AE6: 2022-02-28 | AF6: 2022-03-31 | AG6: 2022-04-30 | AH6: 2022-05-31 | AI6: 2022-06-30 | AJ6: 2022-07-31 | AK6: 2022-08-31 | AL6: 2022-09-30 | AM6: 2022-10-31 | AN6: 2022-11-30 | AO6: 2022-12-31 | AP6: 2023-01-31 | AQ6: 2023-02-28 | AR6: 2023-03-31 | AS6: 2023-04-30 | AT6: 2023-05-31 | AU6: 2023-06-30 | AV6: 2023-07-31 | AW6: 2023-08-31 | AX6: 2024-02-29 | AY6: 2024-08-31 | AZ6: 2025-02-28 | BA6: 2025-08-31 | BB6: 2026-02-28 | BC6: 2026-08-31 | BD6: 2027-02-28 | BE6: 2027-08-31 | BF6: 2028-02-29 | BG6: 2028-08-31 | BH6: 2029-02-28 | BI6: 2029-08-31 | BJ6: 2030-02-28 | BK6: 2030-08-31 | BL6: 2031-02-28 | BM6: 2031-08-31 | BN6: 2032-02-29 | BO6: 2032-08-31 | BP6: 2033-02-28 | BQ6: 2033-08-31 | BR6: 2034-02-28 | BS6: 2034-08-31 | BT6: 2035-02-28 | BU6: 2035-08-31 | BV6: 2036-02-29 | BW6: =EDATE(BW5,BW4)-1 -> 2036-08-31 | BX6: 2037-02-28 | BY6: 2037-08-31 | BZ6: 2038-02-28 | CA6: 2038-08-31 | CB6: 2039-02-28 | CC6: 2039-08-31 | CD6: 2040-02-29 | CE6: 2040-08-31 | CF6: 2041-02-28 | CG6: 2041-08-31 | CH6: 2042-02-28 | CI6: 2042-08-31 | CJ6: 2043-02-28 | CK6: 2043-08-31 | CL6: 2044-02-29 | CM6: 2044-08-31 | CN6: 2045-02-28 | CO6: 2045-08-31 | CP6: 2046-02-28 | CQ6: 2046-08-31 | CR6: 2047-02-28 | CS6: 2047-08-31 | CT6: 2048-02-29 | CU6: 2048-08-31 | CV6: 2049-02-28 | CW6: 2049-08-31 | CX6: 2050-02-28 | CY6: 2050-08-31 | CZ6: 2051-02-28 | DA6: 2051-08-31 | DB6: 2052-02-29 | DC6: 2052-08-31 | DD6: 2053-02-28 | DE6: 2053-08-31 | DF6: 2054-02-28 | DG6: 2054-08-31 | DH6: 2055-02-28 | DI6: 2055-08-31 | DJ6: 2056-02-29 | DK6: 2056-08-31 | DL6: 2057-02-28 | DM6: 2057-08-31 | DN6: 2058-02-28 | DO6: 2058-08-31 | DP6: 2059-02-28 | DQ6: 2059-08-31 | DR6: 2060-02-29 | DS6: 2060-08-31 | DT6: 2061-02-28 | DU6: 2061-08-31 | DV6: 2062-02-28 | DW6: 2062-08-31 | DX6: 2063-02-28 | DY6: 2063-08-31 | DZ6: 2064-02-29 | EA6: 2064-08-31 | EB6: 2065-02-28 | EC6: 2065-08-31 | ED6: 2066-02-28 | EE6: 2066-08-31 | EF6: 2067-02-28 | EG6: 2067-08-31 | EH6: 2068-02-29 | EI6: =EDATE(EI5,EI4)-1 -> 2068-08-31 | EJ6: 2069-02-28 | EK6: 2069-08-31 | EL6: 2070-02-28 | EM6: 2070-08-31 | EN6: 2071-02-28 | EO6: 2071-08-31 | EP6: 2072-02-29 | EQ6: 2072-08-31 | ER6: 2073-02-28 | ES6: 2073-08-31 | ET6: 2074-02-28 | EU6: 2074-08-31 | EV6: 2075-02-28 | EW6: 2075-08-31 | EX6: 2076-02-29 | EY6: 2076-08-31 | EZ6: 2077-02-28 | FA6: 2077-08-31 | FB6: 2078-02-28 | FC6: 2078-08-31
B7: Operating Period | E7: Flag | G7: =F11 -> 2023-09-01 | H7: =F13 -> 2063-09-01 | I7: =SUM(J7:FC7) -> 80 | J7: =AND(J5>=$G$7,J5<$H$7)*1 -> 0 | K7: =AND(K5>=$G$7,K5<$H$7)*1 -> 0 | L7: 0 | M7: 0 | N7: 0 | O7: 0 | P7: 0 | Q7: 0 | R7: 0 | S7: 0 | T7: 0 | U7: 0 | V7: 0 | W7: 0 | X7: 0 | Y7: 0 | Z7: 0 | AA7: 0 | AB7: 0 | AC7: 0 | AD7: 0 | AE7: 0 | AF7: 0 | AG7: 0 | AH7: 0 | AI7: 0 | AJ7: 0 | AK7: 0 | AL7: 0 | AM7: 0 | AN7: 0 | AO7: 0 | AP7: 0 | AQ7: 0 | AR7: 0 | AS7: 0 | AT7: 0 | AU7: 0 | AV7: 0 | AW7: 0 | AX7: 1 | AY7: 1 | AZ7: 1 | BA7: 1 | BB7: 1 | BC7: 1 | BD7: 1 | BE7: 1 | BF7: 1 | BG7: 1 | BH7: 1 | BI7: 1 | BJ7: 1 | BK7: 1 | BL7: 1 | BM7: 1 | BN7: 1 | BO7: 1 | BP7: 1 | BQ7: 1 | BR7: 1 | BS7: 1 | BT7: 1 | BU7: 1 | BV7: 1 | BW7: =AND(BW5>=$G$7,BW5<$H$7)*1 -> 1 | BX7: 1 | BY7: 1 | BZ7: 1 | CA7: 1 | CB7: 1 | CC7: 1 | CD7: 1 | CE7: 1 | CF7: 1 | CG7: 1 | CH7: 1 | CI7: 1 | CJ7: 1 | CK7: 1 | CL7: 1 | CM7: 1 | CN7: 1 | CO7: 1 | CP7: 1 | CQ7: 1 | CR7: 1 | CS7: 1 | CT7: 1 | CU7: 1 | CV7: 1 | CW7: 1 | CX7: 1 | CY7: 1 | CZ7: 1 | DA7: 1 | DB7: 1 | DC7: 1 | DD7: 1 | DE7: 1 | DF7: 1 | DG7: 1 | DH7: 1 | DI7: 1 | DJ7: 1 | DK7: 1 | DL7: 1 | DM7: 1 | DN7: 1 | DO7: 1 | DP7: 1 | DQ7: 1 | DR7: 1 | DS7: 1 | DT7: 1 | DU7: 1 | DV7: 1 | DW7: 1 | DX7: 1 | DY7: 1 | DZ7: 0 | EA7: 0 | EB7: 0 | EC7: 0 | ED7: 0 | EE7: 0 | EF7: 0 | EG7: 0 | EH7: 0 | EI7: =AND(EI5>=$G$7,EI5<$H$7)*1 -> 0 | EJ7: 0 | EK7: 0 | EL7: 0 | EM7: 0 | EN7: 0 | EO7: 0 | EP7: 0 | EQ7: 0 | ER7: 0 | ES7: 0 | ET7: 0 | EU7: 0 | EV7: 0 | EW7: 0 | EX7: 0 | EY7: 0 | EZ7: 0 | FA7: 0 | FB7: 0 | FC7: 0
A8: Timing Inputs
B9: Financial Close | E9: Date | F9: 2020-05-01
B10: Construction Period | E10: Months | F10: 40
B11: Commerical Operation | E11: Date | F11: =EDATE(F9,F10) -> 2023-09-01
B12: Operation Period | E12: Years | F12: 40
B13: Decomissioning Period | E13: Date | F13: =EDATE(F11,F12*12) -> 2063-09-01
B15: Months in Period Pre-COD | E15: Months | F15: 1
B16: Months in Period Post-COD | E16: Months | F16: 6
A18: Operational
B19: Total Capital Expenditure | E19: Euro | F19: 25000
B20: Development Cost | E20: Euro | F20: 1000
B22: Construction S-Curve | E22: Average | F22: =F10/2 -> 20
B23: Standard Deviation Percent | E23: Percent | F23: 0.4
B24: Standard Deviation | E24: Months | F24: =F22*F23 -> 8
B26: Construction Period | E26: Period | J26: 1 | K26: 2 | L26: 3 | M26: 4 | N26: 5 | O26: 6 | P26: 7 | Q26: 8 | R26: 9 | S26: 10 | T26: 11 | U26: 12 | V26: 13 | W26: 14 | X26: 15 | Y26: 16 | Z26: 17 | AA26: 18 | AB26: 19 | AC26: 20 | AD26: 21 | AE26: 22 | AF26: 23 | AG26: 24 | AH26: 25 | AI26: 26 | AJ26: 27 | AK26: 28 | AL26: 29 | AM26: 30 | AN26: 31 | AO26: 32 | AP26: 33 | AQ26: 34 | AR26: 35 | AS26: 36 | AT26: 37
B27: Flag | E27: Flag | H27: 36 | J27: =J26<=$H$27 -> TRUE | K27: =K26<=$H$27 -> TRUE | L27: TRUE | M27: TRUE | N27: TRUE | O27: TRUE | P27: TRUE | Q27: TRUE | R27: TRUE | S27: TRUE | T27: TRUE | U27: TRUE | V27: TRUE | W27: TRUE | X27: TRUE | Y27: TRUE | Z27: TRUE | AA27: TRUE | AB27: TRUE | AC27: TRUE | AD27: TRUE | AE27: TRUE | AF27: TRUE | AG27: TRUE | AH27: TRUE | AI27: TRUE | AJ27: TRUE | AK27: TRUE | AL27: TRUE | AM27: TRUE | AN27: TRUE | AO27: TRUE | AP27: TRUE | AQ27: TRUE | AR27: TRUE | AS27: TRUE | AT27: FALSE
B28: Raw Normal Distribution | E28: Percent | G28: =F22 -> 20 | H28: =F24 -> 8 | I28: =SUM(J28:AT28) -> 0.9731215447 | J28: =_xlfn.NORM.DIST(J26,$G$28,$H$28,0)*J27 -> 0.002971487604 | K28: =_xlfn.NORM.DIST(K26,$G$28,$H$28,0)*K27 -> 0.003967456479 | L28: 0.005215123157 | M28: 0.006748870814 | N28: 0.008598284478 | O28: 0.01078466485 | P28: 0.01331728352 | Q28: 0.01618969946 | R28: 0.01937653318 | S28: 0.02283113567 | T28: 0.02648458072 | U28: 0.03024634056 | V28: 0.0340068748 | W28: 0.03764217902 | X28: 0.04102012107 | Y28: 0.04400816585 | Z28: 0.04648188673 | AA28: 0.0483335146 | AB28: 0.04947971087 | AC28: 0.04986778505 | AD28: 0.04947971087 | AE28: 0.0483335146 | AF28: 0.04648188673 | AG28: 0.04400816585 | AH28: 0.04102012107 | AI28: 0.03764217902 | AJ28: 0.0340068748 | AK28: 0.03024634056 | AL28: 0.02648458072 | AM28: 0.02283113567 | AN28: 0.01937653318 | AO28: 0.01618969946 | AP28: 0.01331728352 | AQ28: 0.01078466485 | AR28: 0.008598284478 | AS28: 0.006748870814 | AT28: 0
B29: Unitised S-Curve | E29: Percent | I29: =SUM(J29:AT29) -> 1 | J29: =J28/$I$28 -> 0.003053562651 | K29: =K28/$I$28 -> 0.004077041045 | L29: =L28/$I$28 -> 0.005359169351 | M29: =M28/$I$28 -> 0.00693528044 | N29: =N28/$I$28 -> 0.008835776502 | O29: =O28/$I$28 -> 0.01108254659 | P29: =P28/$I$28 -> 0.01368511836 | Q29: =Q28/$I$28 -> 0.0166368729 | R29: =R28/$I$28 -> 0.01991172972 | S29: =S28/$I$28 -> 0.02346175131 | T29: =T28/$I$28 -> 0.02721610766 | U29: =U28/$I$28 -> 0.03108177055 | V29: =V28/$I$28 -> 0.03494617397 | W29: =W28/$I$28 -> 0.03868188843 | X29: =X28/$I$28 -> 0.04215313215 | Y29: =Y28/$I$28 -> 0.0452237093 | Z29: =Z28/$I$28 -> 0.04776575649 | AA29: =AA28/$I$28 -> 0.04966852791 | AB29: =AB28/$I$28 -> 0.0508463831 | AC29: =AC28/$I$28 -> 0.05124517623 | AD29: =AD28/$I$28 -> 0.0508463831 | AE29: =AE28/$I$28 -> 0.04966852791 | AF29: =AF28/$I$28 -> 0.04776575649 | AG29: =AG28/$I$28 -> 0.0452237093 | AH29: =AH28/$I$28 -> 0.04215313215 | AI29: =AI28/$I$28 -> 0.03868188843 | AJ29: =AJ28/$I$28 -> 0.03494617397 | AK29: =AK28/$I$28 -> 0.03108177055 | AL29: =AL28/$I$28 -> 0.02721610766 | AM29: =AM28/$I$28 -> 0.02346175131 | AN29: =AN28/$I$28 -> 0.01991172972 | AO29: =AO28/$I$28 -> 0.0166368729 | AP29: =AP28/$I$28 -> 0.01368511836 | AQ29: =AQ28/$I$28 -> 0.01108254659 | AR29: =AR28/$I$28 -> 0.008835776502 | AS29: =AS28/$I$28 -> 0.00693528044 | AT29: =AT28/$I$28 -> 0
B31: Base EBITDA | E31: Euro/Yr | F31: 600
B32: EBITDA Growth | E32: % p.a. | F32: 0.02
A34: Financing
B35: Debt Percent | E35: % | F35: 0.75
B37: Equity Up-Front Funding | E37: % | F37: 0.4
B38: Pro-Rata Equity Funding | E38: % | F38: =1-F37 -> 0.6
B40: Repayment Tenure | E40: Years | F40: 25
B41: Level Repayment | E41: Flag | F41: TRUE
B42: End of Debt Repayment | E42: Date | F42: =EDATE(F11,F40*12) -> 2048-09-01
B44: Interest Rate | F44: =F9 -> 2020-05-01 | G44: =F11 -> 2023-09-01 | H44: =EDATE(G44,24) -> 2025-09-01 | I44: =EDATE(H44,24) -> 2027-09-01 | J44: 2029-09-01
C45: Annual Rate | E45: % p.a. | F45: 0.042 | G45: 0.045 | H45: 0.046 | I45: 0.0475 | J45: 0.0475
B47: Witholding Tax Rate | E47: % | F47: 0.075
B48: PRI Equity as Percent of Equity | E48: % p.a. | F48: 0.009
B49: PRI as Percent of Equity | E49: % | F49: 0.9
B51: PRG Debt as Percent of Debt | E51: % | F51: 0.011
B53: Fees
C54: Up-Front Fee | E54: % | F54: 0.012
C55: Commitment Fee | E55: % p.a. | F55: 0.007
B57: DSRA Months | E57: Months | F57: 6
B59: Circular Reference (UDF True) | E59: flag | F59: FALSE
A60: Operational Model
B61: Financial Close | E61: Flag | G61: =F9 -> 2020-05-01 | J61: =(J5=$G$61)*1 -> 1 | K61: =(K5=$G$61)*1 -> 0 | L61: 0 | M61: 0 | N61: 0 | O61: 0 | P61: 0 | Q61: 0 | R61: 0 | S61: 0 | T61: 0 | U61: 0 | V61: 0 | W61: 0 | X61: 0 | Y61: 0 | Z61: 0 | AA61: 0 | AB61: 0 | AC61: 0 | AD61: 0 | AE61: 0 | AF61: 0 | AG61: 0 | AH61: 0 | AI61: 0 | AJ61: 0 | AK61: 0 | AL61: 0 | AM61: 0 | AN61: 0 | AO61: 0 | AP61: 0 | AQ61: 0 | AR61: 0 | AS61: 0 | AT61: 0 | AU61: 0 | AV61: 0 | AW61: 0 | AX61: 0 | AY61: 0 | AZ61: 0 | BA61: 0 | BB61: 0 | BC61: 0 | BD61: 0 | BE61: 0 | BF61: 0 | BG61: 0 | BH61: 0 | BI61: 0 | BJ61: 0 | BK61: 0 | BL61: 0 | BM61: 0 | BN61: 0 | BO61: 0 | BP61: 0 | BQ61: 0 | BR61: 0 | BS61: 0 | BT61: 0 | BU61: 0 | BV61: 0 | BW61: =(BW5=$G$61)*1 -> 0 | BX61: 0 | BY61: 0 | BZ61: 0 | CA61: 0 | CB61: 0 | CC61: 0 | CD61: 0 | CE61: 0 | CF61: 0 | CG61: 0 | CH61: 0 | CI61: 0 | CJ61: 0 | CK61: 0 | CL61: 0 | CM61: 0 | CN61: 0 | CO61: 0 | CP61: 0 | CQ61: 0 | CR61: 0 | CS61: 0 | CT61: 0 | CU61: 0 | CV61: 0 | CW61: 0 | CX61: 0 | CY61: 0 | CZ61: 0 | DA61: 0 | DB61: 0 | DC61: 0 | DD61: 0 | DE61: 0 | DF61: 0 | DG61: 0 | DH61: 0 | DI61: 0 | DJ61: 0 | DK61: 0 | DL61: 0 | DM61: 0 | DN61: 0 | DO61: 0 | DP61: 0 | DQ61: 0 | DR61: 0 | DS61: 0 | DT61: 0 | DU61: 0 | DV61: 0 | DW61: 0 | DX61: 0 | DY61: 0 | DZ61: 0 | EA61: 0 | EB61: 0 | EC61: 0 | ED61: 0 | EE61: 0 | EF61: 0 | EG61: 0 | EH61: 0 | EI61: =(EI5=$G$61)*1 -> 0 | EJ61: 0 | EK61: 0 | EL61: 0 | EM61: 0 | EN61: 0 | EO61: 0 | EP61: 0 | EQ61: 0 | ER61: 0 | ES61: 0 | ET61: 0 | EU61: 0 | EV61: 0 | EW61: 0 | EX61: 0 | EY61: 0 | EZ61: 0 | FA61: 0 | FB61: 0 | FC61: 0
B62: S-Curve | E62: % | I62: =SUM(J62:FC62) -> 1 | J62: =LOOKUP(J2,26:26,29:29) -> 0.003053562651 | K62: =LOOKUP(K2,26:26,29:29) -> 0.004077041045 | L62: 0.005359169351 | M62: 0.00693528044 | N62: 0.008835776502 | O62: 0.01108254659 | P62: 0.01368511836 | Q62: 0.0166368729 | R62: 0.01991172972 | S62: 0.02346175131 | T62: 0.02721610766 | U62: 0.03108177055 | V62: 0.03494617397 | W62: 0.03868188843 | X62: 0.04215313215 | Y62: 0.0452237093 | Z62: 0.04776575649 | AA62: 0.04966852791 | AB62: 0.0508463831 | AC62: 0.05124517623 | AD62: 0.0508463831 | AE62: 0.04966852791 | AF62: 0.04776575649 | AG62: 0.0452237093 | AH62: 0.04215313215 | AI62: 0.03868188843 | AJ62: 0.03494617397 | AK62: 0.03108177055 | AL62: 0.02721610766 | AM62: 0.02346175131 | AN62: 0.01991172972 | AO62: 0.0166368729 | AP62: 0.01368511836 | AQ62: 0.01108254659 | AR62: 0.008835776502 | AS62: 0.00693528044 | AT62: 0 | AU62: 0 | AV62: 0 | AW62: 0 | AX62: 0 | AY62: 0 | AZ62: 0 | BA62: 0 | BB62: 0 | BC62: 0 | BD62: 0 | BE62: 0 | BF62: 0 | BG62: 0 | BH62: 0 | BI62: 0 | BJ62: 0 | BK62: 0 | BL62: 0 | BM62: 0 | BN62: 0 | BO62: 0 | BP62: 0 | BQ62: 0 | BR62: 0 | BS62: 0 | BT62: 0 | BU62: 0 | BV62: 0 | BW62: =LOOKUP(BW2,26:26,29:29) -> 0 | BX62: 0 | BY62: 0 | BZ62: 0 | CA62: 0 | CB62: 0 | CC62: 0 | CD62: 0 | CE62: 0 | CF62: 0 | CG62: 0 | CH62: 0 | CI62: 0 | CJ62: 0 | CK62: 0 | CL62: 0 | CM62: 0 | CN62: 0 | CO62: 0 | CP62: 0 | CQ62: 0 | CR62: 0 | CS62: 0 | CT62: 0 | CU62: 0 | CV62: 0 | CW62: 0 | CX62: 0 | CY62: 0 | CZ62: 0 | DA62: 0 | DB62: 0 | DC62: 0 | DD62: 0 | DE62: 0 | DF62: 0 | DG62: 0 | DH62: 0 | DI62: 0 | DJ62: 0 | DK62: 0 | DL62: 0 | DM62: 0 | DN62: 0 | DO62: 0 | DP62: 0 | DQ62: 0 | DR62: 0 | DS62: 0 | DT62: 0 | DU62: 0 | DV62: 0 | DW62: 0 | DX62: 0 | DY62: 0 | DZ62: 0 | EA62: 0 | EB62: 0 | EC62: 0 | ED62: 0 | EE62: 0 | EF62: 0 | EG62: 0 | EH62: 0 | EI62: =LOOKUP(EI2,26:26,29:29) -> 0 | EJ62: 0 | EK62: 0 | EL62: 0 | EM62: 0 | EN62: 0 | EO62: 0 | EP62: 0 | EQ62: 0 | ER62: 0 | ES62: 0 | ET62: 0 | EU62: 0 | EV62: 0 | EW62: 0 | EX62: 0 | EY62: 0 | EZ62: 0 | FA62: 0 | FB62: 0 | FC62: 0
B63: Development Expenditure | E63: Euro | G63: =F20 -> 1000 | I63: =SUM(J63:FC63) -> 1000 | J63: =$G$63*J61 -> 1000 | K63: =$G$63*K61 -> 0 | L63: 0 | M63: 0 | N63: 0 | O63: 0 | P63: 0 | Q63: 0 | R63: 0 | S63: 0 | T63: 0 | U63: 0 | V63: 0 | W63: 0 | X63: 0 | Y63: 0 | Z63: 0 | AA63: 0 | AB63: 0 | AC63: 0 | AD63: 0 | AE63: 0 | AF63: 0 | AG63: 0 | AH63: 0 | AI63: 0 | AJ63: 0 | AK63: 0 | AL63: 0 | AM63: 0 | AN63: 0 | AO63: 0 | AP63: 0 | AQ63: 0 | AR63: 0 | AS63: 0 | AT63: 0 | AU63: 0 | AV63: 0 | AW63: 0 | AX63: 0 | AY63: 0 | AZ63: 0 | BA63: 0 | BB63: 0 | BC63: 0 | BD63: 0 | BE63: 0 | BF63: 0 | BG63: 0 | BH63: 0 | BI63: 0 | BJ63: 0 | BK63: 0 | BL63: 0 | BM63: 0 | BN63: 0 | BO63: 0 | BP63: 0 | BQ63: 0 | BR63: 0 | BS63: 0 | BT63: 0 | BU63: 0 | BV63: 0 | BW63: =$G$63*BW61 -> 0 | BX63: 0 | BY63: 0 | BZ63: 0 | CA63: 0 | CB63: 0 | CC63: 0 | CD63: 0 | CE63: 0 | CF63: 0 | CG63: 0 | CH63: 0 | CI63: 0 | CJ63: 0 | CK63: 0 | CL63: 0 | CM63: 0 | CN63: 0 | CO63: 0 | CP63: 0 | CQ63: 0 | CR63: 0 | CS63: 0 | CT63: 0 | CU63: 0 | CV63: 0 | CW63: 0 | CX63: 0 | CY63: 0 | CZ63: 0 | DA63: 0 | DB63: 0 | DC63: 0 | DD63: 0 | DE63: 0 | DF63: 0 | DG63: 0 | DH63: 0 | DI63: 0 | DJ63: 0 | DK63: 0 | DL63: 0 | DM63: 0 | DN63: 0 | DO63: 0 | DP63: 0 | DQ63: 0 | DR63: 0 | DS63: 0 | DT63: 0 | DU63: 0 | DV63: 0 | DW63: 0 | DX63: 0 | DY63: 0 | DZ63: 0 | EA63: 0 | EB63: 0 | EC63: 0 | ED63: 0 | EE63: 0 | EF63: 0 | EG63: 0 | EH63: 0 | EI63: =$G$63*EI61 -> 0 | EJ63: 0 | EK63: 0 | EL63: 0 | EM63: 0 | EN63: 0 | EO63: 0 | EP63: 0 | EQ63: 0 | ER63: 0 | ES63: 0 | ET63: 0 | EU63: 0 | EV63: 0 | EW63: 0 | EX63: 0 | EY63: 0 | EZ63: 0 | FA63: 0 | FB63: 0 | FC63: 0
B64: Construction Expenditure | E64: Euro | G64: =F19 -> 25000 | I64: =SUM(J64:FC64) -> 25000 | J64: =J62*$G$64 -> 76.33906628 | K64: =K62*$G$64 -> 101.9260261 | L64: 133.9792338 | M64: 173.382011 | N64: 220.8944126 | O64: 277.0636647 | P64: 342.127959 | Q64: 415.9218226 | R64: 497.793243 | S64: 586.5437827 | T64: 680.4026914 | U64: 777.0442636 | V64: 873.6543493 | W64: 967.0472107 | X64: 1053.828304 | Y64: 1130.592732 | Z64: 1194.143912 | AA64: 1241.713198 | AB64: 1271.159578 | AC64: 1281.129406 | AD64: 1271.159578 | AE64: 1241.713198 | AF64: 1194.143912 | AG64: 1130.592732 | AH64: 1053.828304 | AI64: 967.0472107 | AJ64: 873.6543493 | AK64: 777.0442636 | AL64: 680.4026914 | AM64: 586.5437827 | AN64: 497.793243 | AO64: 415.9218226 | AP64: 342.127959 | AQ64: 277.0636647 | AR64: 220.8944126 | AS64: 173.382011 | AT64: 0 | AU64: 0 | AV64: 0 | AW64: 0 | AX64: 0 | AY64: 0 | AZ64: 0 | BA64: 0 | BB64: 0 | BC64: 0 | BD64: 0 | BE64: 0 | BF64: 0 | BG64: 0 | BH64: 0 | BI64: 0 | BJ64: 0 | BK64: 0 | BL64: 0 | BM64: 0 | BN64: 0 | BO64: 0 | BP64: 0 | BQ64: 0 | BR64: 0 | BS64: 0 | BT64: 0 | BU64: 0 | BV64: 0 | BW64: =BW62*$G$64 -> 0 | BX64: 0 | BY64: 0 | BZ64: 0 | CA64: 0 | CB64: 0 | CC64: 0 | CD64: 0 | CE64: 0 | CF64: 0 | CG64: 0 | CH64: 0 | CI64: 0 | CJ64: 0 | CK64: 0 | CL64: 0 | CM64: 0 | CN64: 0 | CO64: 0 | CP64: 0 | CQ64: 0 | CR64: 0 | CS64: 0 | CT64: 0 | CU64: 0 | CV64: 0 | CW64: 0 | CX64: 0 | CY64: 0 | CZ64: 0 | DA64: 0 | DB64: 0 | DC64: 0 | DD64: 0 | DE64: 0 | DF64: 0 | DG64: 0 | DH64: 0 | DI64: 0 | DJ64: 0 | DK64: 0 | DL64: 0 | DM64: 0 | DN64: 0 | DO64: 0 | DP64: 0 | DQ64: 0 | DR64: 0 | DS64: 0 | DT64: 0 | DU64: 0 | DV64: 0 | DW64: 0 | DX64: 0 | DY64: 0 | DZ64: 0 | EA64: 0 | EB64: 0 | EC64: 0 | ED64: 0 | EE64: 0 | EF64: 0 | EG64: 0 | EH64: 0 | EI64: =EI62*$G$64 -> 0 | EJ64: 0 | EK64: 0 | EL64: 0 | EM64: 0 | EN64: 0 | EO64: 0 | EP64: 0 | EQ64: 0 | ER64: 0 | ES64: 0 | ET64: 0 | EU64: 0 | EV64: 0 | EW64: 0 | EX64: 0 | EY64: 0 | EZ64: 0 | FA64: 0 | FB64: 0 | FC64: 0
C65: Total Construction | E65: Euro
B67: Periodic Inflation | E67: % p.p. | G67: =F32 -> 0.02 | J67: =(1+$G$67)^(J4/12)-1 -> 0.001651581302 | K67: =(1+$G$67)^(K4/12)-1 -> 0.001651581302 | L67: 0.001651581302 | M67: 0.001651581302 | N67: 0.001651581302 | O67: 0.001651581302 | P67: 0.001651581302 | Q67: 0.001651581302 | R67: 0.001651581302 | S67: 0.001651581302 | T67: 0.001651581302 | U67: 0.001651581302 | V67: 0.001651581302 | W67: 0.001651581302 | X67: 0.001651581302 | Y67: 0.001651581302 | Z67: 0.001651581302 | AA67: 0.001651581302 | AB67: 0.001651581302 | AC67: 0.001651581302 | AD67: 0.001651581302 | AE67: 0.001651581302 | AF67: 0.001651581302 | AG67: 0.001651581302 | AH67: 0.001651581302 | AI67: 0.001651581302 | AJ67: 0.001651581302 | AK67: 0.001651581302 | AL67: 0.001651581302 | AM67: 0.001651581302 | AN67: 0.001651581302 | AO67: 0.001651581302 | AP67: 0.001651581302 | AQ67: 0.001651581302 | AR67: 0.001651581302 | AS67: 0.001651581302 | AT67: 0.001651581302 | AU67: 0.001651581302 | AV67: 0.001651581302 | AW67: 0.001651581302 | AX67: 0.009950493836 | AY67: 0.009950493836 | AZ67: 0.009950493836 | BA67: 0.009950493836 | BB67: 0.009950493836 | BC67: 0.009950493836 | BD67: 0.009950493836 | BE67: 0.009950493836 | BF67: 0.009950493836 | BG67: 0.009950493836 | BH67: 0.009950493836 | BI67: 0.009950493836 | BJ67: 0.009950493836 | BK67: 0.009950493836 | BL67: 0.009950493836 | BM67: 0.009950493836 | BN67: 0.009950493836 | BO67: 0.009950493836 | BP67: 0.009950493836 | BQ67: 0.009950493836 | BR67: 0.009950493836 | BS67: 0.009950493836 | BT67: 0.009950493836 | BU67: 0.009950493836 | BV67: 0.009950493836 | BW67: =(1+$G$67)^(BW4/12)-1 -> 0.009950493836 | BX67: 0.009950493836 | BY67: 0.009950493836 | BZ67: 0.009950493836 | CA67: 0.009950493836 | CB67: 0.009950493836 | CC67: 0.009950493836 | CD67: 0.009950493836 | CE67: 0.009950493836 | CF67: 0.009950493836 | CG67: 0.009950493836 | CH67: 0.009950493836 | CI67: 0.009950493836 | CJ67: 0.009950493836 | CK67: 0.009950493836 | CL67: 0.009950493836 | CM67: 0.009950493836 | CN67: 0.009950493836 | CO67: 0.009950493836 | CP67: 0.009950493836 | CQ67: 0.009950493836 | CR67: 0.009950493836 | CS67: 0.009950493836 | CT67: 0.009950493836 | CU67: 0.009950493836 | CV67: 0.009950493836 | CW67: 0.009950493836 | CX67: 0.009950493836 | CY67: 0.009950493836 | CZ67: 0.009950493836 | DA67: 0.009950493836 | DB67: 0.009950493836 | DC67: 0.009950493836 | DD67: 0.009950493836 | DE67: 0.009950493836 | DF67: 0.009950493836 | DG67: 0.009950493836 | DH67: 0.009950493836 | DI67: 0.009950493836 | DJ67: 0.009950493836 | DK67: 0.009950493836 | DL67: 0.009950493836 | DM67: 0.009950493836 | DN67: 0.009950493836 | DO67: 0.009950493836 | DP67: 0.009950493836 | DQ67: 0.009950493836 | DR67: 0.009950493836 | DS67: 0.009950493836 | DT67: 0.009950493836 | DU67: 0.009950493836 | DV67: 0.009950493836 | DW67: 0.009950493836 | DX67: 0.009950493836 | DY67: 0.009950493836 | DZ67: 0.009950493836 | EA67: 0.009950493836 | EB67: 0.009950493836 | EC67: 0.009950493836 | ED67: 0.009950493836 | EE67: 0.009950493836 | EF67: 0.009950493836 | EG67: 0.009950493836 | EH67: 0.009950493836 | EI67: =(1+$G$67)^(EI4/12)-1 -> 0.009950493836 | EJ67: 0.009950493836 | EK67: 0.009950493836 | EL67: 0.009950493836 | EM67: 0.009950493836 | EN67: 0.009950493836 | EO67: 0.009950493836 | EP67: 0.009950493836 | EQ67: 0.009950493836 | ER67: 0.009950493836 | ES67: 0.009950493836 | ET67: 0.009950493836 | EU67: 0.009950493836 | EV67: 0.009950493836 | EW67: 0.009950493836 | EX67: 0.009950493836 | EY67: 0.009950493836 | EZ67: 0.009950493836 | FA67: 0.009950493836 | FB67: 0.009950493836 | FC67: 0.009950493836
B68: Inflation Index | E68: Index | I68: 1 | J68: =I68*(1+J67*J7) -> 1 | K68: =J68*(1+K67*K7) -> 1 | L68: 1 | M68: 1 | N68: 1 | O68: 1 | P68: 1 | Q68: 1 | R68: 1 | S68: 1 | T68: 1 | U68: 1 | V68: 1 | W68: 1 | X68: 1 | Y68: 1 | Z68: 1 | AA68: 1 | AB68: 1 | AC68: 1 | AD68: 1 | AE68: 1 | AF68: 1 | AG68: 1 | AH68: 1 | AI68: 1 | AJ68: 1 | AK68: 1 | AL68: 1 | AM68: 1 | AN68: 1 | AO68: 1 | AP68: 1 | AQ68: 1 | AR68: 1 | AS68: 1 | AT68: 1 | AU68: 1 | AV68: 1 | AW68: 1 | AX68: 1.009950494 | AY68: 1.02 | AZ68: 1.030149504 | BA68: 1.0404 | BB68: 1.050752494 | BC68: 1.061208 | BD68: 1.071767544 | BE68: 1.08243216 | BF68: 1.093202895 | BG68: 1.104080803 | BH68: 1.115066952 | BI68: 1.126162419 | BJ68: 1.137368291 | BK68: 1.148685668 | BL68: 1.160115657 | BM68: 1.171659381 | BN68: 1.18331797 | BO68: 1.195092569 | BP68: 1.20698433 | BQ68: 1.21899442 | BR68: 1.231124016 | BS68: 1.243374308 | BT68: 1.255746497 | BU68: 1.268241795 | BV68: 1.280861427 | BW68: =BV68*(1+BW67*BW7) -> 1.29360663 | BX68: 1.306478655 | BY68: 1.319478763 | BZ68: 1.332608228 | CA68: 1.345868338 | CB68: 1.359260393 | CC68: 1.372785705 | CD68: 1.386445601 | CE68: 1.400241419 | CF68: 1.414174513 | CG68: 1.428246248 | CH68: 1.442458003 | CI68: 1.456811173 | CJ68: 1.471307163 | CK68: 1.485947396 | CL68: 1.500733306 | CM68: 1.515666344 | CN68: 1.530747973 | CO68: 1.545979671 | CP68: 1.561362932 | CQ68: 1.576899264 | CR68: 1.592590191 | CS68: 1.608437249 | CT68: 1.624441994 | CU68: 1.640605994 | CV68: 1.656930834 | CW68: 1.673418114 | CX68: 1.690069451 | CY68: 1.706886477 | CZ68: 1.72387084 | DA68: 1.741024206 | DB68: 1.758348257 | DC68: 1.77584469 | DD68: 1.793515222 | DE68: 1.811361584 | DF68: 1.829385526 | DG68: 1.847588816 | DH68: 1.865973237 | DI68: 1.884540592 | DJ68: 1.903292702 | DK68: 1.922231404 | DL68: 1.941358556 | DM68: 1.960676032 | DN68: 1.980185727 | DO68: 1.999889553 | DP68: 2.019789441 | DQ68: 2.039887344 | DR68: 2.06018523 | DS68: 2.080685091 | DT68: 2.101388935 | DU68: 2.122298792 | DV68: 2.143416713 | DW68: 2.164744768 | DX68: 2.186285048 | DY68: 2.208039664 | DZ68: 2.208039664 | EA68: 2.208039664 | EB68: 2.208039664 | EC68: 2.208039664 | ED68: 2.208039664 | EE68: 2.208039664 | EF68: 2.208039664 | EG68: 2.208039664 | EH68: 2.208039664 | EI68: =EH68*(1+EI67*EI7) -> 2.208039664 | EJ68: 2.208039664 | EK68: 2.208039664 | EL68: 2.208039664 | EM68: 2.208039664 | EN68: 2.208039664 | EO68: 2.208039664 | EP68: 2.208039664 | EQ68: 2.208039664 | ER68: 2.208039664 | ES68: 2.208039664 | ET68: 2.208039664 | EU68: 2.208039664 | EV68: 2.208039664 | EW68: 2.208039664 | EX68: 2.208039664 | EY68: 2.208039664 | EZ68: 2.208039664 | FA68: 2.208039664 | FB68: 2.208039664 | FC68: 2.208039664
B69: EBITDA | E69: Euro | G69: =F31 -> 600 | J69: =$G$69*J68*J7 -> 0 | K69: =$G$69*K68*K7 -> 0 | L69: 0 | M69: 0 | N69: 0 | O69: 0 | P69: 0 | Q69: 0 | R69: 0 | S69: 0 | T69: 0 | U69: 0 | V69: 0 | W69: 0 | X69: 0 | Y69: 0 | Z69: 0 | AA69: 0 | AB69: 0 | AC69: 0 | AD69: 0 | AE69: 0 | AF69: 0 | AG69: 0 | AH69: 0 | AI69: 0 | AJ69: 0 | AK69: 0 | AL69: 0 | AM69: 0 | AN69: 0 | AO69: 0 | AP69: 0 | AQ69: 0 | AR69: 0 | AS69: 0 | AT69: 0 | AU69: 0 | AV69: 0 | AW69: 0 | AX69: 605.9702963 | AY69: 612 | AZ69: 618.0897022 | BA69: 624.24 | BB69: 630.4514963 | BC69: 636.7248 | BD69: 643.0605262 | BE69: 649.459296 | BF69: 655.9217367 | BG69: 662.4484819 | BH69: 669.0401715 | BI69: 675.6974516 | BJ69: 682.4209749 | BK69: 689.2114006 | BL69: 696.0693944 | BM69: 702.9956286 | BN69: 709.9907823 | BO69: 717.0555412 | BP69: 724.1905979 | BQ69: 731.396652 | BR69: 738.6744099 | BS69: 746.024585 | BT69: 753.4478981 | BU69: 760.9450767 | BV69: 768.516856 | BW69: =$G$69*BW68*BW7 -> 776.1639783 | BX69: 783.8871932 | BY69: 791.6872578 | BZ69: 799.564937 | CA69: 807.521003 | CB69: 815.5562358 | CC69: 823.6714231 | CD69: 831.8673605 | CE69: 840.1448515 | CF69: 848.5047077 | CG69: 856.9477485 | CH69: 865.4748018 | CI69: 874.0867035 | CJ69: 882.7842979 | CK69: 891.5684376 | CL69: 900.4399838 | CM69: 909.3998063 | CN69: 918.4487835 | CO69: 927.5878025 | CP69: 936.8177592 | CQ69: 946.1395585 | CR69: 955.5541144 | CS69: 965.0623497 | CT69: 974.6651966 | CU69: 984.3635967 | CV69: 994.1585006 | CW69: 1004.050869 | CX69: 1014.041671 | CY69: 1024.131886 | CZ69: 1034.322504 | DA69: 1044.614524 | DB69: 1055.008954 | DC69: 1065.506814 | DD69: 1076.109133 | DE69: 1086.81695 | DF69: 1097.631316 | DG69: 1108.553289 | DH69: 1119.583942 | DI69: 1130.724355 | DJ69: 1141.975621 | DK69: 1153.338842 | DL69: 1164.815133 | DM69: 1176.405619 | DN69: 1188.111436 | DO69: 1199.933732 | DP69: 1211.873665 | DQ69: 1223.932406 | DR69: 1236.111138 | DS69: 1248.411054 | DT69: 1260.833361 | DU69: 1273.379275 | DV69: 1286.050028 | DW69: 1298.846861 | DX69: 1311.771029 | DY69: 1324.823798 | DZ69: 0 | EA69: 0 | EB69: 0 | EC69: 0 | ED69: 0 | EE69: 0 | EF69: 0 | EG69: 0 | EH69: 0 | EI69: =$G$69*EI68*EI7 -> 0 | EJ69: 0 | EK69: 0 | EL69: 0 | EM69: 0 | EN69: 0 | EO69: 0 | EP69: 0 | EQ69: 0 | ER69: 0 | ES69: 0 | ET69: 0 | EU69: 0 | EV69: 0 | EW69: 0 | EX69: 0 | EY69: 0 | EZ69: 0 | FA69: 0 | FB69: 0 | FC69: 0
B71: Free Cash Flow | E71: Euro | J71: =J69-J63-J64 -> -1076.339066 | K71: =K69-K63-K64 -> -101.9260261 | L71: -133.9792338 | M71: -173.382011 | N71: -220.8944126 | O71: -277.0636647 | P71: -342.127959 | Q71: -415.9218226 | R71: -497.793243 | S71: -586.5437827 | T71: -680.4026914 | U71: -777.0442636 | V71: -873.6543493 | W71: -967.0472107 | X71: -1053.828304 | Y71: -1130.592732 | Z71: -1194.143912 | AA71: -1241.713198 | AB71: -1271.159578 | AC71: -1281.129406 | AD71: -1271.159578 | AE71: -1241.713198 | AF71: -1194.143912 | AG71: -1130.592732 | AH71: -1053.828304 | AI71: -967.0472107 | AJ71: -873.6543493 | AK71: -777.0442636 | AL71: -680.4026914 | AM71: -586.5437827 | AN71: -497.793243 | AO71: -415.9218226 | AP71: -342.127959 | AQ71: -277.0636647 | AR71: -220.8944126 | AS71: -173.382011 | AT71: 0 | AU71: 0 | AV71: 0 | AW71: 0 | AX71: 605.9702963 | AY71: 612 | AZ71: 618.0897022 | BA71: 624.24 | BB71: 630.4514963 | BC71: 636.7248 | BD71: 643.0605262 | BE71: 649.459296 | BF71: 655.9217367 | BG71: 662.4484819 | BH71: 669.0401715 | BI71: 675.6974516 | BJ71: 682.4209749 | BK71: 689.2114006 | BL71: 696.0693944 | BM71: 702.9956286 | BN71: 709.9907823 | BO71: 717.0555412 | BP71: 724.1905979 | BQ71: 731.396652 | BR71: 738.6744099 | BS71: 746.024585 | BT71: 753.4478981 | BU71: 760.9450767 | BV71: 768.516856 | BW71: =BW69-BW63-BW64 -> 776.1639783 | BX71: 783.8871932 | BY71: 791.6872578 | BZ71: 799.564937 | CA71: 807.521003 | CB71: 815.5562358 | CC71: 823.6714231 | CD71: 831.8673605 | CE71: 840.1448515 | CF71: 848.5047077 | CG71: 856.9477485 | CH71: 865.4748018 | CI71: 874.0867035 | CJ71: 882.7842979 | CK71: 891.5684376 | CL71: 900.4399838 | CM71: 909.3998063 | CN71: 918.4487835 | CO71: 927.5878025 | CP71: 936.8177592 | CQ71: 946.1395585 | CR71: 955.5541144 | CS71: 965.0623497 | CT71: 974.6651966 | CU71: 984.3635967 | CV71: 994.1585006 | CW71: 1004.050869 | CX71: 1014.041671 | CY71: 1024.131886 | CZ71: 1034.322504 | DA71: 1044.614524 | DB71: 1055.008954 | DC71: 1065.506814 | DD71: 1076.109133 | DE71: 1086.81695 | DF71: 1097.631316 | DG71: 1108.553289 | DH71: 1119.583942 | DI71: 1130.724355 | DJ71: 1141.975621 | DK71: 1153.338842 | DL71: 1164.815133 | DM71: 1176.405619 | DN71: 1188.111436 | DO71: 1199.933732 | DP71: 1211.873665 | DQ71: 1223.932406 | DR71: 1236.111138 | DS71: 1248.411054 | DT71: 1260.833361 | DU71: 1273.379275 | DV71: 1286.050028 | DW71: 1298.846861 | DX71: 1311.771029 | DY71: 1324.823798 | DZ71: 0 | EA71: 0 | EB71: 0 | EC71: 0 | ED71: 0 | EE71: 0 | EF71: 0 | EG71: 0 | EH71: 0 | EI71: =EI69-EI63-EI64 -> 0 | EJ71: 0 | EK71: 0 | EL71: 0 | EM71: 0 | EN71: 0 | EO71: 0 | EP71: 0 | EQ71: 0 | ER71: 0 | ES71: 0 | ET71: 0 | EU71: 0 | EV71: 0 | EW71: 0 | EX71: 0 | EY71: 0 | EZ71: 0 | FA71: 0 | FB71: 0 | FC71: 0
B72: Project Pre-tax IRR | E72: % | G72: =XIRR(J71:FC71,J6:FC6) -> 0.04972588718
A74: Financing
B75: Summary Sources and Uses | G75: Applied | H75: Computed | I75: UDF | J75: Copy/Paste | K75: Difference
C76: Uses of Funds
D77: Development Costs | E77: Euro | G77: =IF($F$59,I77,J77) -> 1000 | H77: =SUM(J63:FC63) -> 1000 | J77: 1000 | K77: =J77-H77 -> 0
D78: Capital Expenditures | E78: Euro | G78: =IF($F$59,I78,J78) -> 25000 | H78: =SUM(J64:FC64) -> 25000 | J78: 25000 | K78: =J78-H78 -> 0
D79: Interest During Construction | E79: Euro | G79: 1387.420048 | H79: =I153 -> 1387.420048 | J79: 1387.420048 | K79: 0
D80: Withholding Tax | E80: Euro | G80: 112.4935174 | H80: =I155 -> 112.4935174 | J80: 112.4935174 | K80: 0
D81: Up-Front Fees | E81: Euro | G81: 265.3115622 | H81: =I161 -> 265.3115622 | J81: 265.3115622 | K81: 0
D82: Commitment Fees | E82: Euro | G82: 284.6469186 | H82: =I165 -> 284.6469186 | J82: 284.6469186 | K82: 0
D83: PRG | E83: Euro | G83: 363.3719173 | H83: =I171 -> 363.3719173 | J83: 363.3719173 | K83: 0
D84: PRI | E84: Euro | G84: 126.1733891 | H84: =I180 -> 126.1733891 | J84: 126.1733891 | K84: 0
D85: DSRA | E85: Euro | G85: 939.6451162 | H85: =I192 -> 939.6451162 | J85: 939.6451162 | K85: 0
D86: Total | E86: Euro | G86: =SUM(G77:G85) -> 29479.06247 | H86: =SUM(H77:H85) -> 29479.06247 | J86: =SUM(psted_uses) -> 29479.06247 | K86: 0
C88: Sources of Funds
D89: Debt | E89: Euro | F89: =F35 -> 0.75 | G89: =G86*$F$89 -> 22109.29685 | H89: =H86*$F$89 -> 22109.29685
D90: Equity | E90: Euro | G90: =G86-G89 -> 7369.765617 | H90: =H86-H89 -> 7369.765617
D91: Total | E91: Euro | G91: =SUM(G89:G90) -> 29479.06247 | H91: =SUM(H89:H90) -> 29479.06247
C93: Pro-Rata and Up-Front
D94: Equity Up-Front Percent | E94: % | G94: =$F$37 -> 0.4 | H94: =$F$37 -> 0.4
D95: Equity Up-Front | E95: Euro | G95: =G94*G90 -> 2947.906247 | H95: =H94*H90 -> 2947.906247
D96: Equity Pro-Rata | E96: Euro | G96: =G90-G95 -> 4421.85937 | H96: =H90-H95 -> 4421.85937
D97: Debt | E97: Euro | G97: =G89 -> 22109.29685 | H97: =H89 -> 22109.29685
D98: Total Pro-Rata | E98: Euro | G98: =G97+G96 -> 26531.15622 | H98: =H97+H96 -> 26531.15622
D100: Equity Pro-Rata Percent | E100: % | G100: =G96/G98 -> 0.1666666667 | H100: =H96/H98 -> 0.1666666667
D101: Debt Pro-Rata Percent | E101: % | G101: =G97/G98 -> 0.8333333333 | H101: =H97/H98 -> 0.8333333333
B103: Funding Requirements and Sources
D104: Development Costs | E104: Euro | J104: =J63 -> 1000 | K104: =K63 -> 0 | L104: 0 | M104: 0 | N104: 0 | O104: 0 | P104: 0 | Q104: 0 | R104: 0 | S104: 0 | T104: 0 | U104: 0 | V104: 0 | W104: 0 | X104: 0 | Y104: 0 | Z104: 0 | AA104: 0 | AB104: 0 | AC104: 0 | AD104: 0 | AE104: 0 | AF104: 0 | AG104: 0 | AH104: 0 | AI104: 0 | AJ104: 0 | AK104: 0 | AL104: 0 | AM104: 0 | AN104: 0 | AO104: 0 | AP104: 0 | AQ104: 0 | AR104: 0 | AS104: 0 | AT104: 0 | AU104: 0 | AV104: 0 | AW104: 0 | AX104: 0 | AY104: 0 | AZ104: 0 | BA104: 0 | BB104: 0 | BC104: 0 | BD104: 0 | BE104: 0 | BF104: 0 | BG104: 0 | BH104: 0 | BI104: 0 | BJ104: 0 | BK104: 0 | BL104: 0 | BM104: 0 | BN104: 0 | BO104: 0 | BP104: 0 | BQ104: 0 | BR104: 0 | BS104: 0 | BT104: 0 | BU104: 0 | BV104: 0 | BW104: =BW63 -> 0 | BX104: 0 | BY104: 0 | BZ104: 0 | CA104: 0 | CB104: 0 | CC104: 0 | CD104: 0 | CE104: 0 | CF104: 0 | CG104: 0 | CH104: 0 | CI104: 0 | CJ104: 0 | CK104: 0 | CL104: 0 | CM104: 0 | CN104: 0 | CO104: 0 | CP104: 0 | CQ104: 0 | CR104: 0 | CS104: 0 | CT104: 0 | CU104: 0 | CV104: 0 | CW104: 0 | CX104: 0 | CY104: 0 | CZ104: 0 | DA104: 0 | DB104: 0 | DC104: 0 | DD104: 0 | DE104: 0 | DF104: 0 | DG104: 0 | DH104: 0 | DI104: 0 | DJ104: 0 | DK104: 0 | DL104: 0 | DM104: 0 | DN104: 0 | DO104: 0 | DP104: 0 | DQ104: 0 | DR104: 0 | DS104: 0 | DT104: 0 | DU104: 0 | DV104: 0 | DW104: 0 | DX104: 0 | DY104: 0 | DZ104: 0 | EA104: 0 | EB104: 0 | EC104: 0 | ED104: 0 | EE104: 0 | EF104: 0 | EG104: 0 | EH104: 0 | EI104: =EI63 -> 0 | EJ104: 0 | EK104: 0 | EL104: 0 | EM104: 0 | EN104: 0 | EO104: 0 | EP104: 0 | EQ104: 0 | ER104: 0 | ES104: 0 | ET104: 0 | EU104: 0 | EV104: 0 | EW104: 0 | EX104: 0 | EY104: 0 | EZ104: 0 | FA104: 0 | FB104: 0 | FC104: 0
D105: Capital Expenditures | E105: Euro | J105: =J64 -> 76.33906628 | K105: =K64 -> 101.9260261 | L105: 133.9792338 | M105: 173.382011 | N105: 220.8944126 | O105: 277.0636647 | P105: 342.127959 | Q105: 415.9218226 | R105: 497.793243 | S105: 586.5437827 | T105: 680.4026914 | U105: 777.0442636 | V105: 873.6543493 | W105: 967.0472107 | X105: 1053.828304 | Y105: 1130.592732 | Z105: 1194.143912 | AA105: 1241.713198 | AB105: 1271.159578 | AC105: 1281.129406 | AD105: 1271.159578 | AE105: 1241.713198 | AF105: 1194.143912 | AG105: 1130.592732 | AH105: 1053.828304 | AI105: 967.0472107 | AJ105: 873.6543493 | AK105: 777.0442636 | AL105: 680.4026914 | AM105: 586.5437827 | AN105: 497.793243 | AO105: 415.9218226 | AP105: 342.127959 | AQ105: 277.0636647 | AR105: 220.8944126 | AS105: 173.382011 | AT105: 0 | AU105: 0 | AV105: 0 | AW105: 0 | AX105: 0 | AY105: 0 | AZ105: 0 | BA105: 0 | BB105: 0 | BC105: 0 | BD105: 0 | BE105: 0 | BF105: 0 | BG105: 0 | BH105: 0 | BI105: 0 | BJ105: 0 | BK105: 0 | BL105: 0 | BM105: 0 | BN105: 0 | BO105: 0 | BP105: 0 | BQ105: 0 | BR105: 0 | BS105: 0 | BT105: 0 | BU105: 0 | BV105: 0 | BW105: =BW64 -> 0 | BX105: 0 | BY105: 0 | BZ105: 0 | CA105: 0 | CB105: 0 | CC105: 0 | CD105: 0 | CE105: 0 | CF105: 0 | CG105: 0 | CH105: 0 | CI105: 0 | CJ105: 0 | CK105: 0 | CL105: 0 | CM105: 0 | CN105: 0 | CO105: 0 | CP105: 0 | CQ105: 0 | CR105: 0 | CS105: 0 | CT105: 0 | CU105: 0 | CV105: 0 | CW105: 0 | CX105: 0 | CY105: 0 | CZ105: 0 | DA105: 0 | DB105: 0 | DC105: 0 | DD105: 0 | DE105: 0 | DF105: 0 | DG105: 0 | DH105: 0 | DI105: 0 | DJ105: 0 | DK105: 0 | DL105: 0 | DM105: 0 | DN105: 0 | DO105: 0 | DP105: 0 | DQ105: 0 | DR105: 0 | DS105: 0 | DT105: 0 | DU105: 0 | DV105: 0 | DW105: 0 | DX105: 0 | DY105: 0 | DZ105: 0 | EA105: 0 | EB105: 0 | EC105: 0 | ED105: 0 | EE105: 0 | EF105: 0 | EG105: 0 | EH105: 0 | EI105: =EI64 -> 0 | EJ105: 0 | EK105: 0 | EL105: 0 | EM105: 0 | EN105: 0 | EO105: 0 | EP105: 0 | EQ105: 0 | ER105: 0 | ES105: 0 | ET105: 0 | EU105: 0 | EV105: 0 | EW105: 0 | EX105: 0 | EY105: 0 | EZ105: 0 | FA105: 0 | FB105: 0 | FC105: 0
D106: Interest During Construction | E106: Euro | J106: =J153 -> 0 | K106: =K153 -> 0 | L106: 0 | M106: 0 | N106: 0 | O106: 0 | P106: 0 | Q106: 0 | R106: 0.4993335398 | S106: 1.996420055 | T106: 3.757667133 | U106: 5.79891022 | V106: 8.129257562 | W106: 10.74964175 | X106: 13.65170693 | Y106: 16.8171669 | Z106: 20.2177397 | AA106: 23.81571981 | AB106: 27.56519287 | AC106: 31.41383719 | AD106: 35.30519759 | AE106: 39.18126809 | AF106: 42.98518791 | AG106: 46.6638429 | AH106: 50.17017534 | AI106: 53.46503598 | AJ106: 56.51846021 | AK106: 59.31030819 | AL106: 61.83026947 | AM106: 64.07728882 | AN106: 66.05851516 | AO106: 67.78790611 | AP106: 69.28463339 | AQ106: 70.57143212 | AR106: 71.67301968 | AS106: 72.61468364 | AT106: 73.42110649 | AU106: 73.72468932 | AV106: 74.02934786 | AW106: 74.33508595 | AX106: 0 | AY106: 0 | AZ106: 0 | BA106: 0 | BB106: 0 | BC106: 0 | BD106: 0 | BE106: 0 | BF106: 0 | BG106: 0 | BH106: 0 | BI106: 0 | BJ106: 0 | BK106: 0 | BL106: 0 | BM106: 0 | BN106: 0 | BO106: 0 | BP106: 0 | BQ106: 0 | BR106: 0 | BS106: 0 | BT106: 0 | BU106: 0 | BV106: 0 | BW106: =BW153 -> 0 | BX106: 0 | BY106: 0 | BZ106: 0 | CA106: 0 | CB106: 0 | CC106: 0 | CD106: 0 | CE106: 0 | CF106: 0 | CG106: 0 | CH106: 0 | CI106: 0 | CJ106: 0 | CK106: 0 | CL106: 0 | CM106: 0 | CN106: 0 | CO106: 0 | CP106: 0 | CQ106: 0 | CR106: 0 | CS106: 0 | CT106: 0 | CU106: 0 | CV106: 0 | CW106: 0 | CX106: 0 | CY106: 0 | CZ106: 0 | DA106: 0 | DB106: 0 | DC106: 0 | DD106: 0 | DE106: 0 | DF106: 0 | DG106: 0 | DH106: 0 | DI106: 0 | DJ106: 0 | DK106: 0 | DL106: 0 | DM106: 0 | DN106: 0 | DO106: 0 | DP106: 0 | DQ106: 0 | DR106: 0 | DS106: 0 | DT106: 0 | DU106: 0 | DV106: 0 | DW106: 0 | DX106: 0 | DY106: 0 | DZ106: 0 | EA106: 0 | EB106: 0 | EC106: 0 | ED106: 0 | EE106: 0 | EF106: 0 | EG106: 0 | EH106: 0 | EI106: =EI153 -> 0 | EJ106: 0 | EK106: 0 | EL106: 0 | EM106: 0 | EN106: 0 | EO106: 0 | EP106: 0 | EQ106: 0 | ER106: 0 | ES106: 0 | ET106: 0 | EU106: 0 | EV106: 0 | EW106: 0 | EX106: 0 | EY106: 0 | EZ106: 0 | FA106: 0 | FB106: 0 | FC106: 0
D107: Up-Front Fees | E107: Euro | J107: =J161 -> 265.3115622 | K107: =K161 -> 0 | L107: 0 | M107: 0 | N107: 0 | O107: 0 | P107: 0 | Q107: 0 | R107: 0 | S107: 0 | T107: 0 | U107: 0 | V107: 0 | W107: 0 | X107: 0 | Y107: 0 | Z107: 0 | AA107: 0 | AB107: 0 | AC107: 0 | AD107: 0 | AE107: 0 | AF107: 0 | AG107: 0 | AH107: 0 | AI107: 0 | AJ107: 0 | AK107: 0 | AL107: 0 | AM107: 0 | AN107: 0 | AO107: 0 | AP107: 0 | AQ107: 0 | AR107: 0 | AS107: 0 | AT107: 0 | AU107: 0 | AV107: 0 | AW107: 0 | AX107: 0 | AY107: 0 | AZ107: 0 | BA107: 0 | BB107: 0 | BC107: 0 | BD107: 0 | BE107: 0 | BF107: 0 | BG107: 0 | BH107: 0 | BI107: 0 | BJ107: 0 | BK107: 0 | BL107: 0 | BM107: 0 | BN107: 0 | BO107: 0 | BP107: 0 | BQ107: 0 | BR107: 0 | BS107: 0 | BT107: 0 | BU107: 0 | BV107: 0 | BW107: =BW161 -> 0 | BX107: 0 | BY107: 0 | BZ107: 0 | CA107: 0 | CB107: 0 | CC107: 0 | CD107: 0 | CE107: 0 | CF107: 0 | CG107: 0 | CH107: 0 | CI107: 0 | CJ107: 0 | CK107: 0 | CL107: 0 | CM107: 0 | CN107: 0 | CO107: 0 | CP107: 0 | CQ107: 0 | CR107: 0 | CS107: 0 | CT107: 0 | CU107: 0 | CV107: 0 | CW107: 0 | CX107: 0 | CY107: 0 | CZ107: 0 | DA107: 0 | DB107: 0 | DC107: 0 | DD107: 0 | DE107: 0 | DF107: 0 | DG107: 0 | DH107: 0 | DI107: 0 | DJ107: 0 | DK107: 0 | DL107: 0 | DM107: 0 | DN107: 0 | DO107: 0 | DP107: 0 | DQ107: 0 | DR107: 0 | DS107: 0 | DT107: 0 | DU107: 0 | DV107: 0 | DW107: 0 | DX107: 0 | DY107: 0 | DZ107: 0 | EA107: 0 | EB107: 0 | EC107: 0 | ED107: 0 | EE107: 0 | EF107: 0 | EG107: 0 | EH107: 0 | EI107: =EI161 -> 0 | EJ107: 0 | EK107: 0 | EL107: 0 | EM107: 0 | EN107: 0 | EO107: 0 | EP107: 0 | EQ107: 0 | ER107: 0 | ES107: 0 | ET107: 0 | EU107: 0 | EV107: 0 | EW107: 0 | EX107: 0 | EY107: 0 | EZ107: 0 | FA107: 0 | FB107: 0 | FC107: 0
D108: Commitment Fees | E108: Euro | J108: =J165 -> 12.89708983 | K108: =K165 -> 12.89708983 | L108: 12.89708983 | M108: 12.89708983 | N108: 12.89708983 | O108: 12.89708983 | P108: 12.89708983 | Q108: 12.89708983 | R108: 12.81386757 | S108: 12.56435315 | T108: 12.27081197 | U108: 11.93060479 | V108: 11.54221357 | W108: 11.10548287 | X108: 10.62180534 | Y108: 10.09422868 | Z108: 9.527466546 | AA108: 8.927803194 | AB108: 8.302891019 | AC108: 7.661450298 | AD108: 7.012890231 | AE108: 6.366878481 | AF108: 5.732891846 | AG108: 5.119782681 | AH108: 4.53539394 | AI108: 3.9862505 | AJ108: 3.477346462 | AK108: 3.012038465 | AL108: 2.592044918 | AM108: 2.217541694 | AN108: 1.887337303 | AO108: 1.599105478 | AP108: 1.349650931 | AQ108: 1.135184476 | AR108: 0.9515865507 | AS108: 0.7946425562 | AT108: 0.6602387478 | AU108: 0.6096416107 | AV108: 0.5588651863 | AW108: 0.507908839 | AX108: 0 | AY108: 0 | AZ108: 0 | BA108: 0 | BB108: 0 | BC108: 0 | BD108: 0 | BE108: 0 | BF108: 0 | BG108: 0 | BH108: 0 | BI108: 0 | BJ108: 0 | BK108: 0 | BL108: 0 | BM108: 0 | BN108: 0 | BO108: 0 | BP108: 0 | BQ108: 0 | BR108: 0 | BS108: 0 | BT108: 0 | BU108: 0 | BV108: 0 | BW108: =BW165 -> 0 | BX108: 0 | BY108: 0 | BZ108: 0 | CA108: 0 | CB108: 0 | CC108: 0 | CD108: 0 | CE108: 0 | CF108: 0 | CG108: 0 | CH108: 0 | CI108: 0 | CJ108: 0 | CK108: 0 | CL108: 0 | CM108: 0 | CN108: 0 | CO108: 0 | CP108: 0 | CQ108: 0 | CR108: 0 | CS108: 0 | CT108: 0 | CU108: 0 | CV108: 0 | CW108: 0 | CX108: 0 | CY108: 0 | CZ108: 0 | DA108: 0 | DB108: 0 | DC108: 0 | DD108: 0 | DE108: 0 | DF108: 0 | DG108: 0 | DH108: 0 | DI108: 0 | DJ108: 0 | DK108: 0 | DL108: 0 | DM108: 0 | DN108: 0 | DO108: 0 | DP108: 0 | DQ108: 0 | DR108: 0 | DS108: 0 | DT108: 0 | DU108: 0 | DV108: 0 | DW108: 0 | DX108: 0 | DY108: 0 | DZ108: 0 | EA108: 0 | EB108: 0 | EC108: 0 | ED108: 0 | EE108: 0 | EF108: 0 | EG108: 0 | EH108: 0 | EI108: =EI165 -> 0 | EJ108: 0 | EK108: 0 | EL108: 0 | EM108: 0 | EN108: 0 | EO108: 0 | EP108: 0 | EQ108: 0 | ER108: 0 | ES108: 0 | ET108: 0 | EU108: 0 | EV108: 0 | EW108: 0 | EX108: 0 | EY108: 0 | EZ108: 0 | FA108: 0 | FB108: 0 | FC108: 0
D109: PRG Pre-COD | E109: Euro | J109: =J171 -> 0 | K109: =K171 -> 0 | L109: 0 | M109: 0 | N109: 0 | O109: 0 | P109: 0 | Q109: 0 | R109: 0.1307778319 | S109: 0.5228719191 | T109: 0.9841509159 | U109: 1.5187622 | V109: 2.129091266 | W109: 2.815382362 | X109: 3.575447052 | Y109: 4.404496092 | Z109: 5.295122303 | AA109: 6.237450427 | AB109: 7.219455275 | AC109: 8.227433551 | AD109: 9.24659937 | AE109: 10.26176069 | AF109: 11.2580254 | AG109: 12.22148266 | AH109: 13.13980783 | AI109: 14.00274752 | AJ109: 14.80245386 | AK109: 15.53365214 | AL109: 16.19364201 | AM109: 16.78214707 | AN109: 17.30103969 | AO109: 17.75397541 | AP109: 18.14597541 | AQ109: 18.48299413 | AR109: 18.77150515 | AS109: 19.01813143 | AT109: 19.22933741 | AU109: 19.3088472 | AV109: 19.38863873 | AW109: 19.46871299 | AX109: 0 | AY109: 0 | AZ109: 0 | BA109: 0 | BB109: 0 | BC109: 0 | BD109: 0 | BE109: 0 | BF109: 0 | BG109: 0 | BH109: 0 | BI109: 0 | BJ109: 0 | BK109: 0 | BL109: 0 | BM109: 0 | BN109: 0 | BO109: 0 | BP109: 0 | BQ109: 0 | BR109: 0 | BS109: 0 | BT109: 0 | BU109: 0 | BV109: 0 | BW109: =BW171 -> 0 | BX109: 0 | BY109: 0 | BZ109: 0 | CA109: 0 | CB109: 0 | CC109: 0 | CD109: 0 | CE109: 0 | CF109: 0 | CG109: 0 | CH109: 0 | CI109: 0 | CJ109: 0 | CK109: 0 | CL109: 0 | CM109: 0 | CN109: 0 | CO109: 0 | CP109: 0 | CQ109: 0 | CR109: 0 | CS109: 0 | CT109: 0 | CU109: 0 | CV109: 0 | CW109: 0 | CX109: 0 | CY109: 0 | CZ109: 0 | DA109: 0 | DB109: 0 | DC109: 0 | DD109: 0 | DE109: 0 | DF109: 0 | DG109: 0 | DH109: 0 | DI109: 0 | DJ109: 0 | DK109: 0 | DL109: 0 | DM109: 0 | DN109: 0 | DO109: 0 | DP109: 0 | DQ109: 0 | DR109: 0 | DS109: 0 | DT109: 0 | DU109: 0 | DV109: 0 | DW109: 0 | DX109: 0 | DY109: 0 | DZ109: 0 | EA109: 0 | EB109: 0 | EC109: 0 | ED109: 0 | EE109: 0 | EF109: 0 | EG109: 0 | EH109: 0 | EI109: =EI171 -> 0 | EJ109: 0 | EK109: 0 | EL109: 0 | EM109: 0 | EN109: 0 | EO109: 0 | EP109: 0 | EQ109: 0 | ER109: 0 | ES109: 0 | ET109: 0 | EU109: 0 | EV109: 0 | EW109: 0 | EX109: 0 | EY109: 0 | EZ109: 0 | FA109: 0 | FB109: 0 | FC109: 0
D110: PRI Pre-COD | E110: Euro | J110: =J180 -> 0 | K110: =K180 -> 0.9143197099 | L110: 0.9924424789 | M110: 1.092253896 | N110: 1.21872956 | O110: 1.377361467 | P110: 1.574014695 | Q110: 1.814719063 | R110: 2.009096725 | S110: 2.06684149 | T110: 2.134775306 | U110: 2.213508968 | V110: 2.303393794 | W110: 2.404465755 | X110: 2.516402555 | Y110: 2.638498868 | Z110: 2.769663819 | AA110: 2.908443052 | AB110: 3.053065584 | AC110: 3.201513294 | AD110: 3.351608624 | AE110: 3.5011142 | AF110: 3.647836822 | AG110: 3.7897278 | AH110: 3.924972051 | AI110: 4.052059533 | AJ110: 4.169834467 | AK110: 4.277520032 | AL110: 4.374718539 | AM110: 4.461389285 | AN110: 4.537808016 | AO110: 4.604513095 | AP110: 4.662244005 | AQ110: 4.71187767 | AR110: 4.754367476 | AS110: 4.7906888 | AT110: 4.821793681 | AU110: 4.833503305 | AV110: 4.84525442 | AW110: 4.857047175 | AX110: 0 | AY110: 0 | AZ110: 0 | BA110: 0 | BB110: 0 | BC110: 0 | BD110: 0 | BE110: 0 | BF110: 0 | BG110: 0 | BH110: 0 | BI110: 0 | BJ110: 0 | BK110: 0 | BL110: 0 | BM110: 0 | BN110: 0 | BO110: 0 | BP110: 0 | BQ110: 0 | BR110: 0 | BS110: 0 | BT110: 0 | BU110: 0 | BV110: 0 | BW110: =BW180 -> 0 | BX110: 0 | BY110: 0 | BZ110: 0 | CA110: 0 | CB110: 0 | CC110: 0 | CD110: 0 | CE110: 0 | CF110: 0 | CG110: 0 | CH110: 0 | CI110: 0 | CJ110: 0 | CK110: 0 | CL110: 0 | CM110: 0 | CN110: 0 | CO110: 0 | CP110: 0 | CQ110: 0 | CR110: 0 | CS110: 0 | CT110: 0 | CU110: 0 | CV110: 0 | CW110: 0 | CX110: 0 | CY110: 0 | CZ110: 0 | DA110: 0 | DB110: 0 | DC110: 0 | DD110: 0 | DE110: 0 | DF110: 0 | DG110: 0 | DH110: 0 | DI110: 0 | DJ110: 0 | DK110: 0 | DL110: 0 | DM110: 0 | DN110: 0 | DO110: 0 | DP110: 0 | DQ110: 0 | DR110: 0 | DS110: 0 | DT110: 0 | DU110: 0 | DV110: 0 | DW110: 0 | DX110: 0 | DY110: 0 | DZ110: 0 | EA110: 0 | EB110: 0 | EC110: 0 | ED110: 0 | EE110: 0 | EF110: 0 | EG110: 0 | EH110: 0 | EI110: =EI180 -> 0 | EJ110: 0 | EK110: 0 | EL110: 0 | EM110: 0 | EN110: 0 | EO110: 0 | EP110: 0 | EQ110: 0 | ER110: 0 | ES110: 0 | ET110: 0 | EU110: 0 | EV110: 0 | EW110: 0 | EX110: 0 | EY110: 0 | EZ110: 0 | FA110: 0 | FB110: 0 | FC110: 0
D111: Withholding Tax Pre-COD | E111: Euro | J111: =J155 -> 0 | K111: =K155 -> 0 | L111: 0 | M111: 0 | N111: 0 | O111: 0 | P111: 0 | Q111: 0 | R111: 0.04048650323 | S111: 0.1618718963 | T111: 0.3046757135 | U111: 0.4701819097 | V111: 0.6591289915 | W111: 0.871592574 | X111: 1.106895156 | Y111: 1.363554073 | Z111: 1.639276192 | AA111: 1.931004309 | AB111: 2.235015638 | AC111: 2.547067881 | AD111: 2.862583589 | AE111: 3.176859575 | AF111: 3.485285506 | AG111: 3.783554829 | AH111: 4.067852055 | AI111: 4.335002917 | AJ111: 4.582577855 | AK111: 4.808943907 | AL111: 5.013265093 | AM111: 5.19545585 | AN111: 5.356095824 | AO111: 5.496316712 | AP111: 5.617672978 | AQ111: 5.72200801 | AR111: 5.81132592 | AS111: 5.887677052 | AT111: 5.953062689 | AU111: 5.977677512 | AV111: 6.002379556 | AW111: 6.027169131 | AX111: 0 | AY111: 0 | AZ111: 0 | BA111: 0 | BB111: 0 | BC111: 0 | BD111: 0 | BE111: 0 | BF111: 0 | BG111: 0 | BH111: 0 | BI111: 0 | BJ111: 0 | BK111: 0 | BL111: 0 | BM111: 0 | BN111: 0 | BO111: 0 | BP111: 0 | BQ111: 0 | BR111: 0 | BS111: 0 | BT111: 0 | BU111: 0 | BV111: 0 | BW111: =BW155 -> 0 | BX111: 0 | BY111: 0 | BZ111: 0 | CA111: 0 | CB111: 0 | CC111: 0 | CD111: 0 | CE111: 0 | CF111: 0 | CG111: 0 | CH111: 0 | CI111: 0 | CJ111: 0 | CK111: 0 | CL111: 0 | CM111: 0 | CN111: 0 | CO111: 0 | CP111: 0 | CQ111: 0 | CR111: 0 | CS111: 0 | CT111: 0 | CU111: 0 | CV111: 0 | CW111: 0 | CX111: 0 | CY111: 0 | CZ111: 0 | DA111: 0 | DB111: 0 | DC111: 0 | DD111: 0 | DE111: 0 | DF111: 0 | DG111: 0 | DH111: 0 | DI111: 0 | DJ111: 0 | DK111: 0 | DL111: 0 | DM111: 0 | DN111: 0 | DO111: 0 | DP111: 0 | DQ111: 0 | DR111: 0 | DS111: 0 | DT111: 0 | DU111: 0 | DV111: 0 | DW111: 0 | DX111: 0 | DY111: 0 | DZ111: 0 | EA111: 0 | EB111: 0 | EC111: 0 | ED111: 0 | EE111: 0 | EF111: 0 | EG111: 0 | EH111: 0 | EI111: =EI155 -> 0 | EJ111: 0 | EK111: 0 | EL111: 0 | EM111: 0 | EN111: 0 | EO111: 0 | EP111: 0 | EQ111: 0 | ER111: 0 | ES111: 0 | ET111: 0 | EU111: 0 | EV111: 0 | EW111: 0 | EX111: 0 | EY111: 0 | EZ111: 0 | FA111: 0 | FB111: 0 | FC111: 0
D112: DSRA | E112: Euro | J112: =J192 -> 0 | K112: =K192 -> 0 | L112: 0 | M112: 0 | N112: 0 | O112: 0 | P112: 0 | Q112: 0 | R112: 0 | S112: 0 | T112: 0 | U112: 0 | V112: 0 | W112: 0 | X112: 0 | Y112: 0 | Z112: 0 | AA112: 0 | AB112: 0 | AC112: 0 | AD112: 0 | AE112: 0 | AF112: 0 | AG112: 0 | AH112: 0 | AI112: 0 | AJ112: 0 | AK112: 0 | AL112: 0 | AM112: 0 | AN112: 0 | AO112: 0 | AP112: 0 | AQ112: 0 | AR112: 0 | AS112: 0 | AT112: 0 | AU112: 0 | AV112: 0 | AW112: 939.6451162 | AX112: 0 | AY112: 0 | AZ112: 0 | BA112: 0 | BB112: 0 | BC112: 0 | BD112: 0 | BE112: 0 | BF112: 0 | BG112: 0 | BH112: 0 | BI112: 0 | BJ112: 0 | BK112: 0 | BL112: 0 | BM112: 0 | BN112: 0 | BO112: 0 | BP112: 0 | BQ112: 0 | BR112: 0 | BS112: 0 | BT112: 0 | BU112: 0 | BV112: 0 | BW112: =BW192 -> 0 | BX112: 0 | BY112: 0 | BZ112: 0 | CA112: 0 | CB112: 0 | CC112: 0 | CD112: 0 | CE112: 0 | CF112: 0 | CG112: 0 | CH112: 0 | CI112: 0 | CJ112: 0 | CK112: 0 | CL112: 0 | CM112: 0 | CN112: 0 | CO112: 0 | CP112: 0 | CQ112: 0 | CR112: 0 | CS112: 0 | CT112: 0 | CU112: 0 | CV112: 0 | CW112: 0 | CX112: 0 | CY112: 0 | CZ112: 0 | DA112: 0 | DB112: 0 | DC112: 0 | DD112: 0 | DE112: 0 | DF112: 0 | DG112: 0 | DH112: 0 | DI112: 0 | DJ112: 0 | DK112: 0 | DL112: 0 | DM112: 0 | DN112: 0 | DO112: 0 | DP112: 0 | DQ112: 0 | DR112: 0 | DS112: 0 | DT112: 0 | DU112: 0 | DV112: 0 | DW112: 0 | DX112: 0 | DY112: 0 | DZ112: 0 | EA112: 0 | EB112: 0 | EC112: 0 | ED112: 0 | EE112: 0 | EF112: 0 | EG112: 0 | EH112: 0 | EI112: =EI192 -> 0 | EJ112: 0 | EK112: 0 | EL112: 0 | EM112: 0 | EN112: 0 | EO112: 0 | EP112: 0 | EQ112: 0 | ER112: 0 | ES112: 0 | ET112: 0 | EU112: 0 | EV112: 0 | EW112: 0 | EX112: 0 | EY112: 0 | EZ112: 0 | FA112: 0 | FB112: 0 | FC112: 0
D113: Total Funding Needs Computed | E113: Euro | J113: =SUM(J104:J112) -> 1354.547718 | K113: =SUM(K104:K112) -> 115.7374357 | L113: 147.8687661 | M113: 187.3713547 | N113: 235.0102319 | O113: 291.338116 | P113: 356.5990635 | Q113: 430.6336315 | R113: 513.2868052 | S113: 603.8561412 | T113: 699.8547724 | U113: 798.9762317 | V113: 898.4174345 | W113: 994.993776 | X113: 1085.300561 | Y113: 1165.910677 | Z113: 1233.593181 | AA113: 1285.533619 | AB113: 1319.535198 | AC113: 1334.180708 | AD113: 1328.938457 | AE113: 1304.201079 | AF113: 1261.25314 | AG113: 1202.171123 | AH113: 1129.666505 | AI113: 1046.888307 | AJ113: 957.2050222 | AK113: 863.9867264 | AL113: 770.4066314 | AM113: 679.2776054 | AN113: 592.934039 | AO113: 513.1636394 | AP113: 441.1881357 | AQ113: 377.6871611 | AR113: 322.8562173 | AS113: 276.4878345 | AT113: 104.085539 | AU113: 104.4543589 | AV113: 104.8244858 | AW113: 1044.84104 | AX113: 0 | AY113: 0 | AZ113: 0 | BA113: 0 | BB113: 0 | BC113: 0 | BD113: 0 | BE113: 0 | BF113: 0 | BG113: 0 | BH113: 0 | BI113: 0 | BJ113: 0 | BK113: 0 | BL113: 0 | BM113: 0 | BN113: 0 | BO113: 0 | BP113: 0 | BQ113: 0 | BR113: 0 | BS113: 0 | BT113: 0 | BU113: 0 | BV113: 0 | BW113: =SUM(BW104:BW112) -> 0 | BX113: 0 | BY113: 0 | BZ113: 0 | CA113: 0 | CB113: 0 | CC113: 0 | CD113: 0 | CE113: 0 | CF113: 0 | CG113: 0 | CH113: 0 | CI113: 0 | CJ113: 0 | CK113: 0 | CL113: 0 | CM113: 0 | CN113: 0 | CO113: 0 | CP113: 0 | CQ113: 0 | CR113: 0 | CS113: 0 | CT113: 0 | CU113: 0 | CV113: 0 | CW113: 0 | CX113: 0 | CY113: 0 | CZ113: 0 | DA113: 0 | DB113: 0 | DC113: 0 | DD113: 0 | DE113: 0 | DF113: 0 | DG113: 0 | DH113: 0 | DI113: 0 | DJ113: 0 | DK113: 0 | DL113: 0 | DM113: 0 | DN113: 0 | DO113: 0 | DP113: 0 | DQ113: 0 | DR113: 0 | DS113: 0 | DT113: 0 | DU113: 0 | DV113: 0 | DW113: 0 | DX113: 0 | DY113: 0 | DZ113: 0 | EA113: 0 | EB113: 0 | EC113: 0 | ED113: 0 | EE113: 0 | EF113: 0 | EG113: 0 | EH113: 0 | EI113: =SUM(EI104:EI112) -> 0 | EJ113: 0 | EK113: 0 | EL113: 0 | EM113: 0 | EN113: 0 | EO113: 0 | EP113: 0 | EQ113: 0 | ER113: 0 | ES113: 0 | ET113: 0 | EU113: 0 | EV113: 0 | EW113: 0 | EX113: 0 | EY113: 0 | EZ113: 0 | FA113: 0 | FB113: 0 | FC113: 0
D115: Total Funding Needs Fixed Copy Paste | J115: 1354.547718 | K115: 115.7374357 | L115: 147.8687661 | M115: 187.3713547 | N115: 235.0102319 | O115: 291.338116 | P115: 356.5990635 | Q115: 430.6336315 | R115: 513.2868052 | S115: 603.8561412 | T115: 699.8547724 | U115: 798.9762317 | V115: 898.4174345 | W115: 994.993776 | X115: 1085.300561 | Y115: 1165.910677 | Z115: 1233.593181 | AA115: 1285.533619 | AB115: 1319.535198 | AC115: 1334.180708 | AD115: 1328.938457 | AE115: 1304.201079 | AF115: 1261.25314 | AG115: 1202.171123 | AH115: 1129.666505 | AI115: 1046.888307 | AJ115: 957.2050222 | AK115: 863.9867264 | AL115: 770.4066314 | AM115: 679.2776054 | AN115: 592.934039 | AO115: 513.1636394 | AP115: 441.1881357 | AQ115: 377.6871611 | AR115: 322.8562173 | AS115: 276.4878345 | AT115: 104.085539 | AU115: 104.4543589 | AV115: 104.8244858 | AW115: 1044.84104 | AX115: 0 | AY115: 0 | AZ115: 0 | BA115: 0 | BB115: 0 | BC115: 0 | BD115: 0 | BE115: 0 | BF115: 0 | BG115: 0 | BH115: 0 | BI115: 0 | BJ115: 0 | BK115: 0 | BL115: 0 | BM115: 0 | BN115: 0 | BO115: 0 | BP115: 0 | BQ115: 0 | BR115: 0 | BS115: 0 | BT115: 0 | BU115: 0 | BV115: 0 | BW115: 0 | BX115: 0 | BY115: 0 | BZ115: 0 | CA115: 0 | CB115: 0 | CC115: 0 | CD115: 0 | CE115: 0 | CF115: 0 | CG115: 0 | CH115: 0 | CI115: 0 | CJ115: 0 | CK115: 0 | CL115: 0 | CM115: 0 | CN115: 0 | CO115: 0 | CP115: 0 | CQ115: 0 | CR115: 0 | CS115: 0 | CT115: 0 | CU115: 0 | CV115: 0 | CW115: 0 | CX115: 0 | CY115: 0 | CZ115: 0 | DA115: 0 | DB115: 0 | DC115: 0 | DD115: 0 | DE115: 0 | DF115: 0 | DG115: 0 | DH115: 0 | DI115: 0 | DJ115: 0 | DK115: 0 | DL115: 0 | DM115: 0 | DN115: 0 | DO115: 0 | DP115: 0 | DQ115: 0 | DR115: 0 | DS115: 0 | DT115: 0 | DU115: 0 | DV115: 0 | DW115: 0 | DX115: 0 | DY115: 0 | DZ115: 0 | EA115: 0 | EB115: 0 | EC115: 0 | ED115: 0 | EE115: 0 | EF115: 0 | EG115: 0 | EH115: 0 | EI115: 0 | EJ115: 0 | EK115: 0 | EL115: 0 | EM115: 0 | EN115: 0 | EO115: 0 | EP115: 0 | EQ115: 0 | ER115: 0 | ES115: 0 | ET115: 0 | EU115: 0 | EV115: 0 | EW115: 0 | EX115: 0 | EY115: 0 | EZ115: 0 | FA115: 0 | FB115: 0 | FC115: 0
D116: Total Funding Needs UDF
D118: Difference | H118: funding_diff | I118: =SUM(J118:FC118) -> 0 | J118: =J113-J115 -> 0 | K118: =K113-K115 -> 0 | L118: 0 | M118: 0 | N118: 0 | O118: 0 | P118: 0 | Q118: 0 | R118: 0 | S118: 0 | T118: 0 | U118: 0 | V118: 0 | W118: 0 | X118: 0 | Y118: 0 | Z118: 0 | AA118: 0 | AB118: 0 | AC118: 0 | AD118: 0 | AE118: 0 | AF118: 0 | AG118: 0 | AH118: 0 | AI118: 0 | AJ118: 0 | AK118: 0 | AL118: 0 | AM118: 0 | AN118: 0 | AO118: 0 | AP118: 0 | AQ118: 0 | AR118: 0 | AS118: 0 | AT118: 0 | AU118: 0 | AV118: 0 | AW118: 0 | AX118: 0 | AY118: 0 | AZ118: 0 | BA118: 0 | BB118: 0 | BC118: 0 | BD118: 0 | BE118: 0 | BF118: 0 | BG118: 0 | BH118: 0 | BI118: 0 | BJ118: 0 | BK118: 0 | BL118: 0 | BM118: 0 | BN118: 0 | BO118: 0 | BP118: 0 | BQ118: 0 | BR118: 0 | BS118: 0 | BT118: 0 | BU118: 0 | BV118: 0 | BW118: =BW113-BW115 -> 0 | BX118: 0 | BY118: 0 | BZ118: 0 | CA118: 0 | CB118: 0 | CC118: 0 | CD118: 0 | CE118: 0 | CF118: 0 | CG118: 0 | CH118: 0 | CI118: 0 | CJ118: 0 | CK118: 0 | CL118: 0 | CM118: 0 | CN118: 0 | CO118: 0 | CP118: 0 | CQ118: 0 | CR118: 0 | CS118: 0 | CT118: 0 | CU118: 0 | CV118: 0 | CW118: 0 | CX118: 0 | CY118: 0 | CZ118: 0 | DA118: 0 | DB118: 0 | DC118: 0 | DD118: 0 | DE118: 0 | DF118: 0 | DG118: 0 | DH118: 0 | DI118: 0 | DJ118: 0 | DK118: 0 | DL118: 0 | DM118: 0 | DN118: 0 | DO118: 0 | DP118: 0 | DQ118: 0 | DR118: 0 | DS118: 0 | DT118: 0 | DU118: 0 | DV118: 0 | DW118: 0 | DX118: 0 | DY118: 0 | DZ118: 0 | EA118: 0 | EB118: 0 | EC118: 0 | ED118: 0 | EE118: 0 | EF118: 0 | EG118: 0 | EH118: 0 | EI118: =EI113-EI115 -> 0 | EJ118: 0 | EK118: 0 | EL118: 0 | EM118: 0 | EN118: 0 | EO118: 0 | EP118: 0 | EQ118: 0 | ER118: 0 | ES118: 0 | ET118: 0 | EU118: 0 | EV118: 0 | EW118: 0 | EX118: 0 | EY118: 0 | EZ118: 0 | FA118: 0 | FB118: 0 | FC118: 0
C120: Equity Up-Front
D121: Commitment | E121: Euro | G121: =G95 -> 2947.906247 | J121: =$G$121 -> 2947.906247 | K121: =$G$121 -> 2947.906247 | L121: 2947.906247 | M121: 2947.906247 | N121: 2947.906247 | O121: 2947.906247 | P121: 2947.906247 | Q121: 2947.906247 | R121: 2947.906247 | S121: 2947.906247 | T121: 2947.906247 | U121: 2947.906247 | V121: 2947.906247 | W121: 2947.906247 | X121: 2947.906247 | Y121: 2947.906247 | Z121: 2947.906247 | AA121: 2947.906247 | AB121: 2947.906247 | AC121: 2947.906247 | AD121: 2947.906247 | AE121: 2947.906247 | AF121: 2947.906247 | AG121: 2947.906247 | AH121: 2947.906247 | AI121: 2947.906247 | AJ121: 2947.906247 | AK121: 2947.906247 | AL121: 2947.906247 | AM121: 2947.906247 | AN121: 2947.906247 | AO121: 2947.906247 | AP121: 2947.906247 | AQ121: 2947.906247 | AR121: 2947.906247 | AS121: 2947.906247 | AT121: 2947.906247 | AU121: 2947.906247 | AV121: 2947.906247 | AW121: 2947.906247 | AX121: 2947.906247 | AY121: 2947.906247 | AZ121: 2947.906247 | BA121: 2947.906247 | BB121: 2947.906247 | BC121: 2947.906247 | BD121: 2947.906247 | BE121: 2947.906247 | BF121: 2947.906247 | BG121: 2947.906247 | BH121: 2947.906247 | BI121: 2947.906247 | BJ121: 2947.906247 | BK121: 2947.906247 | BL121: 2947.906247 | BM121: 2947.906247 | BN121: 2947.906247 | BO121: 2947.906247 | BP121: 2947.906247 | BQ121: 2947.906247 | BR121: 2947.906247 | BS121: 2947.906247 | BT121: 2947.906247 | BU121: 2947.906247 | BV121: 2947.906247 | BW121: =$G$121 -> 2947.906247 | BX121: 2947.906247 | BY121: 2947.906247 | BZ121: 2947.906247 | CA121: 2947.906247 | CB121: 2947.906247 | CC121: 2947.906247 | CD121: 2947.906247 | CE121: 2947.906247 | CF121: 2947.906247 | CG121: 2947.906247 | CH121: 2947.906247 | CI121: 2947.906247 | CJ121: 2947.906247 | CK121: 2947.906247 | CL121: 2947.906247 | CM121: 2947.906247 | CN121: 2947.906247 | CO121: 2947.906247 | CP121: 2947.906247 | CQ121: 2947.906247 | CR121: 2947.906247 | CS121: 2947.906247 | CT121: 2947.906247 | CU121: 2947.906247 | CV121: 2947.906247 | CW121: 2947.906247 | CX121: 2947.906247 | CY121: 2947.906247 | CZ121: 2947.906247 | DA121: 2947.906247 | DB121: 2947.906247 | DC121: 2947.906247 | DD121: 2947.906247 | DE121: 2947.906247 | DF121: 2947.906247 | DG121: 2947.906247 | DH121: 2947.906247 | DI121: 2947.906247 | DJ121: 2947.906247 | DK121: 2947.906247 | DL121: 2947.906247 | DM121: 2947.906247 | DN121: 2947.906247 | DO121: 2947.906247 | DP121: 2947.906247 | DQ121: 2947.906247 | DR121: 2947.906247 | DS121: 2947.906247 | DT121: 2947.906247 | DU121: 2947.906247 | DV121: 2947.906247 | DW121: 2947.906247 | DX121: 2947.906247 | DY121: 2947.906247 | DZ121: 2947.906247 | EA121: 2947.906247 | EB121: 2947.906247 | EC121: 2947.906247 | ED121: 2947.906247 | EE121: 2947.906247 | EF121: 2947.906247 | EG121: 2947.906247 | EH121: 2947.906247 | EI121: =$G$121 -> 2947.906247 | EJ121: 2947.906247 | EK121: 2947.906247 | EL121: 2947.906247 | EM121: 2947.906247 | EN121: 2947.906247 | EO121: 2947.906247 | EP121: 2947.906247 | EQ121: 2947.906247 | ER121: 2947.906247 | ES121: 2947.906247 | ET121: 2947.906247 | EU121: 2947.906247 | EV121: 2947.906247 | EW121: 2947.906247 | EX121: 2947.906247 | EY121: 2947.906247 | EZ121: 2947.906247 | FA121: 2947.906247 | FB121: 2947.906247 | FC121: 2947.906247
D122: Less: Already Issued | E122: Euro | J122: =J125 -> 0 | K122: =K125 -> 1354.547718 | L122: 1470.285154 | M122: 1618.15392 | N122: 1805.525275 | O122: 2040.535507 | P122: 2331.873623 | Q122: 2688.472686 | R122: 2947.906247 | S122: 2947.906247 | T122: 2947.906247 | U122: 2947.906247 | V122: 2947.906247 | W122: 2947.906247 | X122: 2947.906247 | Y122: 2947.906247 | Z122: 2947.906247 | AA122: 2947.906247 | AB122: 2947.906247 | AC122: 2947.906247 | AD122: 2947.906247 | AE122: 2947.906247 | AF122: 2947.906247 | AG122: 2947.906247 | AH122: 2947.906247 | AI122: 2947.906247 | AJ122: 2947.906247 | AK122: 2947.906247 | AL122: 2947.906247 | AM122: 2947.906247 | AN122: 2947.906247 | AO122: 2947.906247 | AP122: 2947.906247 | AQ122: 2947.906247 | AR122: 2947.906247 | AS122: 2947.906247 | AT122: 2947.906247 | AU122: 2947.906247 | AV122: 2947.906247 | AW122: 2947.906247 | AX122: 2947.906247 | AY122: 2947.906247 | AZ122: 2947.906247 | BA122: 2947.906247 | BB122: 2947.906247 | BC122: 2947.906247 | BD122: 2947.906247 | BE122: 2947.906247 | BF122: 2947.906247 | BG122: 2947.906247 | BH122: 2947.906247 | BI122: 2947.906247 | BJ122: 2947.906247 | BK122: 2947.906247 | BL122: 2947.906247 | BM122: 2947.906247 | BN122: 2947.906247 | BO122: 2947.906247 | BP122: 2947.906247 | BQ122: 2947.906247 | BR122: 2947.906247 | BS122: 2947.906247 | BT122: 2947.906247 | BU122: 2947.906247 | BV122: 2947.906247 | BW122: =BW125 -> 2947.906247 | BX122: 2947.906247 | BY122: 2947.906247 | BZ122: 2947.906247 | CA122: 2947.906247 | CB122: 2947.906247 | CC122: 2947.906247 | CD122: 2947.906247 | CE122: 2947.906247 | CF122: 2947.906247 | CG122: 2947.906247 | CH122: 2947.906247 | CI122: 2947.906247 | CJ122: 2947.906247 | CK122: 2947.906247 | CL122: 2947.906247 | CM122: 2947.906247 | CN122: 2947.906247 | CO122: 2947.906247 | CP122: 2947.906247 | CQ122: 2947.906247 | CR122: 2947.906247 | CS122: 2947.906247 | CT122: 2947.906247 | CU122: 2947.906247 | CV122: 2947.906247 | CW122: 2947.906247 | CX122: 2947.906247 | CY122: 2947.906247 | CZ122: 2947.906247 | DA122: 2947.906247 | DB122: 2947.906247 | DC122: 2947.906247 | DD122: 2947.906247 | DE122: 2947.906247 | DF122: 2947.906247 | DG122: 2947.906247 | DH122: 2947.906247 | DI122: 2947.906247 | DJ122: 2947.906247 | DK122: 2947.906247 | DL122: 2947.906247 | DM122: 2947.906247 | DN122: 2947.906247 | DO122: 2947.906247 | DP122: 2947.906247 | DQ122: 2947.906247 | DR122: 2947.906247 | DS122: 2947.906247 | DT122: 2947.906247 | DU122: 2947.906247 | DV122: 2947.906247 | DW122: 2947.906247 | DX122: 2947.906247 | DY122: 2947.906247 | DZ122: 2947.906247 | EA122: 2947.906247 | EB122: 2947.906247 | EC122: 2947.906247 | ED122: 2947.906247 | EE122: 2947.906247 | EF122: 2947.906247 | EG122: 2947.906247 | EH122: 2947.906247 | EI122: =EI125 -> 2947.906247 | EJ122: 2947.906247 | EK122: 2947.906247 | EL122: 2947.906247 | EM122: 2947.906247 | EN122: 2947.906247 | EO122: 2947.906247 | EP122: 2947.906247 | EQ122: 2947.906247 | ER122: 2947.906247 | ES122: 2947.906247 | ET122: 2947.906247 | EU122: 2947.906247 | EV122: 2947.906247 | EW122: 2947.906247 | EX122: 2947.906247 | EY122: 2947.906247 | EZ122: 2947.906247 | FA122: 2947.906247 | FB122: 2947.906247 | FC122: 2947.906247
D123: Remaining Balance | E123: Euro | J123: =J121-J122 -> 2947.906247 | K123: =K121-K122 -> 1593.358529 | L123: 1477.621093 | M123: 1329.752327 | N123: 1142.380972 | O123: 907.3707401 | P123: 616.0326242 | Q123: 259.4335607 | R123: 0 | S123: 0 | T123: 0 | U123: 0 | V123: 0 | W123: 0 | X123: 0 | Y123: 0 | Z123: 0 | AA123: 0 | AB123: 0 | AC123: 0 | AD123: 0 | AE123: 0 | AF123: 0 | AG123: 0 | AH123: 0 | AI123: 0 | AJ123: 0 | AK123: 0 | AL123: 0 | AM123: 0 | AN123: 0 | AO123: 0 | AP123: 0 | AQ123: 0 | AR123: 0 | AS123: 0 | AT123: 0 | AU123: 0 | AV123: 0 | AW123: 0 | AX123: 0 | AY123: 0 | AZ123: 0 | BA123: 0 | BB123: 0 | BC123: 0 | BD123: 0 | BE123: 0 | BF123: 0 | BG123: 0 | BH123: 0 | BI123: 0 | BJ123: 0 | BK123: 0 | BL123: 0 | BM123: 0 | BN123: 0 | BO123: 0 | BP123: 0 | BQ123: 0 | BR123: 0 | BS123: 0 | BT123: 0 | BU123: 0 | BV123: 0 | BW123: =BW121-BW122 -> 0 | BX123: 0 | BY123: 0 | BZ123: 0 | CA123: 0 | CB123: 0 | CC123: 0 | CD123: 0 | CE123: 0 | CF123: 0 | CG123: 0 | CH123: 0 | CI123: 0 | CJ123: 0 | CK123: 0 | CL123: 0 | CM123: 0 | CN123: 0 | CO123: 0 | CP123: 0 | CQ123: 0 | CR123: 0 | CS123: 0 | CT123: 0 | CU123: 0 | CV123: 0 | CW123: 0 | CX123: 0 | CY123: 0 | CZ123: 0 | DA123: 0 | DB123: 0 | DC123: 0 | DD123: 0 | DE123: 0 | DF123: 0 | DG123: 0 | DH123: 0 | DI123: 0 | DJ123: 0 | DK123: 0 | DL123: 0 | DM123: 0 | DN123: 0 | DO123: 0 | DP123: 0 | DQ123: 0 | DR123: 0 | DS123: 0 | DT123: 0 | DU123: 0 | DV123: 0 | DW123: 0 | DX123: 0 | DY123: 0 | DZ123: 0 | EA123: 0 | EB123: 0 | EC123: 0 | ED123: 0 | EE123: 0 | EF123: 0 | EG123: 0 | EH123: 0 | EI123: =EI121-EI122 -> 0 | EJ123: 0 | EK123: 0 | EL123: 0 | EM123: 0 | EN123: 0 | EO123: 0 | EP123: 0 | EQ123: 0 | ER123: 0 | ES123: 0 | ET123: 0 | EU123: 0 | EV123: 0 | EW123: 0 | EX123: 0 | EY123: 0 | EZ123: 0 | FA123: 0 | FB123: 0 | FC123: 0
D125: Opening Balance | E125: Euro | J125: =I127 -> 0 | K125: =J127 -> 1354.547718 | L125: 1470.285154 | M125: 1618.15392 | N125: 1805.525275 | O125: 2040.535507 | P125: 2331.873623 | Q125: 2688.472686 | R125: 2947.906247 | S125: 2947.906247 | T125: 2947.906247 | U125: 2947.906247 | V125: 2947.906247 | W125: 2947.906247 | X125: 2947.906247 | Y125: 2947.906247 | Z125: 2947.906247 | AA125: 2947.906247 | AB125: 2947.906247 | AC125: 2947.906247 | AD125: 2947.906247 | AE125: 2947.906247 | AF125: 2947.906247 | AG125: 2947.906247 | AH125: 2947.906247 | AI125: 2947.906247 | AJ125: 2947.906247 | AK125: 2947.906247 | AL125: 2947.906247 | AM125: 2947.906247 | AN125: 2947.906247 | AO125: 2947.906247 | AP125: 2947.906247 | AQ125: 2947.906247 | AR125: 2947.906247 | AS125: 2947.906247 | AT125: 2947.906247 | AU125: 2947.906247 | AV125: 2947.906247 | AW125: 2947.906247 | AX125: 2947.906247 | AY125: 2947.906247 | AZ125: 2947.906247 | BA125: 2947.906247 | BB125: 2947.906247 | BC125: 2947.906247 | BD125: 2947.906247 | BE125: 2947.906247 | BF125: 2947.906247 | BG125: 2947.906247 | BH125: 2947.906247 | BI125: 2947.906247 | BJ125: 2947.906247 | BK125: 2947.906247 | BL125: 2947.906247 | BM125: 2947.906247 | BN125: 2947.906247 | BO125: 2947.906247 | BP125: 2947.906247 | BQ125: 2947.906247 | BR125: 2947.906247 | BS125: 2947.906247 | BT125: 2947.906247 | BU125: 2947.906247 | BV125: 2947.906247 | BW125: =BV127 -> 2947.906247 | BX125: 2947.906247 | BY125: 2947.906247 | BZ125: 2947.906247 | CA125: 2947.906247 | CB125: 2947.906247 | CC125: 2947.906247 | CD125: 2947.906247 | CE125: 2947.906247 | CF125: 2947.906247 | CG125: 2947.906247 | CH125: 2947.906247 | CI125: 2947.906247 | CJ125: 2947.906247 | CK125: 2947.906247 | CL125: 2947.906247 | CM125: 2947.906247 | CN125: 2947.906247 | CO125: 2947.906247 | CP125: 2947.906247 | CQ125: 2947.906247 | CR125: 2947.906247 | CS125: 2947.906247 | CT125: 2947.906247 | CU125: 2947.906247 | CV125: 2947.906247 | CW125: 2947.906247 | CX125: 2947.906247 | CY125: 2947.906247 | CZ125: 2947.906247 | DA125: 2947.906247 | DB125: 2947.906247 | DC125: 2947.906247 | DD125: 2947.906247 | DE125: 2947.906247 | DF125: 2947.906247 | DG125: 2947.906247 | DH125: 2947.906247 | DI125: 2947.906247 | DJ125: 2947.906247 | DK125: 2947.906247 | DL125: 2947.906247 | DM125: 2947.906247 | DN125: 2947.906247 | DO125: 2947.906247 | DP125: 2947.906247 | DQ125: 2947.906247 | DR125: 2947.906247 | DS125: 2947.906247 | DT125: 2947.906247 | DU125: 2947.906247 | DV125: 2947.906247 | DW125: 2947.906247 | DX125: 2947.906247 | DY125: 2947.906247 | DZ125: 2947.906247 | EA125: 2947.906247 | EB125: 2947.906247 | EC125: 2947.906247 | ED125: 2947.906247 | EE125: 2947.906247 | EF125: 2947.906247 | EG125: 2947.906247 | EH125: 2947.906247 | EI125: =EH127 -> 2947.906247 | EJ125: 2947.906247 | EK125: 2947.906247 | EL125: 2947.906247 | EM125: 2947.906247 | EN125: 2947.906247 | EO125: 2947.906247 | EP125: 2947.906247 | EQ125: 2947.906247 | ER125: 2947.906247 | ES125: 2947.906247 | ET125: 2947.906247 | EU125: 2947.906247 | EV125: 2947.906247 | EW125: 2947.906247 | EX125: 2947.906247 | EY125: 2947.906247 | EZ125: 2947.906247 | FA125: 2947.906247 | FB125: 2947.906247 | FC125: 2947.906247
D126: Add: Equity Financed | E126: Euro | I126: =SUM(J126:FC126) -> 2947.906247 | J126: =MIN(J123,J115) -> 1354.547718 | K126: =MIN(K123,K115) -> 115.7374357 | L126: 147.8687661 | M126: 187.3713547 | N126: 235.0102319 | O126: 291.338116 | P126: 356.5990635 | Q126: 259.4335607 | R126: 0 | S126: 0 | T126: 0 | U126: 0 | V126: 0 | W126: 0 | X126: 0 | Y126: 0 | Z126: 0 | AA126: 0 | AB126: 0 | AC126: 0 | AD126: 0 | AE126: 0 | AF126: 0 | AG126: 0 | AH126: 0 | AI126: 0 | AJ126: 0 | AK126: 0 | AL126: 0 | AM126: 0 | AN126: 0 | AO126: 0 | AP126: 0 | AQ126: 0 | AR126: 0 | AS126: 0 | AT126: 0 | AU126: 0 | AV126: 0 | AW126: 0 | AX126: 0 | AY126: 0 | AZ126: 0 | BA126: 0 | BB126: 0 | BC126: 0 | BD126: 0 | BE126: 0 | BF126: 0 | BG126: 0 | BH126: 0 | BI126: 0 | BJ126: 0 | BK126: 0 | BL126: 0 | BM126: 0 | BN126: 0 | BO126: 0 | BP126: 0 | BQ126: 0 | BR126: 0 | BS126: 0 | BT126: 0 | BU126: 0 | BV126: 0 | BW126: =MIN(BW123,BW115) -> 0 | BX126: 0 | BY126: 0 | BZ126: 0 | CA126: 0 | CB126: 0 | CC126: 0 | CD126: 0 | CE126: 0 | CF126: 0 | CG126: 0 | CH126: 0 | CI126: 0 | CJ126: 0 | CK126: 0 | CL126: 0 | CM126: 0 | CN126: 0 | CO126: 0 | CP126: 0 | CQ126: 0 | CR126: 0 | CS126: 0 | CT126: 0 | CU126: 0 | CV126: 0 | CW126: 0 | CX126: 0 | CY126: 0 | CZ126: 0 | DA126: 0 | DB126: 0 | DC126: 0 | DD126: 0 | DE126: 0 | DF126: 0 | DG126: 0 | DH126: 0 | DI126: 0 | DJ126: 0 | DK126: 0 | DL126: 0 | DM126: 0 | DN126: 0 | DO126: 0 | DP126: 0 | DQ126: 0 | DR126: 0 | DS126: 0 | DT126: 0 | DU126: 0 | DV126: 0 | DW126: 0 | DX126: 0 | DY126: 0 | DZ126: 0 | EA126: 0 | EB126: 0 | EC126: 0 | ED126: 0 | EE126: 0 | EF126: 0 | EG126: 0 | EH126: 0 | EI126: =MIN(EI123,EI115) -> 0 | EJ126: 0 | EK126: 0 | EL126: 0 | EM126: 0 | EN126: 0 | EO126: 0 | EP126: 0 | EQ126: 0 | ER126: 0 | ES126: 0 | ET126: 0 | EU126: 0 | EV126: 0 | EW126: 0 | EX126: 0 | EY126: 0 | EZ126: 0 | FA126: 0 | FB126: 0 | FC126: 0
D127: Closing Balance | E127: Euro | J127: =J125+J126 -> 1354.547718 | K127: =K125+K126 -> 1470.285154 | L127: 1618.15392 | M127: 1805.525275 | N127: 2040.535507 | O127: 2331.873623 | P127: 2688.472686 | Q127: 2947.906247 | R127: 2947.906247 | S127: 2947.906247 | T127: 2947.906247 | U127: 2947.906247 | V127: 2947.906247 | W127: 2947.906247 | X127: 2947.906247 | Y127: 2947.906247 | Z127: 2947.906247 | AA127: 2947.906247 | AB127: 2947.906247 | AC127: 2947.906247 | AD127: 2947.906247 | AE127: 2947.906247 | AF127: 2947.906247 | AG127: 2947.906247 | AH127: 2947.906247 | AI127: 2947.906247 | AJ127: 2947.906247 | AK127: 2947.906247 | AL127: 2947.906247 | AM127: 2947.906247 | AN127: 2947.906247 | AO127: 2947.906247 | AP127: 2947.906247 | AQ127: 2947.906247 | AR127: 2947.906247 | AS127: 2947.906247 | AT127: 2947.906247 | AU127: 2947.906247 | AV127: 2947.906247 | AW127: 2947.906247 | AX127: 2947.906247 | AY127: 2947.906247 | AZ127: 2947.906247 | BA127: 2947.906247 | BB127: 2947.906247 | BC127: 2947.906247 | BD127: 2947.906247 | BE127: 2947.906247 | BF127: 2947.906247 | BG127: 2947.906247 | BH127: 2947.906247 | BI127: 2947.906247 | BJ127: 2947.906247 | BK127: 2947.906247 | BL127: 2947.906247 | BM127: 2947.906247 | BN127: 2947.906247 | BO127: 2947.906247 | BP127: 2947.906247 | BQ127: 2947.906247 | BR127: 2947.906247 | BS127: 2947.906247 | BT127: 2947.906247 | BU127: 2947.906247 | BV127: 2947.906247 | BW127: =BW125+BW126 -> 2947.906247 | BX127: 2947.906247 | BY127: 2947.906247 | BZ127: 2947.906247 | CA127: 2947.906247 | CB127: 2947.906247 | CC127: 2947.906247 | CD127: 2947.906247 | CE127: 2947.906247 | CF127: 2947.906247 | CG127: 2947.906247 | CH127: 2947.906247 | CI127: 2947.906247 | CJ127: 2947.906247 | CK127: 2947.906247 | CL127: 2947.906247 | CM127: 2947.906247 | CN127: 2947.906247 | CO127: 2947.906247 | CP127: 2947.906247 | CQ127: 2947.906247 | CR127: 2947.906247 | CS127: 2947.906247 | CT127: 2947.906247 | CU127: 2947.906247 | CV127: 2947.906247 | CW127: 2947.906247 | CX127: 2947.906247 | CY127: 2947.906247 | CZ127: 2947.906247 | DA127: 2947.906247 | DB127: 2947.906247 | DC127: 2947.906247 | DD127: 2947.906247 | DE127: 2947.906247 | DF127: 2947.906247 | DG127: 2947.906247 | DH127: 2947.906247 | DI127: 2947.906247 | DJ127: 2947.906247 | DK127: 2947.906247 | DL127: 2947.906247 | DM127: 2947.906247 | DN127: 2947.906247 | DO127: 2947.906247 | DP127: 2947.906247 | DQ127: 2947.906247 | DR127: 2947.906247 | DS127: 2947.906247 | DT127: 2947.906247 | DU127: 2947.906247 | DV127: 2947.906247 | DW127: 2947.906247 | DX127: 2947.906247 | DY127: 2947.906247 | DZ127: 2947.906247 | EA127: 2947.906247 | EB127: 2947.906247 | EC127: 2947.906247 | ED127: 2947.906247 | EE127: 2947.906247 | EF127: 2947.906247 | EG127: 2947.906247 | EH127: 2947.906247 | EI127: =EI125+EI126 -> 2947.906247 | EJ127: 2947.906247 | EK127: 2947.906247 | EL127: 2947.906247 | EM127: 2947.906247 | EN127: 2947.906247 | EO127: 2947.906247 | EP127: 2947.906247 | EQ127: 2947.906247 | ER127: 2947.906247 | ES127: 2947.906247 | ET127: 2947.906247 | EU127: 2947.906247 | EV127: 2947.906247 | EW127: 2947.906247 | EX127: 2947.906247 | EY127: 2947.906247 | EZ127: 2947.906247 | FA127: 2947.906247 | FB127: 2947.906247 | FC127: 2947.906247
C129: Pro-Rata
D130: Pro-Rata Funding | E130: Euro | J130: =J115-J126 -> 0 | K130: =K115-K126 -> 0 | L130: 0 | M130: 0 | N130: 0 | O130: 0 | P130: 0 | Q130: 171.2000708 | R130: 513.2868052 | S130: 603.8561412 | T130: 699.8547724 | U130: 798.9762317 | V130: 898.4174345 | W130: 994.993776 | X130: 1085.300561 | Y130: 1165.910677 | Z130: 1233.593181 | AA130: 1285.533619 | AB130: 1319.535198 | AC130: 1334.180708 | AD130: 1328.938457 | AE130: 1304.201079 | AF130: 1261.25314 | AG130: 1202.171123 | AH130: 1129.666505 | AI130: 1046.888307 | AJ130: 957.2050222 | AK130: 863.9867264 | AL130: 770.4066314 | AM130: 679.2776054 | AN130: 592.934039 | AO130: 513.1636394 | AP130: 441.1881357 | AQ130: 377.6871611 | AR130: 322.8562173 | AS130: 276.4878345 | AT130: 104.085539 | AU130: 104.4543589 | AV130: 104.8244858 | AW130: 1044.84104 | AX130: 0 | AY130: 0 | AZ130: 0 | BA130: 0 | BB130: 0 | BC130: 0 | BD130: 0 | BE130: 0 | BF130: 0 | BG130: 0 | BH130: 0 | BI130: 0 | BJ130: 0 | BK130: 0 | BL130: 0 | BM130: 0 | BN130: 0 | BO130: 0 | BP130: 0 | BQ130: 0 | BR130: 0 | BS130: 0 | BT130: 0 | BU130: 0 | BV130: 0 | BW130: =BW115-BW126 -> 0 | BX130: 0 | BY130: 0 | BZ130: 0 | CA130: 0 | CB130: 0 | CC130: 0 | CD130: 0 | CE130: 0 | CF130: 0 | CG130: 0 | CH130: 0 | CI130: 0 | CJ130: 0 | CK130: 0 | CL130: 0 | CM130: 0 | CN130: 0 | CO130: 0 | CP130: 0 | CQ130: 0 | CR130: 0 | CS130: 0 | CT130: 0 | CU130: 0 | CV130: 0 | CW130: 0 | CX130: 0 | CY130: 0 | CZ130: 0 | DA130: 0 | DB130: 0 | DC130: 0 | DD130: 0 | DE130: 0 | DF130: 0 | DG130: 0 | DH130: 0 | DI130: 0 | DJ130: 0 | DK130: 0 | DL130: 0 | DM130: 0 | DN130: 0 | DO130: 0 | DP130: 0 | DQ130: 0 | DR130: 0 | DS130: 0 | DT130: 0 | DU130: 0 | DV130: 0 | DW130: 0 | DX130: 0 | DY130: 0 | DZ130: 0 | EA130: 0 | EB130: 0 | EC130: 0 | ED130: 0 | EE130: 0 | EF130: 0 | EG130: 0 | EH130: 0 | EI130: =EI115-EI126 -> 0 | EJ130: 0 | EK130: 0 | EL130: 0 | EM130: 0 | EN130: 0 | EO130: 0 | EP130: 0 | EQ130: 0 | ER130: 0 | ES130: 0 | ET130: 0 | EU130: 0 | EV130: 0 | EW130: 0 | EX130: 0 | EY130: 0 | EZ130: 0 | FA130: 0 | FB130: 0 | FC130: 0
D131: Pro-Rata Equity | E131: Euro | G131: =G100 -> 0.1666666667 | J131: =J130*$G$131 -> 0 | K131: =K130*$G$131 -> 0 | L131: 0 | M131: 0 | N131: 0 | O131: 0 | P131: 0 | Q131: 28.53334513 | R131: 85.54780086 | S131: 100.6426902 | T131: 116.6424621 | U131: 133.1627053 | V131: 149.7362391 | W131: 165.832296 | X131: 180.8834268 | Y131: 194.3184462 | Z131: 205.5988634 | AA131: 214.2556031 | AB131: 219.922533 | AC131: 222.3634513 | AD131: 221.4897428 | AE131: 217.3668465 | AF131: 210.2088566 | AG131: 200.3618539 | AH131: 188.2777508 | AI131: 174.4813845 | AJ131: 159.5341704 | AK131: 143.9977877 | AL131: 128.4011052 | AM131: 113.2129342 | AN131: 98.82233983 | AO131: 85.52727323 | AP131: 73.53135595 | AQ131: 62.94786018 | AR131: 53.80936956 | AS131: 46.08130575 | AT131: 17.34758984 | AU131: 17.40905982 | AV131: 17.47074763 | AW131: 174.1401734 | AX131: 0 | AY131: 0 | AZ131: 0 | BA131: 0 | BB131: 0 | BC131: 0 | BD131: 0 | BE131: 0 | BF131: 0 | BG131: 0 | BH131: 0 | BI131: 0 | BJ131: 0 | BK131: 0 | BL131: 0 | BM131: 0 | BN131: 0 | BO131: 0 | BP131: 0 | BQ131: 0 | BR131: 0 | BS131: 0 | BT131: 0 | BU131: 0 | BV131: 0 | BW131: =BW130*$G$131 -> 0 | BX131: 0 | BY131: 0 | BZ131: 0 | CA131: 0 | CB131: 0 | CC131: 0 | CD131: 0 | CE131: 0 | CF131: 0 | CG131: 0 | CH131: 0 | CI131: 0 | CJ131: 0 | CK131: 0 | CL131: 0 | CM131: 0 | CN131: 0 | CO131: 0 | CP131: 0 | CQ131: 0 | CR131: 0 | CS131: 0 | CT131: 0 | CU131: 0 | CV131: 0 | CW131: 0 | CX131: 0 | CY131: 0 | CZ131: 0 | DA131: 0 | DB131: 0 | DC131: 0 | DD131: 0 | DE131: 0 | DF131: 0 | DG131: 0 | DH131: 0 | DI131: 0 | DJ131: 0 | DK131: 0 | DL131: 0 | DM131: 0 | DN131: 0 | DO131: 0 | DP131: 0 | DQ131: 0 | DR131: 0 | DS131: 0 | DT131: 0 | DU131: 0 | DV131: 0 | DW131: 0 | DX131: 0 | DY131: 0 | DZ131: 0 | EA131: 0 | EB131: 0 | EC131: 0 | ED131: 0 | EE131: 0 | EF131: 0 | EG131: 0 | EH131: 0 | EI131: =EI130*$G$131 -> 0 | EJ131: 0 | EK131: 0 | EL131: 0 | EM131: 0 | EN131: 0 | EO131: 0 | EP131: 0 | EQ131: 0 | ER131: 0 | ES131: 0 | ET131: 0 | EU131: 0 | EV131: 0 | EW131: 0 | EX131: 0 | EY131: 0 | EZ131: 0 | FA131: 0 | FB131: 0 | FC131: 0
D132: Pro-Rata Debt | E132: Euro | G132: =G101 -> 0.8333333333 | J132: =J130*$G$132 -> 0 | K132: =K130*$G$132 -> 0 | L132: 0 | M132: 0 | N132: 0 | O132: 0 | P132: 0 | Q132: 142.6667257 | R132: 427.7390043 | S132: 503.213451 | T132: 583.2123104 | U132: 665.8135264 | V132: 748.6811954 | W132: 829.16148 | X132: 904.4171339 | Y132: 971.5922308 | Z132: 1027.994317 | AA132: 1071.278015 | AB132: 1099.612665 | AC132: 1111.817257 | AD132: 1107.448714 | AE132: 1086.834232 | AF132: 1051.044283 | AG132: 1001.809269 | AH132: 941.3887541 | AI132: 872.4069226 | AJ132: 797.6708518 | AK132: 719.9889387 | AL132: 642.0055262 | AM132: 566.0646712 | AN132: 494.1116992 | AO132: 427.6363662 | AP132: 367.6567797 | AQ132: 314.7393009 | AR132: 269.0468478 | AS132: 230.4065287 | AT132: 86.73794919 | AU132: 87.04529912 | AV132: 87.35373813 | AW132: 870.7008669 | AX132: 0 | AY132: 0 | AZ132: 0 | BA132: 0 | BB132: 0 | BC132: 0 | BD132: 0 | BE132: 0 | BF132: 0 | BG132: 0 | BH132: 0 | BI132: 0 | BJ132: 0 | BK132: 0 | BL132: 0 | BM132: 0 | BN132: 0 | BO132: 0 | BP132: 0 | BQ132: 0 | BR132: 0 | BS132: 0 | BT132: 0 | BU132: 0 | BV132: 0 | BW132: =BW130*$G$132 -> 0 | BX132: 0 | BY132: 0 | BZ132: 0 | CA132: 0 | CB132: 0 | CC132: 0 | CD132: 0 | CE132: 0 | CF132: 0 | CG132: 0 | CH132: 0 | CI132: 0 | CJ132: 0 | CK132: 0 | CL132: 0 | CM132: 0 | CN132: 0 | CO132: 0 | CP132: 0 | CQ132: 0 | CR132: 0 | CS132: 0 | CT132: 0 | CU132: 0 | CV132: 0 | CW132: 0 | CX132: 0 | CY132: 0 | CZ132: 0 | DA132: 0 | DB132: 0 | DC132: 0 | DD132: 0 | DE132: 0 | DF132: 0 | DG132: 0 | DH132: 0 | DI132: 0 | DJ132: 0 | DK132: 0 | DL132: 0 | DM132: 0 | DN132: 0 | DO132: 0 | DP132: 0 | DQ132: 0 | DR132: 0 | DS132: 0 | DT132: 0 | DU132: 0 | DV132: 0 | DW132: 0 | DX132: 0 | DY132: 0 | DZ132: 0 | EA132: 0 | EB132: 0 | EC132: 0 | ED132: 0 | EE132: 0 | EF132: 0 | EG132: 0 | EH132: 0 | EI132: =EI130*$G$132 -> 0 | EJ132: 0 | EK132: 0 | EL132: 0 | EM132: 0 | EN132: 0 | EO132: 0 | EP132: 0 | EQ132: 0 | ER132: 0 | ES132: 0 | ET132: 0 | EU132: 0 | EV132: 0 | EW132: 0 | EX132: 0 | EY132: 0 | EZ132: 0 | FA132: 0 | FB132: 0 | FC132: 0
D134: Total Debt Funding | E134: Euro | J134: =J132 -> 0 | K134: =K132 -> 0 | L134: 0 | M134: 0 | N134: 0 | O134: 0 | P134: 0 | Q134: 142.6667257 | R134: 427.7390043 | S134: 503.213451 | T134: 583.2123104 | U134: 665.8135264 | V134: 748.6811954 | W134: 829.16148 | X134: 904.4171339 | Y134: 971.5922308 | Z134: 1027.994317 | AA134: 1071.278015 | AB134: 1099.612665 | AC134: 1111.817257 | AD134: 1107.448714 | AE134: 1086.834232 | AF134: 1051.044283 | AG134: 1001.809269 | AH134: 941.3887541 | AI134: 872.4069226 | AJ134: 797.6708518 | AK134: 719.9889387 | AL134: 642.0055262 | AM134: 566.0646712 | AN134: 494.1116992 | AO134: 427.6363662 | AP134: 367.6567797 | AQ134: 314.7393009 | AR134: 269.0468478 | AS134: 230.4065287 | AT134: 86.73794919 | AU134: 87.04529912 | AV134: 87.35373813 | AW134: 870.7008669 | AX134: 0 | AY134: 0 | AZ134: 0 | BA134: 0 | BB134: 0 | BC134: 0 | BD134: 0 | BE134: 0 | BF134: 0 | BG134: 0 | BH134: 0 | BI134: 0 | BJ134: 0 | BK134: 0 | BL134: 0 | BM134: 0 | BN134: 0 | BO134: 0 | BP134: 0 | BQ134: 0 | BR134: 0 | BS134: 0 | BT134: 0 | BU134: 0 | BV134: 0 | BW134: =BW132 -> 0 | BX134: 0 | BY134: 0 | BZ134: 0 | CA134: 0 | CB134: 0 | CC134: 0 | CD134: 0 | CE134: 0 | CF134: 0 | CG134: 0 | CH134: 0 | CI134: 0 | CJ134: 0 | CK134: 0 | CL134: 0 | CM134: 0 | CN134: 0 | CO134: 0 | CP134: 0 | CQ134: 0 | CR134: 0 | CS134: 0 | CT134: 0 | CU134: 0 | CV134: 0 | CW134: 0 | CX134: 0 | CY134: 0 | CZ134: 0 | DA134: 0 | DB134: 0 | DC134: 0 | DD134: 0 | DE134: 0 | DF134: 0 | DG134: 0 | DH134: 0 | DI134: 0 | DJ134: 0 | DK134: 0 | DL134: 0 | DM134: 0 | DN134: 0 | DO134: 0 | DP134: 0 | DQ134: 0 | DR134: 0 | DS134: 0 | DT134: 0 | DU134: 0 | DV134: 0 | DW134: 0 | DX134: 0 | DY134: 0 | DZ134: 0 | EA134: 0 | EB134: 0 | EC134: 0 | ED134: 0 | EE134: 0 | EF134: 0 | EG134: 0 | EH134: 0 | EI134: =EI132 -> 0 | EJ134: 0 | EK134: 0 | EL134: 0 | EM134: 0 | EN134: 0 | EO134: 0 | EP134: 0 | EQ134: 0 | ER134: 0 | ES134: 0 | ET134: 0 | EU134: 0 | EV134: 0 | EW134: 0 | EX134: 0 | EY134: 0 | EZ134: 0 | FA134: 0 | FB134: 0 | FC134: 0
D135: Total Equity Funding | E135: Euro | J135: =J131+J126 -> 1354.547718 | K135: =K131+K126 -> 115.7374357 | L135: 147.8687661 | M135: 187.3713547 | N135: 235.0102319 | O135: 291.338116 | P135: 356.5990635 | Q135: 287.9669058 | R135: 85.54780086 | S135: 100.6426902 | T135: 116.6424621 | U135: 133.1627053 | V135: 149.7362391 | W135: 165.832296 | X135: 180.8834268 | Y135: 194.3184462 | Z135: 205.5988634 | AA135: 214.2556031 | AB135: 219.922533 | AC135: 222.3634513 | AD135: 221.4897428 | AE135: 217.3668465 | AF135: 210.2088566 | AG135: 200.3618539 | AH135: 188.2777508 | AI135: 174.4813845 | AJ135: 159.5341704 | AK135: 143.9977877 | AL135: 128.4011052 | AM135: 113.2129342 | AN135: 98.82233983 | AO135: 85.52727323 | AP135: 73.53135595 | AQ135: 62.94786018 | AR135: 53.80936956 | AS135: 46.08130575 | AT135: 17.34758984 | AU135: 17.40905982 | AV135: 17.47074763 | AW135: 174.1401734 | AX135: 0 | AY135: 0 | AZ135: 0 | BA135: 0 | BB135: 0 | BC135: 0 | BD135: 0 | BE135: 0 | BF135: 0 | BG135: 0 | BH135: 0 | BI135: 0 | BJ135: 0 | BK135: 0 | BL135: 0 | BM135: 0 | BN135: 0 | BO135: 0 | BP135: 0 | BQ135: 0 | BR135: 0 | BS135: 0 | BT135: 0 | BU135: 0 | BV135: 0 | BW135: =BW131+BW126 -> 0 | BX135: 0 | BY135: 0 | BZ135: 0 | CA135: 0 | CB135: 0 | CC135: 0 | CD135: 0 | CE135: 0 | CF135: 0 | CG135: 0 | CH135: 0 | CI135: 0 | CJ135: 0 | CK135: 0 | CL135: 0 | CM135: 0 | CN135: 0 | CO135: 0 | CP135: 0 | CQ135: 0 | CR135: 0 | CS135: 0 | CT135: 0 | CU135: 0 | CV135: 0 | CW135: 0 | CX135: 0 | CY135: 0 | CZ135: 0 | DA135: 0 | DB135: 0 | DC135: 0 | DD135: 0 | DE135: 0 | DF135: 0 | DG135: 0 | DH135: 0 | DI135: 0 | DJ135: 0 | DK135: 0 | DL135: 0 | DM135: 0 | DN135: 0 | DO135: 0 | DP135: 0 | DQ135: 0 | DR135: 0 | DS135: 0 | DT135: 0 | DU135: 0 | DV135: 0 | DW135: 0 | DX135: 0 | DY135: 0 | DZ135: 0 | EA135: 0 | EB135: 0 | EC135: 0 | ED135: 0 | EE135: 0 | EF135: 0 | EG135: 0 | EH135: 0 | EI135: =EI131+EI126 -> 0 | EJ135: 0 | EK135: 0 | EL135: 0 | EM135: 0 | EN135: 0 | EO135: 0 | EP135: 0 | EQ135: 0 | ER135: 0 | ES135: 0 | ET135: 0 | EU135: 0 | EV135: 0 | EW135: 0 | EX135: 0 | EY135: 0 | EZ135: 0 | FA135: 0 | FB135: 0 | FC135: 0
D136: Total Source of Funds | E136: Euro | J136: =SUM(J134:J135) -> 1354.547718 | K136: =SUM(K134:K135) -> 115.7374357 | L136: 147.8687661 | M136: 187.3713547 | N136: 235.0102319 | O136: 291.338116 | P136: 356.5990635 | Q136: 430.6336315 | R136: 513.2868052 | S136: 603.8561412 | T136: 699.8547724 | U136: 798.9762317 | V136: 898.4174345 | W136: 994.993776 | X136: 1085.300561 | Y136: 1165.910677 | Z136: 1233.593181 | AA136: 1285.533619 | AB136: 1319.535198 | AC136: 1334.180708 | AD136: 1328.938457 | AE136: 1304.201079 | AF136: 1261.25314 | AG136: 1202.171123 | AH136: 1129.666505 | AI136: 1046.888307 | AJ136: 957.2050222 | AK136: 863.9867264 | AL136: 770.4066314 | AM136: 679.2776054 | AN136: 592.934039 | AO136: 513.1636394 | AP136: 441.1881357 | AQ136: 377.6871611 | AR136: 322.8562173 | AS136: 276.4878345 | AT136: 104.085539 | AU136: 104.4543589 | AV136: 104.8244858 | AW136: 1044.84104 | AX136: 0 | AY136: 0 | AZ136: 0 | BA136: 0 | BB136: 0 | BC136: 0 | BD136: 0 | BE136: 0 | BF136: 0 | BG136: 0 | BH136: 0 | BI136: 0 | BJ136: 0 | BK136: 0 | BL136: 0 | BM136: 0 | BN136: 0 | BO136: 0 | BP136: 0 | BQ136: 0 | BR136: 0 | BS136: 0 | BT136: 0 | BU136: 0 | BV136: 0 | BW136: =SUM(BW134:BW135) -> 0 | BX136: 0 | BY136: 0 | BZ136: 0 | CA136: 0 | CB136: 0 | CC136: 0 | CD136: 0 | CE136: 0 | CF136: 0 | CG136: 0 | CH136: 0 | CI136: 0 | CJ136: 0 | CK136: 0 | CL136: 0 | CM136: 0 | CN136: 0 | CO136: 0 | CP136: 0 | CQ136: 0 | CR136: 0 | CS136: 0 | CT136: 0 | CU136: 0 | CV136: 0 | CW136: 0 | CX136: 0 | CY136: 0 | CZ136: 0 | DA136: 0 | DB136: 0 | DC136: 0 | DD136: 0 | DE136: 0 | DF136: 0 | DG136: 0 | DH136: 0 | DI136: 0 | DJ136: 0 | DK136: 0 | DL136: 0 | DM136: 0 | DN136: 0 | DO136: 0 | DP136: 0 | DQ136: 0 | DR136: 0 | DS136: 0 | DT136: 0 | DU136: 0 | DV136: 0 | DW136: 0 | DX136: 0 | DY136: 0 | DZ136: 0 | EA136: 0 | EB136: 0 | EC136: 0 | ED136: 0 | EE136: 0 | EF136: 0 | EG136: 0 | EH136: 0 | EI136: =SUM(EI134:EI135) -> 0 | EJ136: 0 | EK136: 0 | EL136: 0 | EM136: 0 | EN136: 0 | EO136: 0 | EP136: 0 | EQ136: 0 | ER136: 0 | ES136: 0 | ET136: 0 | EU136: 0 | EV136: 0 | EW136: 0 | EX136: 0 | EY136: 0 | EZ136: 0 | FA136: 0 | FB136: 0 | FC136: 0
A138: Debt Balances
B139: Repayment
C140: Repayment Flag | E140: Flag | G140: =F11 -> 2023-09-01 | H140: =F42 -> 2048-09-01 | I140: =SUM(J140:FC140) -> 50 | J140: =AND(J5>=$G$140,J5<$H$140)*1 -> 0 | K140: =AND(K5>=$G$140,K5<$H$140)*1 -> 0 | L140: 0 | M140: 0 | N140: 0 | O140: 0 | P140: 0 | Q140: 0 | R140: 0 | S140: 0 | T140: 0 | U140: 0 | V140: 0 | W140: 0 | X140: 0 | Y140: 0 | Z140: 0 | AA140: 0 | AB140: 0 | AC140: 0 | AD140: 0 | AE140: 0 | AF140: 0 | AG140: 0 | AH140: 0 | AI140: 0 | AJ140: 0 | AK140: 0 | AL140: 0 | AM140: 0 | AN140: 0 | AO140: 0 | AP140: 0 | AQ140: 0 | AR140: 0 | AS140: 0 | AT140: 0 | AU140: 0 | AV140: 0 | AW140: 0 | AX140: 1 | AY140: 1 | AZ140: 1 | BA140: 1 | BB140: 1 | BC140: 1 | BD140: 1 | BE140: 1 | BF140: 1 | BG140: 1 | BH140: 1 | BI140: 1 | BJ140: 1 | BK140: 1 | BL140: 1 | BM140: 1 | BN140: 1 | BO140: 1 | BP140: 1 | BQ140: 1 | BR140: 1 | BS140: 1 | BT140: 1 | BU140: 1 | BV140: 1 | BW140: =AND(BW5>=$G$140,BW5<$H$140)*1 -> 1 | BX140: 1 | BY140: 1 | BZ140: 1 | CA140: 1 | CB140: 1 | CC140: 1 | CD140: 1 | CE140: 1 | CF140: 1 | CG140: 1 | CH140: 1 | CI140: 1 | CJ140: 1 | CK140: 1 | CL140: 1 | CM140: 1 | CN140: 1 | CO140: 1 | CP140: 1 | CQ140: 1 | CR140: 1 | CS140: 1 | CT140: 1 | CU140: 1 | CV140: 0 | CW140: 0 | CX140: 0 | CY140: 0 | CZ140: 0 | DA140: 0 | DB140: 0 | DC140: 0 | DD140: 0 | DE140: 0 | DF140: 0 | DG140: 0 | DH140: 0 | DI140: 0 | DJ140: 0 | DK140: 0 | DL140: 0 | DM140: 0 | DN140: 0 | DO140: 0 | DP140: 0 | DQ140: 0 | DR140: 0 | DS140: 0 | DT140: 0 | DU140: 0 | DV140: 0 | DW140: 0 | DX140: 0 | DY140: 0 | DZ140: 0 | EA140: 0 | EB140: 0 | EC140: 0 | ED140: 0 | EE140: 0 | EF140: 0 | EG140: 0 | EH140: 0 | EI140: =AND(EI5>=$G$140,EI5<$H$140)*1 -> 0 | EJ140: 0 | EK140: 0 | EL140: 0 | EM140: 0 | EN140: 0 | EO140: 0 | EP140: 0 | EQ140: 0 | ER140: 0 | ES140: 0 | ET140: 0 | EU140: 0 | EV140: 0 | EW140: 0 | EX140: 0 | EY140: 0 | EZ140: 0 | FA140: 0 | FB140: 0 | FC140: 0
C141: Repayment Amount | E141: Euro | G141: =G89 -> 22109.29685 | H141: =G141/I140 -> 442.185937 | J141: =$H$141*J140 -> 0 | K141: =$H$141*K140 -> 0 | L141: 0 | M141: 0 | N141: 0 | O141: 0 | P141: 0 | Q141: 0 | R141: 0 | S141: 0 | T141: 0 | U141: 0 | V141: 0 | W141: 0 | X141: 0 | Y141: 0 | Z141: 0 | AA141: 0 | AB141: 0 | AC141: 0 | AD141: 0 | AE141: 0 | AF141: 0 | AG141: 0 | AH141: 0 | AI141: 0 | AJ141: 0 | AK141: 0 | AL141: 0 | AM141: 0 | AN141: 0 | AO141: 0 | AP141: 0 | AQ141: 0 | AR141: 0 | AS141: 0 | AT141: 0 | AU141: 0 | AV141: 0 | AW141: 0 | AX141: 442.185937 | AY141: 442.185937 | AZ141: 442.185937 | BA141: 442.185937 | BB141: 442.185937 | BC141: 442.185937 | BD141: 442.185937 | BE141: 442.185937 | BF141: 442.185937 | BG141: 442.185937 | BH141: 442.185937 | BI141: 442.185937 | BJ141: 442.185937 | BK141: 442.185937 | BL141: 442.185937 | BM141: 442.185937 | BN141: 442.185937 | BO141: 442.185937 | BP141: 442.185937 | BQ141: 442.185937 | BR141: 442.185937 | BS141: 442.185937 | BT141: 442.185937 | BU141: 442.185937 | BV141: 442.185937 | BW141: =$H$141*BW140 -> 442.185937 | BX141: 442.185937 | BY141: 442.185937 | BZ141: 442.185937 | CA141: 442.185937 | CB141: 442.185937 | CC141: 442.185937 | CD141: 442.185937 | CE141: 442.185937 | CF141: 442.185937 | CG141: 442.185937 | CH141: 442.185937 | CI141: 442.185937 | CJ141: 442.185937 | CK141: 442.185937 | CL141: 442.185937 | CM141: 442.185937 | CN141: 442.185937 | CO141: 442.185937 | CP141: 442.185937 | CQ141: 442.185937 | CR141: 442.185937 | CS141: 442.185937 | CT141: 442.185937 | CU141: 442.185937 | CV141: 0 | CW141: 0 | CX141: 0 | CY141: 0 | CZ141: 0 | DA141: 0 | DB141: 0 | DC141: 0 | DD141: 0 | DE141: 0 | DF141: 0 | DG141: 0 | DH141: 0 | DI141: 0 | DJ141: 0 | DK141: 0 | DL141: 0 | DM141: 0 | DN141: 0 | DO141: 0 | DP141: 0 | DQ141: 0 | DR141: 0 | DS141: 0 | DT141: 0 | DU141: 0 | DV141: 0 | DW141: 0 | DX141: 0 | DY141: 0 | DZ141: 0 | EA141: 0 | EB141: 0 | EC141: 0 | ED141: 0 | EE141: 0 | EF141: 0 | EG141: 0 | EH141: 0 | EI141: =$H$141*EI140 -> 0 | EJ141: 0 | EK141: 0 | EL141: 0 | EM141: 0 | EN141: 0 | EO141: 0 | EP141: 0 | EQ141: 0 | ER141: 0 | ES141: 0 | ET141: 0 | EU141: 0 | EV141: 0 | EW141: 0 | EX141: 0 | EY141: 0 | EZ141: 0 | FA141: 0 | FB141: 0 | FC141: 0
B143: Account
C144: Opening Balance | E144: Euro | J144: =I147 -> 0 | K144: =J147 -> 0 | L144: 0 | M144: 0 | N144: 0 | O144: 0 | P144: 0 | Q144: 0 | R144: 142.6667257 | S144: 570.40573 | T144: 1073.619181 | U144: 1656.831491 | V144: 2322.645018 | W144: 3071.326213 | X144: 3900.487693 | Y144: 4804.904827 | Z144: 5776.497058 | AA144: 6804.491375 | AB144: 7875.769391 | AC144: 8975.382056 | AD144: 10087.19931 | AE144: 11194.64803 | AF144: 12281.48226 | AG144: 13332.52654 | AH144: 14334.33581 | AI144: 15275.72457 | AJ144: 16148.13149 | AK144: 16945.80234 | AL144: 17665.79128 | AM144: 18307.7968 | AN144: 18873.86148 | AO144: 19367.97317 | AP144: 19795.60954 | AQ144: 20163.26632 | AR144: 20478.00562 | AS144: 20747.05247 | AT144: 20977.459 | AU144: 21064.19695 | AV144: 21151.24225 | AW144: 21238.59598 | AX144: 22109.29685 | AY144: 21667.11091 | AZ144: 21224.92498 | BA144: 20782.73904 | BB144: 20340.5531 | BC144: 19898.36717 | BD144: 19456.18123 | BE144: 19013.99529 | BF144: 18571.80936 | BG144: 18129.62342 | BH144: 17687.43748 | BI144: 17245.25154 | BJ144: 16803.06561 | BK144: 16360.87967 | BL144: 15918.69373 | BM144: 15476.5078 | BN144: 15034.32186 | BO144: 14592.13592 | BP144: 14149.94998 | BQ144: 13707.76405 | BR144: 13265.57811 | BS144: 12823.39217 | BT144: 12381.20624 | BU144: 11939.0203 | BV144: 11496.83436 | BW144: =BV147 -> 11054.64843 | BX144: 10612.46249 | BY144: 10170.27655 | BZ144: 9728.090615 | CA144: 9285.904678 | CB144: 8843.718741 | CC144: 8401.532804 | CD144: 7959.346867 | CE144: 7517.160929 | CF144: 7074.974992 | CG144: 6632.789055 | CH144: 6190.603118 | CI144: 5748.417181 | CJ144: 5306.231244 | CK144: 4864.045307 | CL144: 4421.85937 | CM144: 3979.673433 | CN144: 3537.487496 | CO144: 3095.301559 | CP144: 2653.115622 | CQ144: 2210.929685 | CR144: 1768.743748 | CS144: 1326.557811 | CT144: 884.3718741 | CU144: 442.185937 | CV144: 1.625721779e-11 | CW144: 1.625721779e-11 | CX144: 1.625721779e-11 | CY144: 1.625721779e-11 | CZ144: 1.625721779e-11 | DA144: 1.625721779e-11 | DB144: 1.625721779e-11 | DC144: 1.625721779e-11 | DD144: 1.625721779e-11 | DE144: 1.625721779e-11 | DF144: 1.625721779e-11 | DG144: 1.625721779e-11 | DH144: 1.625721779e-11 | DI144: 1.625721779e-11 | DJ144: 1.625721779e-11 | DK144: 1.625721779e-11 | DL144: 1.625721779e-11 | DM144: 1.625721779e-11 | DN144: 1.625721779e-11 | DO144: 1.625721779e-11 | DP144: 1.625721779e-11 | DQ144: 1.625721779e-11 | DR144: 1.625721779e-11 | DS144: 1.625721779e-11 | DT144: 1.625721779e-11 | DU144: 1.625721779e-11 | DV144: 1.625721779e-11 | DW144: 1.625721779e-11 | DX144: 1.625721779e-11 | DY144: 1.625721779e-11 | DZ144: 1.625721779e-11 | EA144: 1.625721779e-11 | EB144: 1.625721779e-11 | EC144: 1.625721779e-11 | ED144: 1.625721779e-11 | EE144: 1.625721779e-11 | EF144: 1.625721779e-11 | EG144: 1.625721779e-11 | EH144: 1.625721779e-11 | EI144: =EH147 -> 1.625721779e-11 | EJ144: 1.625721779e-11 | EK144: 1.625721779e-11 | EL144: 1.625721779e-11 | EM144: 1.625721779e-11 | EN144: 1.625721779e-11 | EO144: 1.625721779e-11 | EP144: 1.625721779e-11 | EQ144: 1.625721779e-11 | ER144: 1.625721779e-11 | ES144: 1.625721779e-11 | ET144: 1.625721779e-11 | EU144: 1.625721779e-11 | EV144: 1.625721779e-11 | EW144: 1.625721779e-11 | EX144: 1.625721779e-11 | EY144: 1.625721779e-11 | EZ144: 1.625721779e-11 | FA144: 1.625721779e-11 | FB144: 1.625721779e-11 | FC144: 1.625721779e-11
C145: Add: Debt Draws | E145: Euro | J145: =J134 -> 0 | K145: =K134 -> 0 | L145: 0 | M145: 0 | N145: 0 | O145: 0 | P145: 0 | Q145: 142.6667257 | R145: 427.7390043 | S145: 503.213451 | T145: 583.2123104 | U145: 665.8135264 | V145: 748.6811954 | W145: 829.16148 | X145: 904.4171339 | Y145: 971.5922308 | Z145: 1027.994317 | AA145: 1071.278015 | AB145: 1099.612665 | AC145: 1111.817257 | AD145: 1107.448714 | AE145: 1086.834232 | AF145: 1051.044283 | AG145: 1001.809269 | AH145: 941.3887541 | AI145: 872.4069226 | AJ145: 797.6708518 | AK145: 719.9889387 | AL145: 642.0055262 | AM145: 566.0646712 | AN145: 494.1116992 | AO145: 427.6363662 | AP145: 367.6567797 | AQ145: 314.7393009 | AR145: 269.0468478 | AS145: 230.4065287 | AT145: 86.73794919 | AU145: 87.04529912 | AV145: 87.35373813 | AW145: 870.7008669 | AX145: 0 | AY145: 0 | AZ145: 0 | BA145: 0 | BB145: 0 | BC145: 0 | BD145: 0 | BE145: 0 | BF145: 0 | BG145: 0 | BH145: 0 | BI145: 0 | BJ145: 0 | BK145: 0 | BL145: 0 | BM145: 0 | BN145: 0 | BO145: 0 | BP145: 0 | BQ145: 0 | BR145: 0 | BS145: 0 | BT145: 0 | BU145: 0 | BV145: 0 | BW145: =BW134 -> 0 | BX145: 0 | BY145: 0 | BZ145: 0 | CA145: 0 | CB145: 0 | CC145: 0 | CD145: 0 | CE145: 0 | CF145: 0 | CG145: 0 | CH145: 0 | CI145: 0 | CJ145: 0 | CK145: 0 | CL145: 0 | CM145: 0 | CN145: 0 | CO145: 0 | CP145: 0 | CQ145: 0 | CR145: 0 | CS145: 0 | CT145: 0 | CU145: 0 | CV145: 0 | CW145: 0 | CX145: 0 | CY145: 0 | CZ145: 0 | DA145: 0 | DB145: 0 | DC145: 0 | DD145: 0 | DE145: 0 | DF145: 0 | DG145: 0 | DH145: 0 | DI145: 0 | DJ145: 0 | DK145: 0 | DL145: 0 | DM145: 0 | DN145: 0 | DO145: 0 | DP145: 0 | DQ145: 0 | DR145: 0 | DS145: 0 | DT145: 0 | DU145: 0 | DV145: 0 | DW145: 0 | DX145: 0 | DY145: 0 | DZ145: 0 | EA145: 0 | EB145: 0 | EC145: 0 | ED145: 0 | EE145: 0 | EF145: 0 | EG145: 0 | EH145: 0 | EI145: =EI134 -> 0 | EJ145: 0 | EK145: 0 | EL145: 0 | EM145: 0 | EN145: 0 | EO145: 0 | EP145: 0 | EQ145: 0 | ER145: 0 | ES145: 0 | ET145: 0 | EU145: 0 | EV145: 0 | EW145: 0 | EX145: 0 | EY145: 0 | EZ145: 0 | FA145: 0 | FB145: 0 | FC145: 0
C146: Less: Debt Repayment | E146: Euro | J146: =J141 -> 0 | K146: =K141 -> 0 | L146: 0 | M146: 0 | N146: 0 | O146: 0 | P146: 0 | Q146: 0 | R146: 0 | S146: 0 | T146: 0 | U146: 0 | V146: 0 | W146: 0 | X146: 0 | Y146: 0 | Z146: 0 | AA146: 0 | AB146: 0 | AC146: 0 | AD146: 0 | AE146: 0 | AF146: 0 | AG146: 0 | AH146: 0 | AI146: 0 | AJ146: 0 | AK146: 0 | AL146: 0 | AM146: 0 | AN146: 0 | AO146: 0 | AP146: 0 | AQ146: 0 | AR146: 0 | AS146: 0 | AT146: 0 | AU146: 0 | AV146: 0 | AW146: 0 | AX146: 442.185937 | AY146: 442.185937 | AZ146: 442.185937 | BA146: 442.185937 | BB146: 442.185937 | BC146: 442.185937 | BD146: 442.185937 | BE146: 442.185937 | BF146: 442.185937 | BG146: 442.185937 | BH146: 442.185937 | BI146: 442.185937 | BJ146: 442.185937 | BK146: 442.185937 | BL146: 442.185937 | BM146: 442.185937 | BN146: 442.185937 | BO146: 442.185937 | BP146: 442.185937 | BQ146: 442.185937 | BR146: 442.185937 | BS146: 442.185937 | BT146: 442.185937 | BU146: 442.185937 | BV146: 442.185937 | BW146: =BW141 -> 442.185937 | BX146: 442.185937 | BY146: 442.185937 | BZ146: 442.185937 | CA146: 442.185937 | CB146: 442.185937 | CC146: 442.185937 | CD146: 442.185937 | CE146: 442.185937 | CF146: 442.185937 | CG146: 442.185937 | CH146: 442.185937 | CI146: 442.185937 | CJ146: 442.185937 | CK146: 442.185937 | CL146: 442.185937 | CM146: 442.185937 | CN146: 442.185937 | CO146: 442.185937 | CP146: 442.185937 | CQ146: 442.185937 | CR146: 442.185937 | CS146: 442.185937 | CT146: 442.185937 | CU146: 442.185937 | CV146: 0 | CW146: 0 | CX146: 0 | CY146: 0 | CZ146: 0 | DA146: 0 | DB146: 0 | DC146: 0 | DD146: 0 | DE146: 0 | DF146: 0 | DG146: 0 | DH146: 0 | DI146: 0 | DJ146: 0 | DK146: 0 | DL146: 0 | DM146: 0 | DN146: 0 | DO146: 0 | DP146: 0 | DQ146: 0 | DR146: 0 | DS146: 0 | DT146: 0 | DU146: 0 | DV146: 0 | DW146: 0 | DX146: 0 | DY146: 0 | DZ146: 0 | EA146: 0 | EB146: 0 | EC146: 0 | ED146: 0 | EE146: 0 | EF146: 0 | EG146: 0 | EH146: 0 | EI146: =EI141 -> 0 | EJ146: 0 | EK146: 0 | EL146: 0 | EM146: 0 | EN146: 0 | EO146: 0 | EP146: 0 | EQ146: 0 | ER146: 0 | ES146: 0 | ET146: 0 | EU146: 0 | EV146: 0 | EW146: 0 | EX146: 0 | EY146: 0 | EZ146: 0 | FA146: 0 | FB146: 0 | FC146: 0
C147: Closing Balance | J147: =J144+J145-J146 -> 0 | K147: =K144+K145-K146 -> 0 | L147: 0 | M147: 0 | N147: 0 | O147: 0 | P147: 0 | Q147: 142.6667257 | R147: 570.40573 | S147: 1073.619181 | T147: 1656.831491 | U147: 2322.645018 | V147: 3071.326213 | W147: 3900.487693 | X147: 4804.904827 | Y147: 5776.497058 | Z147: 6804.491375 | AA147: 7875.769391 | AB147: 8975.382056 | AC147: 10087.19931 | AD147: 11194.64803 | AE147: 12281.48226 | AF147: 13332.52654 | AG147: 14334.33581 | AH147: 15275.72457 | AI147: 16148.13149 | AJ147: 16945.80234 | AK147: 17665.79128 | AL147: 18307.7968 | AM147: 18873.86148 | AN147: 19367.97317 | AO147: 19795.60954 | AP147: 20163.26632 | AQ147: 20478.00562 | AR147: 20747.05247 | AS147: 20977.459 | AT147: 21064.19695 | AU147: 21151.24225 | AV147: 21238.59598 | AW147: 22109.29685 | AX147: 21667.11091 | AY147: 21224.92498 | AZ147: 20782.73904 | BA147: 20340.5531 | BB147: 19898.36717 | BC147: 19456.18123 | BD147: 19013.99529 | BE147: 18571.80936 | BF147: 18129.62342 | BG147: 17687.43748 | BH147: 17245.25154 | BI147: 16803.06561 | BJ147: 16360.87967 | BK147: 15918.69373 | BL147: 15476.5078 | BM147: 15034.32186 | BN147: 14592.13592 | BO147: 14149.94998 | BP147: 13707.76405 | BQ147: 13265.57811 | BR147: 12823.39217 | BS147: 12381.20624 | BT147: 11939.0203 | BU147: 11496.83436 | BV147: 11054.64843 | BW147: =BW144+BW145-BW146 -> 10612.46249 | BX147: 10170.27655 | BY147: 9728.090615 | BZ147: 9285.904678 | CA147: 8843.718741 | CB147: 8401.532804 | CC147: 7959.346867 | CD147: 7517.160929 | CE147: 7074.974992 | CF147: 6632.789055 | CG147: 6190.603118 | CH147: 5748.417181 | CI147: 5306.231244 | CJ147: 4864.045307 | CK147: 4421.85937 | CL147: 3979.673433 | CM147: 3537.487496 | CN147: 3095.301559 | CO147: 2653.115622 | CP147: 2210.929685 | CQ147: 1768.743748 | CR147: 1326.557811 | CS147: 884.3718741 | CT147: 442.185937 | CU147: 1.625721779e-11 | CV147: 1.625721779e-11 | CW147: 1.625721779e-11 | CX147: 1.625721779e-11 | CY147: 1.625721779e-11 | CZ147: 1.625721779e-11 | DA147: 1.625721779e-11 | DB147: 1.625721779e-11 | DC147: 1.625721779e-11 | DD147: 1.625721779e-11 | DE147: 1.625721779e-11 | DF147: 1.625721779e-11 | DG147: 1.625721779e-11 | DH147: 1.625721779e-11 | DI147: 1.625721779e-11 | DJ147: 1.625721779e-11 | DK147: 1.625721779e-11 | DL147: 1.625721779e-11 | DM147: 1.625721779e-11 | DN147: 1.625721779e-11 | DO147: 1.625721779e-11 | DP147: 1.625721779e-11 | DQ147: 1.625721779e-11 | DR147: 1.625721779e-11 | DS147: 1.625721779e-11 | DT147: 1.625721779e-11 | DU147: 1.625721779e-11 | DV147: 1.625721779e-11 | DW147: 1.625721779e-11 | DX147: 1.625721779e-11 | DY147: 1.625721779e-11 | DZ147: 1.625721779e-11 | EA147: 1.625721779e-11 | EB147: 1.625721779e-11 | EC147: 1.625721779e-11 | ED147: 1.625721779e-11 | EE147: 1.625721779e-11 | EF147: 1.625721779e-11 | EG147: 1.625721779e-11 | EH147: 1.625721779e-11 | EI147: =EI144+EI145-EI146 -> 1.625721779e-11 | EJ147: 1.625721779e-11 | EK147: 1.625721779e-11 | EL147: 1.625721779e-11 | EM147: 1.625721779e-11 | EN147: 1.625721779e-11 | EO147: 1.625721779e-11 | EP147: 1.625721779e-11 | EQ147: 1.625721779e-11 | ER147: 1.625721779e-11 | ES147: 1.625721779e-11 | ET147: 1.625721779e-11 | EU147: 1.625721779e-11 | EV147: 1.625721779e-11 | EW147: 1.625721779e-11 | EX147: 1.625721779e-11 | EY147: 1.625721779e-11 | EZ147: 1.625721779e-11 | FA147: 1.625721779e-11 | FB147: 1.625721779e-11 | FC147: 1.625721779e-11
C149: Annual Interest Rate | E149: % p.a. | J149: =LOOKUP(J5,44:44,45:45) -> 0.042 | K149: =LOOKUP(K5,44:44,45:45) -> 0.042 | L149: 0.042 | M149: 0.042 | N149: 0.042 | O149: 0.042 | P149: 0.042 | Q149: 0.042 | R149: 0.042 | S149: 0.042 | T149: 0.042 | U149: 0.042 | V149: 0.042 | W149: 0.042 | X149: 0.042 | Y149: 0.042 | Z149: 0.042 | AA149: 0.042 | AB149: 0.042 | AC149: 0.042 | AD149: 0.042 | AE149: 0.042 | AF149: 0.042 | AG149: 0.042 | AH149: 0.042 | AI149: 0.042 | AJ149: 0.042 | AK149: 0.042 | AL149: 0.042 | AM149: 0.042 | AN149: 0.042 | AO149: 0.042 | AP149: 0.042 | AQ149: 0.042 | AR149: 0.042 | AS149: 0.042 | AT149: 0.042 | AU149: 0.042 | AV149: 0.042 | AW149: 0.042 | AX149: 0.045 | AY149: 0.045 | AZ149: 0.045 | BA149: 0.045 | BB149: 0.046 | BC149: 0.046 | BD149: 0.046 | BE149: 0.046 | BF149: 0.0475 | BG149: 0.0475 | BH149: 0.0475 | BI149: 0.0475 | BJ149: 0.0475 | BK149: 0.0475 | BL149: 0.0475 | BM149: 0.0475 | BN149: 0.0475 | BO149: 0.0475 | BP149: 0.0475 | BQ149: 0.0475 | BR149: 0.0475 | BS149: 0.0475 | BT149: 0.0475 | BU149: 0.0475 | BV149: 0.0475 | BW149: =LOOKUP(BW5,44:44,45:45) -> 0.0475 | BX149: 0.0475 | BY149: 0.0475 | BZ149: 0.0475 | CA149: 0.0475 | CB149: 0.0475 | CC149: 0.0475 | CD149: 0.0475 | CE149: 0.0475 | CF149: 0.0475 | CG149: 0.0475 | CH149: 0.0475 | CI149: 0.0475 | CJ149: 0.0475 | CK149: 0.0475 | CL149: 0.0475 | CM149: 0.0475 | CN149: 0.0475 | CO149: 0.0475 | CP149: 0.0475 | CQ149: 0.0475 | CR149: 0.0475 | CS149: 0.0475 | CT149: 0.0475 | CU149: 0.0475 | CV149: 0.0475 | CW149: 0.0475 | CX149: 0.0475 | CY149: 0.0475 | CZ149: 0.0475 | DA149: 0.0475 | DB149: 0.0475 | DC149: 0.0475 | DD149: 0.0475 | DE149: 0.0475 | DF149: 0.0475 | DG149: 0.0475 | DH149: 0.0475 | DI149: 0.0475 | DJ149: 0.0475 | DK149: 0.0475 | DL149: 0.0475 | DM149: 0.0475 | DN149: 0.0475 | DO149: 0.0475 | DP149: 0.0475 | DQ149: 0.0475 | DR149: 0.0475 | DS149: 0.0475 | DT149: 0.0475 | DU149: 0.0475 | DV149: 0.0475 | DW149: 0.0475 | DX149: 0.0475 | DY149: 0.0475 | DZ149: 0.0475 | EA149: 0.0475 | EB149: 0.0475 | EC149: 0.0475 | ED149: 0.0475 | EE149: 0.0475 | EF149: 0.0475 | EG149: 0.0475 | EH149: 0.0475 | EI149: =LOOKUP(EI5,44:44,45:45) -> 0.0475 | EJ149: 0.0475 | EK149: 0.0475 | EL149: 0.0475 | EM149: 0.0475 | EN149: 0.0475 | EO149: 0.0475 | EP149: 0.0475 | EQ149: 0.0475 | ER149: 0.0475 | ES149: 0.0475 | ET149: 0.0475 | EU149: 0.0475 | EV149: 0.0475 | EW149: 0.0475 | EX149: 0.0475 | EY149: 0.0475 | EZ149: 0.0475 | FA149: 0.0475 | FB149: 0.0475 | FC149: 0.0475
C150: Periodic Interest Rate | E150: % p.p. | J150: =J149/12*J4 -> 0.0035 | K150: =K149/12*K4 -> 0.0035 | L150: 0.0035 | M150: 0.0035 | N150: 0.0035 | O150: 0.0035 | P150: 0.0035 | Q150: 0.0035 | R150: 0.0035 | S150: 0.0035 | T150: 0.0035 | U150: 0.0035 | V150: 0.0035 | W150: 0.0035 | X150: 0.0035 | Y150: 0.0035 | Z150: 0.0035 | AA150: 0.0035 | AB150: 0.0035 | AC150: 0.0035 | AD150: 0.0035 | AE150: 0.0035 | AF150: 0.0035 | AG150: 0.0035 | AH150: 0.0035 | AI150: 0.0035 | AJ150: 0.0035 | AK150: 0.0035 | AL150: 0.0035 | AM150: 0.0035 | AN150: 0.0035 | AO150: 0.0035 | AP150: 0.0035 | AQ150: 0.0035 | AR150: 0.0035 | AS150: 0.0035 | AT150: 0.0035 | AU150: 0.0035 | AV150: 0.0035 | AW150: 0.0035 | AX150: 0.0225 | AY150: 0.0225 | AZ150: 0.0225 | BA150: 0.0225 | BB150: 0.023 | BC150: 0.023 | BD150: 0.023 | BE150: 0.023 | BF150: 0.02375 | BG150: 0.02375 | BH150: 0.02375 | BI150: 0.02375 | BJ150: 0.02375 | BK150: 0.02375 | BL150: 0.02375 | BM150: 0.02375 | BN150: 0.02375 | BO150: 0.02375 | BP150: 0.02375 | BQ150: 0.02375 | BR150: 0.02375 | BS150: 0.02375 | BT150: 0.02375 | BU150: 0.02375 | BV150: 0.02375 | BW150: =BW149/12*BW4 -> 0.02375 | BX150: 0.02375 | BY150: 0.02375 | BZ150: 0.02375 | CA150: 0.02375 | CB150: 0.02375 | CC150: 0.02375 | CD150: 0.02375 | CE150: 0.02375 | CF150: 0.02375 | CG150: 0.02375 | CH150: 0.02375 | CI150: 0.02375 | CJ150: 0.02375 | CK150: 0.02375 | CL150: 0.02375 | CM150: 0.02375 | CN150: 0.02375 | CO150: 0.02375 | CP150: 0.02375 | CQ150: 0.02375 | CR150: 0.02375 | CS150: 0.02375 | CT150: 0.02375 | CU150: 0.02375 | CV150: 0.02375 | CW150: 0.02375 | CX150: 0.02375 | CY150: 0.02375 | CZ150: 0.02375 | DA150: 0.02375 | DB150: 0.02375 | DC150: 0.02375 | DD150: 0.02375 | DE150: 0.02375 | DF150: 0.02375 | DG150: 0.02375 | DH150: 0.02375 | DI150: 0.02375 | DJ150: 0.02375 | DK150: 0.02375 | DL150: 0.02375 | DM150: 0.02375 | DN150: 0.02375 | DO150: 0.02375 | DP150: 0.02375 | DQ150: 0.02375 | DR150: 0.02375 | DS150: 0.02375 | DT150: 0.02375 | DU150: 0.02375 | DV150: 0.02375 | DW150: 0.02375 | DX150: 0.02375 | DY150: 0.02375 | DZ150: 0.02375 | EA150: 0.02375 | EB150: 0.02375 | EC150: 0.02375 | ED150: 0.02375 | EE150: 0.02375 | EF150: 0.02375 | EG150: 0.02375 | EH150: 0.02375 | EI150: =EI149/12*EI4 -> 0.02375 | EJ150: 0.02375 | EK150: 0.02375 | EL150: 0.02375 | EM150: 0.02375 | EN150: 0.02375 | EO150: 0.02375 | EP150: 0.02375 | EQ150: 0.02375 | ER150: 0.02375 | ES150: 0.02375 | ET150: 0.02375 | EU150: 0.02375 | EV150: 0.02375 | EW150: 0.02375 | EX150: 0.02375 | EY150: 0.02375 | EZ150: 0.02375 | FA150: 0.02375 | FB150: 0.02375 | FC150: 0.02375
C152: Interest Cost | E152: Euro | I152: =SUM(J152:FC152) -> 14611.10104 | J152: =J150*J144 -> 0 | K152: =K150*K144 -> 0 | L152: 0 | M152: 0 | N152: 0 | O152: 0 | P152: 0 | Q152: 0 | R152: 0.4993335398 | S152: 1.996420055 | T152: 3.757667133 | U152: 5.79891022 | V152: 8.129257562 | W152: 10.74964175 | X152: 13.65170693 | Y152: 16.8171669 | Z152: 20.2177397 | AA152: 23.81571981 | AB152: 27.56519287 | AC152: 31.41383719 | AD152: 35.30519759 | AE152: 39.18126809 | AF152: 42.98518791 | AG152: 46.6638429 | AH152: 50.17017534 | AI152: 53.46503598 | AJ152: 56.51846021 | AK152: 59.31030819 | AL152: 61.83026947 | AM152: 64.07728882 | AN152: 66.05851516 | AO152: 67.78790611 | AP152: 69.28463339 | AQ152: 70.57143212 | AR152: 71.67301968 | AS152: 72.61468364 | AT152: 73.42110649 | AU152: 73.72468932 | AV152: 74.02934786 | AW152: 74.33508595 | AX152: 497.4591792 | AY152: 487.5099956 | AZ152: 477.560812 | BA152: 467.6116284 | BB152: 467.8327214 | BC152: 457.6624448 | BD152: 447.4921683 | BE152: 437.3218917 | BF152: 441.0804722 | BG152: 430.5785562 | BH152: 420.0766402 | BI152: 409.5747242 | BJ152: 399.0728082 | BK152: 388.5708922 | BL152: 378.0689762 | BM152: 367.5670602 | BN152: 357.0651442 | BO152: 346.5632281 | BP152: 336.0613121 | BQ152: 325.5593961 | BR152: 315.0574801 | BS152: 304.5555641 | BT152: 294.0536481 | BU152: 283.5517321 | BV152: 273.0498161 | BW152: =BW150*BW144 -> 262.5479001 | BX152: 252.0459841 | BY152: 241.5440681 | BZ152: 231.0421521 | CA152: 220.5402361 | CB152: 210.0383201 | CC152: 199.5364041 | CD152: 189.0344881 | CE152: 178.5325721 | CF152: 168.0306561 | CG152: 157.5287401 | CH152: 147.0268241 | CI152: 136.5249081 | CJ152: 126.0229921 | CK152: 115.521076 | CL152: 105.01916 | CM152: 94.51724404 | CN152: 84.01532804 | CO152: 73.51341203 | CP152: 63.01149603 | CQ152: 52.50958002 | CR152: 42.00766402 | CS152: 31.50574801 | CT152: 21.00383201 | CU152: 10.501916 | CV152: 3.861089226e-13 | CW152: 3.861089226e-13 | CX152: 3.861089226e-13 | CY152: 3.861089226e-13 | CZ152: 3.861089226e-13 | DA152: 3.861089226e-13 | DB152: 3.861089226e-13 | DC152: 3.861089226e-13 | DD152: 3.861089226e-13 | DE152: 3.861089226e-13 | DF152: 3.861089226e-13 | DG152: 3.861089226e-13 | DH152: 3.861089226e-13 | DI152: 3.861089226e-13 | DJ152: 3.861089226e-13 | DK152: 3.861089226e-13 | DL152: 3.861089226e-13 | DM152: 3.861089226e-13 | DN152: 3.861089226e-13 | DO152: 3.861089226e-13 | DP152: 3.861089226e-13 | DQ152: 3.861089226e-13 | DR152: 3.861089226e-13 | DS152: 3.861089226e-13 | DT152: 3.861089226e-13 | DU152: 3.861089226e-13 | DV152: 3.861089226e-13 | DW152: 3.861089226e-13 | DX152: 3.861089226e-13 | DY152: 3.861089226e-13 | DZ152: 3.861089226e-13 | EA152: 3.861089226e-13 | EB152: 3.861089226e-13 | EC152: 3.861089226e-13 | ED152: 3.861089226e-13 | EE152: 3.861089226e-13 | EF152: 3.861089226e-13 | EG152: 3.861089226e-13 | EH152: 3.861089226e-13 | EI152: =EI150*EI144 -> 3.861089226e-13 | EJ152: 3.861089226e-13 | EK152: 3.861089226e-13 | EL152: 3.861089226e-13 | EM152: 3.861089226e-13 | EN152: 3.861089226e-13 | EO152: 3.861089226e-13 | EP152: 3.861089226e-13 | EQ152: 3.861089226e-13 | ER152: 3.861089226e-13 | ES152: 3.861089226e-13 | ET152: 3.861089226e-13 | EU152: 3.861089226e-13 | EV152: 3.861089226e-13 | EW152: 3.861089226e-13 | EX152: 3.861089226e-13 | EY152: 3.861089226e-13 | EZ152: 3.861089226e-13 | FA152: 3.861089226e-13 | FB152: 3.861089226e-13 | FC152: 3.861089226e-13
C153: Interest During Construction | E153: Euro | I153: =SUM(J153:FC153) -> 1387.420048 | J153: =J152*J3 -> 0 | K153: =K152*K3 -> 0 | L153: 0 | M153: 0 | N153: 0 | O153: 0 | P153: 0 | Q153: 0 | R153: 0.4993335398 | S153: 1.996420055 | T153: 3.757667133 | U153: 5.79891022 | V153: 8.129257562 | W153: 10.74964175 | X153: 13.65170693 | Y153: 16.8171669 | Z153: 20.2177397 | AA153: 23.81571981 | AB153: 27.56519287 | AC153: 31.41383719 | AD153: 35.30519759 | AE153: 39.18126809 | AF153: 42.98518791 | AG153: 46.6638429 | AH153: 50.17017534 | AI153: 53.46503598 | AJ153: 56.51846021 | AK153: 59.31030819 | AL153: 61.83026947 | AM153: 64.07728882 | AN153: 66.05851516 | AO153: 67.78790611 | AP153: 69.28463339 | AQ153: 70.57143212 | AR153: 71.67301968 | AS153: 72.61468364 | AT153: 73.42110649 | AU153: 73.72468932 | AV153: 74.02934786 | AW153: 74.33508595 | AX153: 0 | AY153: 0 | AZ153: 0 | BA153: 0 | BB153: 0 | BC153: 0 | BD153: 0 | BE153: 0 | BF153: 0 | BG153: 0 | BH153: 0 | BI153: 0 | BJ153: 0 | BK153: 0 | BL153: 0 | BM153: 0 | BN153: 0 | BO153: 0 | BP153: 0 | BQ153: 0 | BR153: 0 | BS153: 0 | BT153: 0 | BU153: 0 | BV153: 0 | BW153: =BW152*BW3 -> 0 | BX153: 0 | BY153: 0 | BZ153: 0 | CA153: 0 | CB153: 0 | CC153: 0 | CD153: 0 | CE153: 0 | CF153: 0 | CG153: 0 | CH153: 0 | CI153: 0 | CJ153: 0 | CK153: 0 | CL153: 0 | CM153: 0 | CN153: 0 | CO153: 0 | CP153: 0 | CQ153: 0 | CR153: 0 | CS153: 0 | CT153: 0 | CU153: 0 | CV153: 0 | CW153: 0 | CX153: 0 | CY153: 0 | CZ153: 0 | DA153: 0 | DB153: 0 | DC153: 0 | DD153: 0 | DE153: 0 | DF153: 0 | DG153: 0 | DH153: 0 | DI153: 0 | DJ153: 0 | DK153: 0 | DL153: 0 | DM153: 0 | DN153: 0 | DO153: 0 | DP153: 0 | DQ153: 0 | DR153: 0 | DS153: 0 | DT153: 0 | DU153: 0 | DV153: 0 | DW153: 0 | DX153: 0 | DY153: 0 | DZ153: 0 | EA153: 0 | EB153: 0 | EC153: 0 | ED153: 0 | EE153: 0 | EF153: 0 | EG153: 0 | EH153: 0 | EI153: =EI152*EI3 -> 0 | EJ153: 0 | EK153: 0 | EL153: 0 | EM153: 0 | EN153: 0 | EO153: 0 | EP153: 0 | EQ153: 0 | ER153: 0 | ES153: 0 | ET153: 0 | EU153: 0 | EV153: 0 | EW153: 0 | EX153: 0 | EY153: 0 | EZ153: 0 | FA153: 0 | FB153: 0 | FC153: 0
C154: Interest Expense | E154: Euro | I154: =SUM(J154:FC154) -> 13223.68099 | J154: =J152*J7 -> 0 | K154: =K152*K7 -> 0 | L154: 0 | M154: 0 | N154: 0 | O154: 0 | P154: 0 | Q154: 0 | R154: 0 | S154: 0 | T154: 0 | U154: 0 | V154: 0 | W154: 0 | X154: 0 | Y154: 0 | Z154: 0 | AA154: 0 | AB154: 0 | AC154: 0 | AD154: 0 | AE154: 0 | AF154: 0 | AG154: 0 | AH154: 0 | AI154: 0 | AJ154: 0 | AK154: 0 | AL154: 0 | AM154: 0 | AN154: 0 | AO154: 0 | AP154: 0 | AQ154: 0 | AR154: 0 | AS154: 0 | AT154: 0 | AU154: 0 | AV154: 0 | AW154: 0 | AX154: 497.4591792 | AY154: 487.5099956 | AZ154: 477.560812 | BA154: 467.6116284 | BB154: 467.8327214 | BC154: 457.6624448 | BD154: 447.4921683 | BE154: 437.3218917 | BF154: 441.0804722 | BG154: 430.5785562 | BH154: 420.0766402 | BI154: 409.5747242 | BJ154: 399.0728082 | BK154: 388.5708922 | BL154: 378.0689762 | BM154: 367.5670602 | BN154: 357.0651442 | BO154: 346.5632281 | BP154: 336.0613121 | BQ154: 325.5593961 | BR154: 315.0574801 | BS154: 304.5555641 | BT154: 294.0536481 | BU154: 283.5517321 | BV154: 273.0498161 | BW154: =BW152*BW7 -> 262.5479001 | BX154: 252.0459841 | BY154: 241.5440681 | BZ154: 231.0421521 | CA154: 220.5402361 | CB154: 210.0383201 | CC154: 199.5364041 | CD154: 189.0344881 | CE154: 178.5325721 | CF154: 168.0306561 | CG154: 157.5287401 | CH154: 147.0268241 | CI154: 136.5249081 | CJ154: 126.0229921 | CK154: 115.521076 | CL154: 105.01916 | CM154: 94.51724404 | CN154: 84.01532804 | CO154: 73.51341203 | CP154: 63.01149603 | CQ154: 52.50958002 | CR154: 42.00766402 | CS154: 31.50574801 | CT154: 21.00383201 | CU154: 10.501916 | CV154: 3.861089226e-13 | CW154: 3.861089226e-13 | CX154: 3.861089226e-13 | CY154: 3.861089226e-13 | CZ154: 3.861089226e-13 | DA154: 3.861089226e-13 | DB154: 3.861089226e-13 | DC154: 3.861089226e-13 | DD154: 3.861089226e-13 | DE154: 3.861089226e-13 | DF154: 3.861089226e-13 | DG154: 3.861089226e-13 | DH154: 3.861089226e-13 | DI154: 3.861089226e-13 | DJ154: 3.861089226e-13 | DK154: 3.861089226e-13 | DL154: 3.861089226e-13 | DM154: 3.861089226e-13 | DN154: 3.861089226e-13 | DO154: 3.861089226e-13 | DP154: 3.861089226e-13 | DQ154: 3.861089226e-13 | DR154: 3.861089226e-13 | DS154: 3.861089226e-13 | DT154: 3.861089226e-13 | DU154: 3.861089226e-13 | DV154: 3.861089226e-13 | DW154: 3.861089226e-13 | DX154: 3.861089226e-13 | DY154: 3.861089226e-13 | DZ154: 0 | EA154: 0 | EB154: 0 | EC154: 0 | ED154: 0 | EE154: 0 | EF154: 0 | EG154: 0 | EH154: 0 | EI154: =EI152*EI7 -> 0 | EJ154: 0 | EK154: 0 | EL154: 0 | EM154: 0 | EN154: 0 | EO154: 0 | EP154: 0 | EQ154: 0 | ER154: 0 | ES154: 0 | ET154: 0 | EU154: 0 | EV154: 0 | EW154: 0 | EX154: 0 | EY154: 0 | EZ154: 0 | FA154: 0 | FB154: 0 | FC154: 0
C155: Witholding Tax Pre-COD | E155: Euro | G155: =F47 -> 0.075 | H155: =G155/(1-G155) -> 0.08108108108 | I155: =SUM(J155:FC155) -> 112.4935174 | J155: =$H$155*J153 -> 0 | K155: =$H$155*K153 -> 0 | L155: 0 | M155: 0 | N155: 0 | O155: 0 | P155: 0 | Q155: 0 | R155: 0.04048650323 | S155: 0.1618718963 | T155: 0.3046757135 | U155: 0.4701819097 | V155: 0.6591289915 | W155: 0.871592574 | X155: 1.106895156 | Y155: 1.363554073 | Z155: 1.639276192 | AA155: 1.931004309 | AB155: 2.235015638 | AC155: 2.547067881 | AD155: 2.862583589 | AE155: 3.176859575 | AF155: 3.485285506 | AG155: 3.783554829 | AH155: 4.067852055 | AI155: 4.335002917 | AJ155: 4.582577855 | AK155: 4.808943907 | AL155: 5.013265093 | AM155: 5.19545585 | AN155: 5.356095824 | AO155: 5.496316712 | AP155: 5.617672978 | AQ155: 5.72200801 | AR155: 5.81132592 | AS155: 5.887677052 | AT155: 5.953062689 | AU155: 5.977677512 | AV155: 6.002379556 | AW155: 6.027169131 | AX155: 0 | AY155: 0 | AZ155: 0 | BA155: 0 | BB155: 0 | BC155: 0 | BD155: 0 | BE155: 0 | BF155: 0 | BG155: 0 | BH155: 0 | BI155: 0 | BJ155: 0 | BK155: 0 | BL155: 0 | BM155: 0 | BN155: 0 | BO155: 0 | BP155: 0 | BQ155: 0 | BR155: 0 | BS155: 0 | BT155: 0 | BU155: 0 | BV155: 0 | BW155: =$H$155*BW153 -> 0 | BX155: 0 | BY155: 0 | BZ155: 0 | CA155: 0 | CB155: 0 | CC155: 0 | CD155: 0 | CE155: 0 | CF155: 0 | CG155: 0 | CH155: 0 | CI155: 0 | CJ155: 0 | CK155: 0 | CL155: 0 | CM155: 0 | CN155: 0 | CO155: 0 | CP155: 0 | CQ155: 0 | CR155: 0 | CS155: 0 | CT155: 0 | CU155: 0 | CV155: 0 | CW155: 0 | CX155: 0 | CY155: 0 | CZ155: 0 | DA155: 0 | DB155: 0 | DC155: 0 | DD155: 0 | DE155: 0 | DF155: 0 | DG155: 0 | DH155: 0 | DI155: 0 | DJ155: 0 | DK155: 0 | DL155: 0 | DM155: 0 | DN155: 0 | DO155: 0 | DP155: 0 | DQ155: 0 | DR155: 0 | DS155: 0 | DT155: 0 | DU155: 0 | DV155: 0 | DW155: 0 | DX155: 0 | DY155: 0 | DZ155: 0 | EA155: 0 | EB155: 0 | EC155: 0 | ED155: 0 | EE155: 0 | EF155: 0 | EG155: 0 | EH155: 0 | EI155: =$H$155*EI153 -> 0 | EJ155: 0 | EK155: 0 | EL155: 0 | EM155: 0 | EN155: 0 | EO155: 0 | EP155: 0 | EQ155: 0 | ER155: 0 | ES155: 0 | ET155: 0 | EU155: 0 | EV155: 0 | EW155: 0 | EX155: 0 | EY155: 0 | EZ155: 0 | FA155: 0 | FB155: 0 | FC155: 0
C156: Witholding Tax Post-COD | E156: Euro | G156: =G155 -> 0.075 | H156: =H155 -> 0.08108108108 | I156: =SUM(J156:FC156) -> 1072.190351 | J156: =$H$156*J154 -> 0 | K156: =$H$156*K154 -> 0 | L156: 0 | M156: 0 | N156: 0 | O156: 0 | P156: 0 | Q156: 0 | R156: 0 | S156: 0 | T156: 0 | U156: 0 | V156: 0 | W156: 0 | X156: 0 | Y156: 0 | Z156: 0 | AA156: 0 | AB156: 0 | AC156: 0 | AD156: 0 | AE156: 0 | AF156: 0 | AG156: 0 | AH156: 0 | AI156: 0 | AJ156: 0 | AK156: 0 | AL156: 0 | AM156: 0 | AN156: 0 | AO156: 0 | AP156: 0 | AQ156: 0 | AR156: 0 | AS156: 0 | AT156: 0 | AU156: 0 | AV156: 0 | AW156: 0 | AX156: 40.33452804 | AY156: 39.52783748 | AZ156: 38.72114692 | BA156: 37.91445636 | BB156: 37.93238281 | BC156: 37.1077658 | BD156: 36.28314878 | BE156: 35.45853176 | BF156: 35.76328153 | BG156: 34.91177483 | BH156: 34.06026812 | BI156: 33.20876142 | BJ156: 32.35725472 | BK156: 31.50574801 | BL156: 30.65424131 | BM156: 29.80273461 | BN156: 28.9512279 | BO156: 28.0997212 | BP156: 27.2482145 | BQ156: 26.39670779 | BR156: 25.54520109 | BS156: 24.69369439 | BT156: 23.84218769 | BU156: 22.99068098 | BV156: 22.13917428 | BW156: =$H$156*BW154 -> 21.28766758 | BX156: 20.43616087 | BY156: 19.58465417 | BZ156: 18.73314747 | CA156: 17.88164076 | CB156: 17.03013406 | CC156: 16.17862736 | CD156: 15.32712066 | CE156: 14.47561395 | CF156: 13.62410725 | CG156: 12.77260055 | CH156: 11.92109384 | CI156: 11.06958714 | CJ156: 10.21808044 | CK156: 9.366573734 | CL156: 8.515067031 | CM156: 7.663560328 | CN156: 6.812053625 | CO156: 5.960546921 | CP156: 5.109040218 | CQ156: 4.257533515 | CR156: 3.406026812 | CS156: 2.554520109 | CT156: 1.703013406 | CU156: 0.8515067031 | CV156: 3.130612886e-14 | CW156: 3.130612886e-14 | CX156: 3.130612886e-14 | CY156: 3.130612886e-14 | CZ156: 3.130612886e-14 | DA156: 3.130612886e-14 | DB156: 3.130612886e-14 | DC156: 3.130612886e-14 | DD156: 3.130612886e-14 | DE156: 3.130612886e-14 | DF156: 3.130612886e-14 | DG156: 3.130612886e-14 | DH156: 3.130612886e-14 | DI156: 3.130612886e-14 | DJ156: 3.130612886e-14 | DK156: 3.130612886e-14 | DL156: 3.130612886e-14 | DM156: 3.130612886e-14 | DN156: 3.130612886e-14 | DO156: 3.130612886e-14 | DP156: 3.130612886e-14 | DQ156: 3.130612886e-14 | DR156: 3.130612886e-14 | DS156: 3.130612886e-14 | DT156: 3.130612886e-14 | DU156: 3.130612886e-14 | DV156: 3.130612886e-14 | DW156: 3.130612886e-14 | DX156: 3.130612886e-14 | DY156: 3.130612886e-14 | DZ156: 0 | EA156: 0 | EB156: 0 | EC156: 0 | ED156: 0 | EE156: 0 | EF156: 0 | EG156: 0 | EH156: 0 | EI156: =$H$156*EI154 -> 0 | EJ156: 0 | EK156: 0 | EL156: 0 | EM156: 0 | EN156: 0 | EO156: 0 | EP156: 0 | EQ156: 0 | ER156: 0 | ES156: 0 | ET156: 0 | EU156: 0 | EV156: 0 | EW156: 0 | EX156: 0 | EY156: 0 | EZ156: 0 | FA156: 0 | FB156: 0 | FC156: 0
B158: Fees
C159: Commitment | E159: Euro | G159: =G89 -> 22109.29685 | J159: =$G$159 -> 22109.29685 | K159: =$G$159 -> 22109.29685 | L159: 22109.29685 | M159: 22109.29685 | N159: 22109.29685 | O159: 22109.29685 | P159: 22109.29685 | Q159: 22109.29685 | R159: 22109.29685 | S159: 22109.29685 | T159: 22109.29685 | U159: 22109.29685 | V159: 22109.29685 | W159: 22109.29685 | X159: 22109.29685 | Y159: 22109.29685 | Z159: 22109.29685 | AA159: 22109.29685 | AB159: 22109.29685 | AC159: 22109.29685 | AD159: 22109.29685 | AE159: 22109.29685 | AF159: 22109.29685 | AG159: 22109.29685 | AH159: 22109.29685 | AI159: 22109.29685 | AJ159: 22109.29685 | AK159: 22109.29685 | AL159: 22109.29685 | AM159: 22109.29685 | AN159: 22109.29685 | AO159: 22109.29685 | AP159: 22109.29685 | AQ159: 22109.29685 | AR159: 22109.29685 | AS159: 22109.29685 | AT159: 22109.29685 | AU159: 22109.29685 | AV159: 22109.29685 | AW159: 22109.29685 | AX159: 22109.29685 | AY159: 22109.29685 | AZ159: 22109.29685 | BA159: 22109.29685 | BB159: 22109.29685 | BC159: 22109.29685 | BD159: 22109.29685 | BE159: 22109.29685 | BF159: 22109.29685 | BG159: 22109.29685 | BH159: 22109.29685 | BI159: 22109.29685 | BJ159: 22109.29685 | BK159: 22109.29685 | BL159: 22109.29685 | BM159: 22109.29685 | BN159: 22109.29685 | BO159: 22109.29685 | BP159: 22109.29685 | BQ159: 22109.29685 | BR159: 22109.29685 | BS159: 22109.29685 | BT159: 22109.29685 | BU159: 22109.29685 | BV159: 22109.29685 | BW159: =$G$159 -> 22109.29685 | BX159: 22109.29685 | BY159: 22109.29685 | BZ159: 22109.29685 | CA159: 22109.29685 | CB159: 22109.29685 | CC159: 22109.29685 | CD159: 22109.29685 | CE159: 22109.29685 | CF159: 22109.29685 | CG159: 22109.29685 | CH159: 22109.29685 | CI159: 22109.29685 | CJ159: 22109.29685 | CK159: 22109.29685 | CL159: 22109.29685 | CM159: 22109.29685 | CN159: 22109.29685 | CO159: 22109.29685 | CP159: 22109.29685 | CQ159: 22109.29685 | CR159: 22109.29685 | CS159: 22109.29685 | CT159: 22109.29685 | CU159: 22109.29685 | CV159: 22109.29685 | CW159: 22109.29685 | CX159: 22109.29685 | CY159: 22109.29685 | CZ159: 22109.29685 | DA159: 22109.29685 | DB159: 22109.29685 | DC159: 22109.29685 | DD159: 22109.29685 | DE159: 22109.29685 | DF159: 22109.29685 | DG159: 22109.29685 | DH159: 22109.29685 | DI159: 22109.29685 | DJ159: 22109.29685 | DK159: 22109.29685 | DL159: 22109.29685 | DM159: 22109.29685 | DN159: 22109.29685 | DO159: 22109.29685 | DP159: 22109.29685 | DQ159: 22109.29685 | DR159: 22109.29685 | DS159: 22109.29685 | DT159: 22109.29685 | DU159: 22109.29685 | DV159: 22109.29685 | DW159: 22109.29685 | DX159: 22109.29685 | DY159: 22109.29685 | DZ159: 22109.29685 | EA159: 22109.29685 | EB159: 22109.29685 | EC159: 22109.29685 | ED159: 22109.29685 | EE159: 22109.29685 | EF159: 22109.29685 | EG159: 22109.29685 | EH159: 22109.29685 | EI159: =$G$159 -> 22109.29685 | EJ159: 22109.29685 | EK159: 22109.29685 | EL159: 22109.29685 | EM159: 22109.29685 | EN159: 22109.29685 | EO159: 22109.29685 | EP159: 22109.29685 | EQ159: 22109.29685 | ER159: 22109.29685 | ES159: 22109.29685 | ET159: 22109.29685 | EU159: 22109.29685 | EV159: 22109.29685 | EW159: 22109.29685 | EX159: 22109.29685 | EY159: 22109.29685 | EZ159: 22109.29685 | FA159: 22109.29685 | FB159: 22109.29685 | FC159: 22109.29685
C160: Financial Close Flag | E160: Flag | J160: =J61 -> 1 | K160: =K61 -> 0 | L160: 0 | M160: 0 | N160: 0 | O160: 0 | P160: 0 | Q160: 0 | R160: 0 | S160: 0 | T160: 0 | U160: 0 | V160: 0 | W160: 0 | X160: 0 | Y160: 0 | Z160: 0 | AA160: 0 | AB160: 0 | AC160: 0 | AD160: 0 | AE160: 0 | AF160: 0 | AG160: 0 | AH160: 0 | AI160: 0 | AJ160: 0 | AK160: 0 | AL160: 0 | AM160: 0 | AN160: 0 | AO160: 0 | AP160: 0 | AQ160: 0 | AR160: 0 | AS160: 0 | AT160: 0 | AU160: 0 | AV160: 0 | AW160: 0 | AX160: 0 | AY160: 0 | AZ160: 0 | BA160: 0 | BB160: 0 | BC160: 0 | BD160: 0 | BE160: 0 | BF160: 0 | BG160: 0 | BH160: 0 | BI160: 0 | BJ160: 0 | BK160: 0 | BL160: 0 | BM160: 0 | BN160: 0 | BO160: 0 | BP160: 0 | BQ160: 0 | BR160: 0 | BS160: 0 | BT160: 0 | BU160: 0 | BV160: 0 | BW160: =BW61 -> 0 | BX160: 0 | BY160: 0 | BZ160: 0 | CA160: 0 | CB160: 0 | CC160: 0 | CD160: 0 | CE160: 0 | CF160: 0 | CG160: 0 | CH160: 0 | CI160: 0 | CJ160: 0 | CK160: 0 | CL160: 0 | CM160: 0 | CN160: 0 | CO160: 0 | CP160: 0 | CQ160: 0 | CR160: 0 | CS160: 0 | CT160: 0 | CU160: 0 | CV160: 0 | CW160: 0 | CX160: 0 | CY160: 0 | CZ160: 0 | DA160: 0 | DB160: 0 | DC160: 0 | DD160: 0 | DE160: 0 | DF160: 0 | DG160: 0 | DH160: 0 | DI160: 0 | DJ160: 0 | DK160: 0 | DL160: 0 | DM160: 0 | DN160: 0 | DO160: 0 | DP160: 0 | DQ160: 0 | DR160: 0 | DS160: 0 | DT160: 0 | DU160: 0 | DV160: 0 | DW160: 0 | DX160: 0 | DY160: 0 | DZ160: 0 | EA160: 0 | EB160: 0 | EC160: 0 | ED160: 0 | EE160: 0 | EF160: 0 | EG160: 0 | EH160: 0 | EI160: =EI61 -> 0 | EJ160: 0 | EK160: 0 | EL160: 0 | EM160: 0 | EN160: 0 | EO160: 0 | EP160: 0 | EQ160: 0 | ER160: 0 | ES160: 0 | ET160: 0 | EU160: 0 | EV160: 0 | EW160: 0 | EX160: 0 | EY160: 0 | EZ160: 0 | FA160: 0 | FB160: 0 | FC160: 0
C161: Up-Front Fee | E161: Euro | G161: =F54 -> 0.012 | I161: =SUM(J161:FC161) -> 265.3115622 | J161: =J159*J160*$G$161 -> 265.3115622 | K161: =K159*K160*$G$161 -> 0 | L161: 0 | M161: 0 | N161: 0 | O161: 0 | P161: 0 | Q161: 0 | R161: 0 | S161: 0 | T161: 0 | U161: 0 | V161: 0 | W161: 0 | X161: 0 | Y161: 0 | Z161: 0 | AA161: 0 | AB161: 0 | AC161: 0 | AD161: 0 | AE161: 0 | AF161: 0 | AG161: 0 | AH161: 0 | AI161: 0 | AJ161: 0 | AK161: 0 | AL161: 0 | AM161: 0 | AN161: 0 | AO161: 0 | AP161: 0 | AQ161: 0 | AR161: 0 | AS161: 0 | AT161: 0 | AU161: 0 | AV161: 0 | AW161: 0 | AX161: 0 | AY161: 0 | AZ161: 0 | BA161: 0 | BB161: 0 | BC161: 0 | BD161: 0 | BE161: 0 | BF161: 0 | BG161: 0 | BH161: 0 | BI161: 0 | BJ161: 0 | BK161: 0 | BL161: 0 | BM161: 0 | BN161: 0 | BO161: 0 | BP161: 0 | BQ161: 0 | BR161: 0 | BS161: 0 | BT161: 0 | BU161: 0 | BV161: 0 | BW161: =BW159*BW160*$G$161 -> 0 | BX161: 0 | BY161: 0 | BZ161: 0 | CA161: 0 | CB161: 0 | CC161: 0 | CD161: 0 | CE161: 0 | CF161: 0 | CG161: 0 | CH161: 0 | CI161: 0 | CJ161: 0 | CK161: 0 | CL161: 0 | CM161: 0 | CN161: 0 | CO161: 0 | CP161: 0 | CQ161: 0 | CR161: 0 | CS161: 0 | CT161: 0 | CU161: 0 | CV161: 0 | CW161: 0 | CX161: 0 | CY161: 0 | CZ161: 0 | DA161: 0 | DB161: 0 | DC161: 0 | DD161: 0 | DE161: 0 | DF161: 0 | DG161: 0 | DH161: 0 | DI161: 0 | DJ161: 0 | DK161: 0 | DL161: 0 | DM161: 0 | DN161: 0 | DO161: 0 | DP161: 0 | DQ161: 0 | DR161: 0 | DS161: 0 | DT161: 0 | DU161: 0 | DV161: 0 | DW161: 0 | DX161: 0 | DY161: 0 | DZ161: 0 | EA161: 0 | EB161: 0 | EC161: 0 | ED161: 0 | EE161: 0 | EF161: 0 | EG161: 0 | EH161: 0 | EI161: =EI159*EI160*$G$161 -> 0 | EJ161: 0 | EK161: 0 | EL161: 0 | EM161: 0 | EN161: 0 | EO161: 0 | EP161: 0 | EQ161: 0 | ER161: 0 | ES161: 0 | ET161: 0 | EU161: 0 | EV161: 0 | EW161: 0 | EX161: 0 | EY161: 0 | EZ161: 0 | FA161: 0 | FB161: 0 | FC161: 0
C163: Undrawn Commitment | E163: Euro | J163: =J159-J144 -> 22109.29685 | K163: =K159-K144 -> 22109.29685 | L163: 22109.29685 | M163: 22109.29685 | N163: 22109.29685 | O163: 22109.29685 | P163: 22109.29685 | Q163: 22109.29685 | R163: 21966.63013 | S163: 21538.89112 | T163: 21035.67767 | U163: 20452.46536 | V163: 19786.65183 | W163: 19037.97064 | X163: 18208.80916 | Y163: 17304.39202 | Z163: 16332.79979 | AA163: 15304.80548 | AB163: 14233.52746 | AC163: 13133.9148 | AD163: 12022.09754 | AE163: 10914.64882 | AF163: 9827.814593 | AG163: 8776.77031 | AH163: 7774.96104 | AI163: 6833.572286 | AJ163: 5961.165364 | AK163: 5163.494512 | AL163: 4443.505573 | AM163: 3801.500047 | AN163: 3235.435376 | AO163: 2741.323677 | AP163: 2313.68731 | AQ163: 1946.030531 | AR163: 1631.29123 | AS163: 1362.244382 | AT163: 1131.837853 | AU163: 1045.099904 | AV163: 958.054605 | AW163: 870.7008669 | AX163: 0 | AY163: 442.185937 | AZ163: 884.3718741 | BA163: 1326.557811 | BB163: 1768.743748 | BC163: 2210.929685 | BD163: 2653.115622 | BE163: 3095.301559 | BF163: 3537.487496 | BG163: 3979.673433 | BH163: 4421.85937 | BI163: 4864.045307 | BJ163: 5306.231244 | BK163: 5748.417181 | BL163: 6190.603118 | BM163: 6632.789055 | BN163: 7074.974992 | BO163: 7517.160929 | BP163: 7959.346867 | BQ163: 8401.532804 | BR163: 8843.718741 | BS163: 9285.904678 | BT163: 9728.090615 | BU163: 10170.27655 | BV163: 10612.46249 | BW163: =BW159-BW144 -> 11054.64843 | BX163: 11496.83436 | BY163: 11939.0203 | BZ163: 12381.20624 | CA163: 12823.39217 | CB163: 13265.57811 | CC163: 13707.76405 | CD163: 14149.94998 | CE163: 14592.13592 | CF163: 15034.32186 | CG163: 15476.5078 | CH163: 15918.69373 | CI163: 16360.87967 | CJ163: 16803.06561 | CK163: 17245.25154 | CL163: 17687.43748 | CM163: 18129.62342 | CN163: 18571.80936 | CO163: 19013.99529 | CP163: 19456.18123 | CQ163: 19898.36717 | CR163: 20340.5531 | CS163: 20782.73904 | CT163: 21224.92498 | CU163: 21667.11091 | CV163: 22109.29685 | CW163: 22109.29685 | CX163: 22109.29685 | CY163: 22109.29685 | CZ163: 22109.29685 | DA163: 22109.29685 | DB163: 22109.29685 | DC163: 22109.29685 | DD163: 22109.29685 | DE163: 22109.29685 | DF163: 22109.29685 | DG163: 22109.29685 | DH163: 22109.29685 | DI163: 22109.29685 | DJ163: 22109.29685 | DK163: 22109.29685 | DL163: 22109.29685 | DM163: 22109.29685 | DN163: 22109.29685 | DO163: 22109.29685 | DP163: 22109.29685 | DQ163: 22109.29685 | DR163: 22109.29685 | DS163: 22109.29685 | DT163: 22109.29685 | DU163: 22109.29685 | DV163: 22109.29685 | DW163: 22109.29685 | DX163: 22109.29685 | DY163: 22109.29685 | DZ163: 22109.29685 | EA163: 22109.29685 | EB163: 22109.29685 | EC163: 22109.29685 | ED163: 22109.29685 | EE163: 22109.29685 | EF163: 22109.29685 | EG163: 22109.29685 | EH163: 22109.29685 | EI163: =EI159-EI144 -> 22109.29685 | EJ163: 22109.29685 | EK163: 22109.29685 | EL163: 22109.29685 | EM163: 22109.29685 | EN163: 22109.29685 | EO163: 22109.29685 | EP163: 22109.29685 | EQ163: 22109.29685 | ER163: 22109.29685 | ES163: 22109.29685 | ET163: 22109.29685 | EU163: 22109.29685 | EV163: 22109.29685 | EW163: 22109.29685 | EX163: 22109.29685 | EY163: 22109.29685 | EZ163: 22109.29685 | FA163: 22109.29685 | FB163: 22109.29685 | FC163: 22109.29685
C164: Periodic Fee % | E164: % | G164: =F55 -> 0.007 | J164: =$G$164*J4/12 -> 0.0005833333333 | K164: =$G$164*K4/12 -> 0.0005833333333 | L164: 0.0005833333333 | M164: 0.0005833333333 | N164: 0.0005833333333 | O164: 0.0005833333333 | P164: 0.0005833333333 | Q164: 0.0005833333333 | R164: 0.0005833333333 | S164: 0.0005833333333 | T164: 0.0005833333333 | U164: 0.0005833333333 | V164: 0.0005833333333 | W164: 0.0005833333333 | X164: 0.0005833333333 | Y164: 0.0005833333333 | Z164: 0.0005833333333 | AA164: 0.0005833333333 | AB164: 0.0005833333333 | AC164: 0.0005833333333 | AD164: 0.0005833333333 | AE164: 0.0005833333333 | AF164: 0.0005833333333 | AG164: 0.0005833333333 | AH164: 0.0005833333333 | AI164: 0.0005833333333 | AJ164: 0.0005833333333 | AK164: 0.0005833333333 | AL164: 0.0005833333333 | AM164: 0.0005833333333 | AN164: 0.0005833333333 | AO164: 0.0005833333333 | AP164: 0.0005833333333 | AQ164: 0.0005833333333 | AR164: 0.0005833333333 | AS164: 0.0005833333333 | AT164: 0.0005833333333 | AU164: 0.0005833333333 | AV164: 0.0005833333333 | AW164: 0.0005833333333 | AX164: 0.0035 | AY164: 0.0035 | AZ164: 0.0035 | BA164: 0.0035 | BB164: 0.0035 | BC164: 0.0035 | BD164: 0.0035 | BE164: 0.0035 | BF164: 0.0035 | BG164: 0.0035 | BH164: 0.0035 | BI164: 0.0035 | BJ164: 0.0035 | BK164: 0.0035 | BL164: 0.0035 | BM164: 0.0035 | BN164: 0.0035 | BO164: 0.0035 | BP164: 0.0035 | BQ164: 0.0035 | BR164: 0.0035 | BS164: 0.0035 | BT164: 0.0035 | BU164: 0.0035 | BV164: 0.0035 | BW164: =$G$164*BW4/12 -> 0.0035 | BX164: 0.0035 | BY164: 0.0035 | BZ164: 0.0035 | CA164: 0.0035 | CB164: 0.0035 | CC164: 0.0035 | CD164: 0.0035 | CE164: 0.0035 | CF164: 0.0035 | CG164: 0.0035 | CH164: 0.0035 | CI164: 0.0035 | CJ164: 0.0035 | CK164: 0.0035 | CL164: 0.0035 | CM164: 0.0035 | CN164: 0.0035 | CO164: 0.0035 | CP164: 0.0035 | CQ164: 0.0035 | CR164: 0.0035 | CS164: 0.0035 | CT164: 0.0035 | CU164: 0.0035 | CV164: 0.0035 | CW164: 0.0035 | CX164: 0.0035 | CY164: 0.0035 | CZ164: 0.0035 | DA164: 0.0035 | DB164: 0.0035 | DC164: 0.0035 | DD164: 0.0035 | DE164: 0.0035 | DF164: 0.0035 | DG164: 0.0035 | DH164: 0.0035 | DI164: 0.0035 | DJ164: 0.0035 | DK164: 0.0035 | DL164: 0.0035 | DM164: 0.0035 | DN164: 0.0035 | DO164: 0.0035 | DP164: 0.0035 | DQ164: 0.0035 | DR164: 0.0035 | DS164: 0.0035 | DT164: 0.0035 | DU164: 0.0035 | DV164: 0.0035 | DW164: 0.0035 | DX164: 0.0035 | DY164: 0.0035 | DZ164: 0.0035 | EA164: 0.0035 | EB164: 0.0035 | EC164: 0.0035 | ED164: 0.0035 | EE164: 0.0035 | EF164: 0.0035 | EG164: 0.0035 | EH164: 0.0035 | EI164: =$G$164*EI4/12 -> 0.0035 | EJ164: 0.0035 | EK164: 0.0035 | EL164: 0.0035 | EM164: 0.0035 | EN164: 0.0035 | EO164: 0.0035 | EP164: 0.0035 | EQ164: 0.0035 | ER164: 0.0035 | ES164: 0.0035 | ET164: 0.0035 | EU164: 0.0035 | EV164: 0.0035 | EW164: 0.0035 | EX164: 0.0035 | EY164: 0.0035 | EZ164: 0.0035 | FA164: 0.0035 | FB164: 0.0035 | FC164: 0.0035
C165: Periodic Fee Amount | E165: Euro | I165: =SUM(J165:FC165) -> 284.6469186 | J165: =J163*J164*J3 -> 12.89708983 | K165: =K163*K164*K3 -> 12.89708983 | L165: 12.89708983 | M165: 12.89708983 | N165: 12.89708983 | O165: 12.89708983 | P165: 12.89708983 | Q165: 12.89708983 | R165: 12.81386757 | S165: 12.56435315 | T165: 12.27081197 | U165: 11.93060479 | V165: 11.54221357 | W165: 11.10548287 | X165: 10.62180534 | Y165: 10.09422868 | Z165: 9.527466546 | AA165: 8.927803194 | AB165: 8.302891019 | AC165: 7.661450298 | AD165: 7.012890231 | AE165: 6.366878481 | AF165: 5.732891846 | AG165: 5.119782681 | AH165: 4.53539394 | AI165: 3.9862505 | AJ165: 3.477346462 | AK165: 3.012038465 | AL165: 2.592044918 | AM165: 2.217541694 | AN165: 1.887337303 | AO165: 1.599105478 | AP165: 1.349650931 | AQ165: 1.135184476 | AR165: 0.9515865507 | AS165: 0.7946425562 | AT165: 0.6602387478 | AU165: 0.6096416107 | AV165: 0.5588651863 | AW165: 0.507908839 | AX165: 0 | AY165: 0 | AZ165: 0 | BA165: 0 | BB165: 0 | BC165: 0 | BD165: 0 | BE165: 0 | BF165: 0 | BG165: 0 | BH165: 0 | BI165: 0 | BJ165: 0 | BK165: 0 | BL165: 0 | BM165: 0 | BN165: 0 | BO165: 0 | BP165: 0 | BQ165: 0 | BR165: 0 | BS165: 0 | BT165: 0 | BU165: 0 | BV165: 0 | BW165: =BW163*BW164*BW3 -> 0 | BX165: 0 | BY165: 0 | BZ165: 0 | CA165: 0 | CB165: 0 | CC165: 0 | CD165: 0 | CE165: 0 | CF165: 0 | CG165: 0 | CH165: 0 | CI165: 0 | CJ165: 0 | CK165: 0 | CL165: 0 | CM165: 0 | CN165: 0 | CO165: 0 | CP165: 0 | CQ165: 0 | CR165: 0 | CS165: 0 | CT165: 0 | CU165: 0 | CV165: 0 | CW165: 0 | CX165: 0 | CY165: 0 | CZ165: 0 | DA165: 0 | DB165: 0 | DC165: 0 | DD165: 0 | DE165: 0 | DF165: 0 | DG165: 0 | DH165: 0 | DI165: 0 | DJ165: 0 | DK165: 0 | DL165: 0 | DM165: 0 | DN165: 0 | DO165: 0 | DP165: 0 | DQ165: 0 | DR165: 0 | DS165: 0 | DT165: 0 | DU165: 0 | DV165: 0 | DW165: 0 | DX165: 0 | DY165: 0 | DZ165: 0 | EA165: 0 | EB165: 0 | EC165: 0 | ED165: 0 | EE165: 0 | EF165: 0 | EG165: 0 | EH165: 0 | EI165: =EI163*EI164*EI3 -> 0 | EJ165: 0 | EK165: 0 | EL165: 0 | EM165: 0 | EN165: 0 | EO165: 0 | EP165: 0 | EQ165: 0 | ER165: 0 | ES165: 0 | ET165: 0 | EU165: 0 | EV165: 0 | EW165: 0 | EX165: 0 | EY165: 0 | EZ165: 0 | FA165: 0 | FB165: 0 | FC165: 0
B167: PRI and PRG
C168: PRG % | E168: Euro | G168: =F51 -> 0.011 | J168: =$G$168/12*J4 -> 0.0009166666667 | K168: =$G$168/12*K4 -> 0.0009166666667 | L168: 0.0009166666667 | M168: 0.0009166666667 | N168: 0.0009166666667 | O168: 0.0009166666667 | P168: 0.0009166666667 | Q168: 0.0009166666667 | R168: 0.0009166666667 | S168: 0.0009166666667 | T168: 0.0009166666667 | U168: 0.0009166666667 | V168: 0.0009166666667 | W168: 0.0009166666667 | X168: 0.0009166666667 | Y168: 0.0009166666667 | Z168: 0.0009166666667 | AA168: 0.0009166666667 | AB168: 0.0009166666667 | AC168: 0.0009166666667 | AD168: 0.0009166666667 | AE168: 0.0009166666667 | AF168: 0.0009166666667 | AG168: 0.0009166666667 | AH168: 0.0009166666667 | AI168: 0.0009166666667 | AJ168: 0.0009166666667 | AK168: 0.0009166666667 | AL168: 0.0009166666667 | AM168: 0.0009166666667 | AN168: 0.0009166666667 | AO168: 0.0009166666667 | AP168: 0.0009166666667 | AQ168: 0.0009166666667 | AR168: 0.0009166666667 | AS168: 0.0009166666667 | AT168: 0.0009166666667 | AU168: 0.0009166666667 | AV168: 0.0009166666667 | AW168: 0.0009166666667 | AX168: 0.0055 | AY168: 0.0055 | AZ168: 0.0055 | BA168: 0.0055 | BB168: 0.0055 | BC168: 0.0055 | BD168: 0.0055 | BE168: 0.0055 | BF168: 0.0055 | BG168: 0.0055 | BH168: 0.0055 | BI168: 0.0055 | BJ168: 0.0055 | BK168: 0.0055 | BL168: 0.0055 | BM168: 0.0055 | BN168: 0.0055 | BO168: 0.0055 | BP168: 0.0055 | BQ168: 0.0055 | BR168: 0.0055 | BS168: 0.0055 | BT168: 0.0055 | BU168: 0.0055 | BV168: 0.0055 | BW168: =$G$168/12*BW4 -> 0.0055 | BX168: 0.0055 | BY168: 0.0055 | BZ168: 0.0055 | CA168: 0.0055 | CB168: 0.0055 | CC168: 0.0055 | CD168: 0.0055 | CE168: 0.0055 | CF168: 0.0055 | CG168: 0.0055 | CH168: 0.0055 | CI168: 0.0055 | CJ168: 0.0055 | CK168: 0.0055 | CL168: 0.0055 | CM168: 0.0055 | CN168: 0.0055 | CO168: 0.0055 | CP168: 0.0055 | CQ168: 0.0055 | CR168: 0.0055 | CS168: 0.0055 | CT168: 0.0055 | CU168: 0.0055 | CV168: 0.0055 | CW168: 0.0055 | CX168: 0.0055 | CY168: 0.0055 | CZ168: 0.0055 | DA168: 0.0055 | DB168: 0.0055 | DC168: 0.0055 | DD168: 0.0055 | DE168: 0.0055 | DF168: 0.0055 | DG168: 0.0055 | DH168: 0.0055 | DI168: 0.0055 | DJ168: 0.0055 | DK168: 0.0055 | DL168: 0.0055 | DM168: 0.0055 | DN168: 0.0055 | DO168: 0.0055 | DP168: 0.0055 | DQ168: 0.0055 | DR168: 0.0055 | DS168: 0.0055 | DT168: 0.0055 | DU168: 0.0055 | DV168: 0.0055 | DW168: 0.0055 | DX168: 0.0055 | DY168: 0.0055 | DZ168: 0.0055 | EA168: 0.0055 | EB168: 0.0055 | EC168: 0.0055 | ED168: 0.0055 | EE168: 0.0055 | EF168: 0.0055 | EG168: 0.0055 | EH168: 0.0055 | EI168: =$G$168/12*EI4 -> 0.0055 | EJ168: 0.0055 | EK168: 0.0055 | EL168: 0.0055 | EM168: 0.0055 | EN168: 0.0055 | EO168: 0.0055 | EP168: 0.0055 | EQ168: 0.0055 | ER168: 0.0055 | ES168: 0.0055 | ET168: 0.0055 | EU168: 0.0055 | EV168: 0.0055 | EW168: 0.0055 | EX168: 0.0055 | EY168: 0.0055 | EZ168: 0.0055 | FA168: 0.0055 | FB168: 0.0055 | FC168: 0.0055
C169: Debt Balance | E169: Euro | J169: =J144 -> 0 | K169: =K144 -> 0 | L169: 0 | M169: 0 | N169: 0 | O169: 0 | P169: 0 | Q169: 0 | R169: 142.6667257 | S169: 570.40573 | T169: 1073.619181 | U169: 1656.831491 | V169: 2322.645018 | W169: 3071.326213 | X169: 3900.487693 | Y169: 4804.904827 | Z169: 5776.497058 | AA169: 6804.491375 | AB169: 7875.769391 | AC169: 8975.382056 | AD169: 10087.19931 | AE169: 11194.64803 | AF169: 12281.48226 | AG169: 13332.52654 | AH169: 14334.33581 | AI169: 15275.72457 | AJ169: 16148.13149 | AK169: 16945.80234 | AL169: 17665.79128 | AM169: 18307.7968 | AN169: 18873.86148 | AO169: 19367.97317 | AP169: 19795.60954 | AQ169: 20163.26632 | AR169: 20478.00562 | AS169: 20747.05247 | AT169: 20977.459 | AU169: 21064.19695 | AV169: 21151.24225 | AW169: 21238.59598 | AX169: 22109.29685 | AY169: 21667.11091 | AZ169: 21224.92498 | BA169: 20782.73904 | BB169: 20340.5531 | BC169: 19898.36717 | BD169: 19456.18123 | BE169: 19013.99529 | BF169: 18571.80936 | BG169: 18129.62342 | BH169: 17687.43748 | BI169: 17245.25154 | BJ169: 16803.06561 | BK169: 16360.87967 | BL169: 15918.69373 | BM169: 15476.5078 | BN169: 15034.32186 | BO169: 14592.13592 | BP169: 14149.94998 | BQ169: 13707.76405 | BR169: 13265.57811 | BS169: 12823.39217 | BT169: 12381.20624 | BU169: 11939.0203 | BV169: 11496.83436 | BW169: =BW144 -> 11054.64843 | BX169: 10612.46249 | BY169: 10170.27655 | BZ169: 9728.090615 | CA169: 9285.904678 | CB169: 8843.718741 | CC169: 8401.532804 | CD169: 7959.346867 | CE169: 7517.160929 | CF169: 7074.974992 | CG169: 6632.789055 | CH169: 6190.603118 | CI169: 5748.417181 | CJ169: 5306.231244 | CK169: 4864.045307 | CL169: 4421.85937 | CM169: 3979.673433 | CN169: 3537.487496 | CO169: 3095.301559 | CP169: 2653.115622 | CQ169: 2210.929685 | CR169: 1768.743748 | CS169: 1326.557811 | CT169: 884.3718741 | CU169: 442.185937 | CV169: 1.625721779e-11 | CW169: 1.625721779e-11 | CX169: 1.625721779e-11 | CY169: 1.625721779e-11 | CZ169: 1.625721779e-11 | DA169: 1.625721779e-11 | DB169: 1.625721779e-11 | DC169: 1.625721779e-11 | DD169: 1.625721779e-11 | DE169: 1.625721779e-11 | DF169: 1.625721779e-11 | DG169: 1.625721779e-11 | DH169: 1.625721779e-11 | DI169: 1.625721779e-11 | DJ169: 1.625721779e-11 | DK169: 1.625721779e-11 | DL169: 1.625721779e-11 | DM169: 1.625721779e-11 | DN169: 1.625721779e-11 | DO169: 1.625721779e-11 | DP169: 1.625721779e-11 | DQ169: 1.625721779e-11 | DR169: 1.625721779e-11 | DS169: 1.625721779e-11 | DT169: 1.625721779e-11 | DU169: 1.625721779e-11 | DV169: 1.625721779e-11 | DW169: 1.625721779e-11 | DX169: 1.625721779e-11 | DY169: 1.625721779e-11 | DZ169: 1.625721779e-11 | EA169: 1.625721779e-11 | EB169: 1.625721779e-11 | EC169: 1.625721779e-11 | ED169: 1.625721779e-11 | EE169: 1.625721779e-11 | EF169: 1.625721779e-11 | EG169: 1.625721779e-11 | EH169: 1.625721779e-11 | EI169: =EI144 -> 1.625721779e-11 | EJ169: 1.625721779e-11 | EK169: 1.625721779e-11 | EL169: 1.625721779e-11 | EM169: 1.625721779e-11 | EN169: 1.625721779e-11 | EO169: 1.625721779e-11 | EP169: 1.625721779e-11 | EQ169: 1.625721779e-11 | ER169: 1.625721779e-11 | ES169: 1.625721779e-11 | ET169: 1.625721779e-11 | EU169: 1.625721779e-11 | EV169: 1.625721779e-11 | EW169: 1.625721779e-11 | EX169: 1.625721779e-11 | EY169: 1.625721779e-11 | EZ169: 1.625721779e-11 | FA169: 1.625721779e-11 | FB169: 1.625721779e-11 | FC169: 1.625721779e-11
C170: PRG | E170: Euro | I170: =SUM(J170:FC170) -> 3464.200801 | J170: =J169*J168 -> 0 | K170: =K169*K168 -> 0 | L170: 0 | M170: 0 | N170: 0 | O170: 0 | P170: 0 | Q170: 0 | R170: 0.1307778319 | S170: 0.5228719191 | T170: 0.9841509159 | U170: 1.5187622 | V170: 2.129091266 | W170: 2.815382362 | X170: 3.575447052 | Y170: 4.404496092 | Z170: 5.295122303 | AA170: 6.237450427 | AB170: 7.219455275 | AC170: 8.227433551 | AD170: 9.24659937 | AE170: 10.26176069 | AF170: 11.2580254 | AG170: 12.22148266 | AH170: 13.13980783 | AI170: 14.00274752 | AJ170: 14.80245386 | AK170: 15.53365214 | AL170: 16.19364201 | AM170: 16.78214707 | AN170: 17.30103969 | AO170: 17.75397541 | AP170: 18.14597541 | AQ170: 18.48299413 | AR170: 18.77150515 | AS170: 19.01813143 | AT170: 19.22933741 | AU170: 19.3088472 | AV170: 19.38863873 | AW170: 19.46871299 | AX170: 121.6011327 | AY170: 119.16911 | AZ170: 116.7370874 | BA170: 114.3050647 | BB170: 111.8730421 | BC170: 109.4410194 | BD170: 107.0089968 | BE170: 104.5769741 | BF170: 102.1449515 | BG170: 99.7129288 | BH170: 97.28090615 | BI170: 94.84888349 | BJ170: 92.41686084 | BK170: 89.98483819 | BL170: 87.55281553 | BM170: 85.12079288 | BN170: 82.68877022 | BO170: 80.25674757 | BP170: 77.82472492 | BQ170: 75.39270226 | BR170: 72.96067961 | BS170: 70.52865696 | BT170: 68.0966343 | BU170: 65.66461165 | BV170: 63.232589 | BW170: =BW169*BW168 -> 60.80056634 | BX170: 58.36854369 | BY170: 55.93652103 | BZ170: 53.50449838 | CA170: 51.07247573 | CB170: 48.64045307 | CC170: 46.20843042 | CD170: 43.77640777 | CE170: 41.34438511 | CF170: 38.91236246 | CG170: 36.4803398 | CH170: 34.04831715 | CI170: 31.6162945 | CJ170: 29.18427184 | CK170: 26.75224919 | CL170: 24.32022654 | CM170: 21.88820388 | CN170: 19.45618123 | CO170: 17.02415858 | CP170: 14.59213592 | CQ170: 12.16011327 | CR170: 9.728090615 | CS170: 7.296067961 | CT170: 4.864045307 | CU170: 2.432022654 | CV170: 8.941469787e-14 | CW170: 8.941469787e-14 | CX170: 8.941469787e-14 | CY170: 8.941469787e-14 | CZ170: 8.941469787e-14 | DA170: 8.941469787e-14 | DB170: 8.941469787e-14 | DC170: 8.941469787e-14 | DD170: 8.941469787e-14 | DE170: 8.941469787e-14 | DF170: 8.941469787e-14 | DG170: 8.941469787e-14 | DH170: 8.941469787e-14 | DI170: 8.941469787e-14 | DJ170: 8.941469787e-14 | DK170: 8.941469787e-14 | DL170: 8.941469787e-14 | DM170: 8.941469787e-14 | DN170: 8.941469787e-14 | DO170: 8.941469787e-14 | DP170: 8.941469787e-14 | DQ170: 8.941469787e-14 | DR170: 8.941469787e-14 | DS170: 8.941469787e-14 | DT170: 8.941469787e-14 | DU170: 8.941469787e-14 | DV170: 8.941469787e-14 | DW170: 8.941469787e-14 | DX170: 8.941469787e-14 | DY170: 8.941469787e-14 | DZ170: 8.941469787e-14 | EA170: 8.941469787e-14 | EB170: 8.941469787e-14 | EC170: 8.941469787e-14 | ED170: 8.941469787e-14 | EE170: 8.941469787e-14 | EF170: 8.941469787e-14 | EG170: 8.941469787e-14 | EH170: 8.941469787e-14 | EI170: =EI169*EI168 -> 8.941469787e-14 | EJ170: 8.941469787e-14 | EK170: 8.941469787e-14 | EL170: 8.941469787e-14 | EM170: 8.941469787e-14 | EN170: 8.941469787e-14 | EO170: 8.941469787e-14 | EP170: 8.941469787e-14 | EQ170: 8.941469787e-14 | ER170: 8.941469787e-14 | ES170: 8.941469787e-14 | ET170: 8.941469787e-14 | EU170: 8.941469787e-14 | EV170: 8.941469787e-14 | EW170: 8.941469787e-14 | EX170: 8.941469787e-14 | EY170: 8.941469787e-14 | EZ170: 8.941469787e-14 | FA170: 8.941469787e-14 | FB170: 8.941469787e-14 | FC170: 8.941469787e-14
C171: PRG Pre-COD | E171: Euro | I171: =SUM(J171:FC171) -> 363.3719173 | J171: =J170*J3 -> 0 | K171: =K170*K3 -> 0 | L171: 0 | M171: 0 | N171: 0 | O171: 0 | P171: 0 | Q171: 0 | R171: 0.1307778319 | S171: 0.5228719191 | T171: 0.9841509159 | U171: 1.5187622 | V171: 2.129091266 | W171: 2.815382362 | X171: 3.575447052 | Y171: 4.404496092 | Z171: 5.295122303 | AA171: 6.237450427 | AB171: 7.219455275 | AC171: 8.227433551 | AD171: 9.24659937 | AE171: 10.26176069 | AF171: 11.2580254 | AG171: 12.22148266 | AH171: 13.13980783 | AI171: 14.00274752 | AJ171: 14.80245386 | AK171: 15.53365214 | AL171: 16.19364201 | AM171: 16.78214707 | AN171: 17.30103969 | AO171: 17.75397541 | AP171: 18.14597541 | AQ171: 18.48299413 | AR171: 18.77150515 | AS171: 19.01813143 | AT171: 19.22933741 | AU171: 19.3088472 | AV171: 19.38863873 | AW171: 19.46871299 | AX171: 0 | AY171: 0 | AZ171: 0 | BA171: 0 | BB171: 0 | BC171: 0 | BD171: 0 | BE171: 0 | BF171: 0 | BG171: 0 | BH171: 0 | BI171: 0 | BJ171: 0 | BK171: 0 | BL171: 0 | BM171: 0 | BN171: 0 | BO171: 0 | BP171: 0 | BQ171: 0 | BR171: 0 | BS171: 0 | BT171: 0 | BU171: 0 | BV171: 0 | BW171: =BW170*BW3 -> 0 | BX171: 0 | BY171: 0 | BZ171: 0 | CA171: 0 | CB171: 0 | CC171: 0 | CD171: 0 | CE171: 0 | CF171: 0 | CG171: 0 | CH171: 0 | CI171: 0 | CJ171: 0 | CK171: 0 | CL171: 0 | CM171: 0 | CN171: 0 | CO171: 0 | CP171: 0 | CQ171: 0 | CR171: 0 | CS171: 0 | CT171: 0 | CU171: 0 | CV171: 0 | CW171: 0 | CX171: 0 | CY171: 0 | CZ171: 0 | DA171: 0 | DB171: 0 | DC171: 0 | DD171: 0 | DE171: 0 | DF171: 0 | DG171: 0 | DH171: 0 | DI171: 0 | DJ171: 0 | DK171: 0 | DL171: 0 | DM171: 0 | DN171: 0 | DO171: 0 | DP171: 0 | DQ171: 0 | DR171: 0 | DS171: 0 | DT171: 0 | DU171: 0 | DV171: 0 | DW171: 0 | DX171: 0 | DY171: 0 | DZ171: 0 | EA171: 0 | EB171: 0 | EC171: 0 | ED171: 0 | EE171: 0 | EF171: 0 | EG171: 0 | EH171: 0 | EI171: =EI170*EI3 -> 0 | EJ171: 0 | EK171: 0 | EL171: 0 | EM171: 0 | EN171: 0 | EO171: 0 | EP171: 0 | EQ171: 0 | ER171: 0 | ES171: 0 | ET171: 0 | EU171: 0 | EV171: 0 | EW171: 0 | EX171: 0 | EY171: 0 | EZ171: 0 | FA171: 0 | FB171: 0 | FC171: 0
C172: PRG Post-COD | I172: 3100.828883 | J172: =J7*J170 -> 0 | K172: =K7*K170 -> 0 | L172: 0 | M172: 0 | N172: 0 | O172: 0 | P172: 0 | Q172: 0 | R172: 0 | S172: 0 | T172: 0 | U172: 0 | V172: 0 | W172: 0 | X172: 0 | Y172: 0 | Z172: 0 | AA172: 0 | AB172: 0 | AC172: 0 | AD172: 0 | AE172: 0 | AF172: 0 | AG172: 0 | AH172: 0 | AI172: 0 | AJ172: 0 | AK172: 0 | AL172: 0 | AM172: 0 | AN172: 0 | AO172: 0 | AP172: 0 | AQ172: 0 | AR172: 0 | AS172: 0 | AT172: 0 | AU172: 0 | AV172: 0 | AW172: 0 | AX172: 121.6011327 | AY172: 119.16911 | AZ172: 116.7370874 | BA172: 114.3050647 | BB172: 111.8730421 | BC172: 109.4410194 | BD172: 107.0089968 | BE172: 104.5769741 | BF172: 102.1449515 | BG172: 99.7129288 | BH172: 97.28090615 | BI172: 94.84888349 | BJ172: 92.41686084 | BK172: 89.98483819 | BL172: 87.55281553 | BM172: 85.12079288 | BN172: 82.68877022 | BO172: 80.25674757 | BP172: 77.82472492 | BQ172: 75.39270226 | BR172: 72.96067961 | BS172: 70.52865696 | BT172: 68.0966343 | BU172: 65.66461165 | BV172: 63.232589 | BW172: =BW7*BW170 -> 60.80056634 | BX172: 58.36854369 | BY172: 55.93652103 | BZ172: 53.50449838 | CA172: 51.07247573 | CB172: 48.64045307 | CC172: 46.20843042 | CD172: 43.77640777 | CE172: 41.34438511 | CF172: 38.91236246 | CG172: 36.4803398 | CH172: 34.04831715 | CI172: 31.6162945 | CJ172: 29.18427184 | CK172: 26.75224919 | CL172: 24.32022654 | CM172: 21.88820388 | CN172: 19.45618123 | CO172: 17.02415858 | CP172: 14.59213592 | CQ172: 12.16011327 | CR172: 9.728090615 | CS172: 7.296067961 | CT172: 4.864045307 | CU172: 2.432022654 | CV172: 8.941469787e-14 | CW172: 8.941469787e-14 | CX172: 8.941469787e-14 | CY172: 8.941469787e-14 | CZ172: 8.941469787e-14 | DA172: 8.941469787e-14 | DB172: 8.941469787e-14 | DC172: 8.941469787e-14 | DD172: 8.941469787e-14 | DE172: 8.941469787e-14 | DF172: 8.941469787e-14 | DG172: 8.941469787e-14 | DH172: 8.941469787e-14 | DI172: 8.941469787e-14 | DJ172: 8.941469787e-14 | DK172: 8.941469787e-14 | DL172: 8.941469787e-14 | DM172: 8.941469787e-14 | DN172: 8.941469787e-14 | DO172: 8.941469787e-14 | DP172: 8.941469787e-14 | DQ172: 8.941469787e-14 | DR172: 8.941469787e-14 | DS172: 8.941469787e-14 | DT172: 8.941469787e-14 | DU172: 8.941469787e-14 | DV172: 8.941469787e-14 | DW172: 8.941469787e-14 | DX172: 8.941469787e-14 | DY172: 8.941469787e-14 | DZ172: 0 | EA172: 0 | EB172: 0 | EC172: 0 | ED172: 0 | EE172: 0 | EF172: 0 | EG172: 0 | EH172: 0 | EI172: =EI7*EI170 -> 0 | EJ172: 0 | EK172: 0 | EL172: 0 | EM172: 0 | EN172: 0 | EO172: 0 | EP172: 0 | EQ172: 0 | ER172: 0 | ES172: 0 | ET172: 0 | EU172: 0 | EV172: 0 | EW172: 0 | EX172: 0 | EY172: 0 | EZ172: 0 | FA172: 0 | FB172: 0 | FC172: 0
C174: Opening Equity Balance | E174: Euro | J174: =I176 -> 0 | K174: =J176 -> 1354.547718 | L174: 1470.285154 | M174: 1618.15392 | N174: 1805.525275 | O174: 2040.535507 | P174: 2331.873623 | Q174: 2688.472686 | R174: 2976.439592 | S174: 3061.987393 | T174: 3162.630083 | U174: 3279.272545 | V174: 3412.43525 | W174: 3562.17149 | X174: 3728.003786 | Y174: 3908.887212 | Z174: 4103.205658 | AA174: 4308.804522 | AB174: 4523.060125 | AC174: 4742.982658 | AD174: 4965.346109 | AE174: 5186.835852 | AF174: 5404.202699 | AG174: 5614.411555 | AH174: 5814.773409 | AI174: 6003.05116 | AJ174: 6177.532544 | AK174: 6337.066715 | AL174: 6481.064503 | AM174: 6609.465608 | AN174: 6722.678542 | AO174: 6821.500882 | AP174: 6907.028155 | AQ174: 6980.559511 | AR174: 7043.507371 | AS174: 7097.316741 | AT174: 7143.398046 | AU174: 7160.745636 | AV174: 7178.154696 | AW174: 7195.625444 | AX174: 7369.765617 | AY174: 7369.765617 | AZ174: 7369.765617 | BA174: 7369.765617 | BB174: 7369.765617 | BC174: 7369.765617 | BD174: 7369.765617 | BE174: 7369.765617 | BF174: 7369.765617 | BG174: 7369.765617 | BH174: 7369.765617 | BI174: 7369.765617 | BJ174: 7369.765617 | BK174: 7369.765617 | BL174: 7369.765617 | BM174: 7369.765617 | BN174: 7369.765617 | BO174: 7369.765617 | BP174: 7369.765617 | BQ174: 7369.765617 | BR174: 7369.765617 | BS174: 7369.765617 | BT174: 7369.765617 | BU174: 7369.765617 | BV174: 7369.765617 | BW174: =BV176 -> 7369.765617 | BX174: 7369.765617 | BY174: 7369.765617 | BZ174: 7369.765617 | CA174: 7369.765617 | CB174: 7369.765617 | CC174: 7369.765617 | CD174: 7369.765617 | CE174: 7369.765617 | CF174: 7369.765617 | CG174: 7369.765617 | CH174: 7369.765617 | CI174: 7369.765617 | CJ174: 7369.765617 | CK174: 7369.765617 | CL174: 7369.765617 | CM174: 7369.765617 | CN174: 7369.765617 | CO174: 7369.765617 | CP174: 7369.765617 | CQ174: 7369.765617 | CR174: 7369.765617 | CS174: 7369.765617 | CT174: 7369.765617 | CU174: 7369.765617 | CV174: 7369.765617 | CW174: 7369.765617 | CX174: 7369.765617 | CY174: 7369.765617 | CZ174: 7369.765617 | DA174: 7369.765617 | DB174: 7369.765617 | DC174: 7369.765617 | DD174: 7369.765617 | DE174: 7369.765617 | DF174: 7369.765617 | DG174: 7369.765617 | DH174: 7369.765617 | DI174: 7369.765617 | DJ174: 7369.765617 | DK174: 7369.765617 | DL174: 7369.765617 | DM174: 7369.765617 | DN174: 7369.765617 | DO174: 7369.765617 | DP174: 7369.765617 | DQ174: 7369.765617 | DR174: 7369.765617 | DS174: 7369.765617 | DT174: 7369.765617 | DU174: 7369.765617 | DV174: 7369.765617 | DW174: 7369.765617 | DX174: 7369.765617 | DY174: 7369.765617 | DZ174: 7369.765617 | EA174: 7369.765617 | EB174: 7369.765617 | EC174: 7369.765617 | ED174: 7369.765617 | EE174: 7369.765617 | EF174: 7369.765617 | EG174: 7369.765617 | EH174: 7369.765617 | EI174: =EH176 -> 7369.765617 | EJ174: 7369.765617 | EK174: 7369.765617 | EL174: 7369.765617 | EM174: 7369.765617 | EN174: 7369.765617 | EO174: 7369.765617 | EP174: 7369.765617 | EQ174: 7369.765617 | ER174: 7369.765617 | ES174: 7369.765617 | ET174: 7369.765617 | EU174: 7369.765617 | EV174: 7369.765617 | EW174: 7369.765617 | EX174: 7369.765617 | EY174: 7369.765617 | EZ174: 7369.765617 | FA174: 7369.765617 | FB174: 7369.765617 | FC174: 7369.765617
C175: Add: Equity Financed | E175: Euro | J175: =J135 -> 1354.547718 | K175: =K135 -> 115.7374357 | L175: 147.8687661 | M175: 187.3713547 | N175: 235.0102319 | O175: 291.338116 | P175: 356.5990635 | Q175: 287.9669058 | R175: 85.54780086 | S175: 100.6426902 | T175: 116.6424621 | U175: 133.1627053 | V175: 149.7362391 | W175: 165.832296 | X175: 180.8834268 | Y175: 194.3184462 | Z175: 205.5988634 | AA175: 214.2556031 | AB175: 219.922533 | AC175: 222.3634513 | AD175: 221.4897428 | AE175: 217.3668465 | AF175: 210.2088566 | AG175: 200.3618539 | AH175: 188.2777508 | AI175: 174.4813845 | AJ175: 159.5341704 | AK175: 143.9977877 | AL175: 128.4011052 | AM175: 113.2129342 | AN175: 98.82233983 | AO175: 85.52727323 | AP175: 73.53135595 | AQ175: 62.94786018 | AR175: 53.80936956 | AS175: 46.08130575 | AT175: 17.34758984 | AU175: 17.40905982 | AV175: 17.47074763 | AW175: 174.1401734 | AX175: 0 | AY175: 0 | AZ175: 0 | BA175: 0 | BB175: 0 | BC175: 0 | BD175: 0 | BE175: 0 | BF175: 0 | BG175: 0 | BH175: 0 | BI175: 0 | BJ175: 0 | BK175: 0 | BL175: 0 | BM175: 0 | BN175: 0 | BO175: 0 | BP175: 0 | BQ175: 0 | BR175: 0 | BS175: 0 | BT175: 0 | BU175: 0 | BV175: 0 | BW175: =BW135 -> 0 | BX175: 0 | BY175: 0 | BZ175: 0 | CA175: 0 | CB175: 0 | CC175: 0 | CD175: 0 | CE175: 0 | CF175: 0 | CG175: 0 | CH175: 0 | CI175: 0 | CJ175: 0 | CK175: 0 | CL175: 0 | CM175: 0 | CN175: 0 | CO175: 0 | CP175: 0 | CQ175: 0 | CR175: 0 | CS175: 0 | CT175: 0 | CU175: 0 | CV175: 0 | CW175: 0 | CX175: 0 | CY175: 0 | CZ175: 0 | DA175: 0 | DB175: 0 | DC175: 0 | DD175: 0 | DE175: 0 | DF175: 0 | DG175: 0 | DH175: 0 | DI175: 0 | DJ175: 0 | DK175: 0 | DL175: 0 | DM175: 0 | DN175: 0 | DO175: 0 | DP175: 0 | DQ175: 0 | DR175: 0 | DS175: 0 | DT175: 0 | DU175: 0 | DV175: 0 | DW175: 0 | DX175: 0 | DY175: 0 | DZ175: 0 | EA175: 0 | EB175: 0 | EC175: 0 | ED175: 0 | EE175: 0 | EF175: 0 | EG175: 0 | EH175: 0 | EI175: =EI135 -> 0 | EJ175: 0 | EK175: 0 | EL175: 0 | EM175: 0 | EN175: 0 | EO175: 0 | EP175: 0 | EQ175: 0 | ER175: 0 | ES175: 0 | ET175: 0 | EU175: 0 | EV175: 0 | EW175: 0 | EX175: 0 | EY175: 0 | EZ175: 0 | FA175: 0 | FB175: 0 | FC175: 0
C176: Closing Equity Balance | E176: Euro | J176: =SUM(J174:J175) -> 1354.547718 | K176: =SUM(K174:K175) -> 1470.285154 | L176: 1618.15392 | M176: 1805.525275 | N176: 2040.535507 | O176: 2331.873623 | P176: 2688.472686 | Q176: 2976.439592 | R176: 3061.987393 | S176: 3162.630083 | T176: 3279.272545 | U176: 3412.43525 | V176: 3562.17149 | W176: 3728.003786 | X176: 3908.887212 | Y176: 4103.205658 | Z176: 4308.804522 | AA176: 4523.060125 | AB176: 4742.982658 | AC176: 4965.346109 | AD176: 5186.835852 | AE176: 5404.202699 | AF176: 5614.411555 | AG176: 5814.773409 | AH176: 6003.05116 | AI176: 6177.532544 | AJ176: 6337.066715 | AK176: 6481.064503 | AL176: 6609.465608 | AM176: 6722.678542 | AN176: 6821.500882 | AO176: 6907.028155 | AP176: 6980.559511 | AQ176: 7043.507371 | AR176: 7097.316741 | AS176: 7143.398046 | AT176: 7160.745636 | AU176: 7178.154696 | AV176: 7195.625444 | AW176: 7369.765617 | AX176: 7369.765617 | AY176: 7369.765617 | AZ176: 7369.765617 | BA176: 7369.765617 | BB176: 7369.765617 | BC176: 7369.765617 | BD176: 7369.765617 | BE176: 7369.765617 | BF176: 7369.765617 | BG176: 7369.765617 | BH176: 7369.765617 | BI176: 7369.765617 | BJ176: 7369.765617 | BK176: 7369.765617 | BL176: 7369.765617 | BM176: 7369.765617 | BN176: 7369.765617 | BO176: 7369.765617 | BP176: 7369.765617 | BQ176: 7369.765617 | BR176: 7369.765617 | BS176: 7369.765617 | BT176: 7369.765617 | BU176: 7369.765617 | BV176: 7369.765617 | BW176: =SUM(BW174:BW175) -> 7369.765617 | BX176: 7369.765617 | BY176: 7369.765617 | BZ176: 7369.765617 | CA176: 7369.765617 | CB176: 7369.765617 | CC176: 7369.765617 | CD176: 7369.765617 | CE176: 7369.765617 | CF176: 7369.765617 | CG176: 7369.765617 | CH176: 7369.765617 | CI176: 7369.765617 | CJ176: 7369.765617 | CK176: 7369.765617 | CL176: 7369.765617 | CM176: 7369.765617 | CN176: 7369.765617 | CO176: 7369.765617 | CP176: 7369.765617 | CQ176: 7369.765617 | CR176: 7369.765617 | CS176: 7369.765617 | CT176: 7369.765617 | CU176: 7369.765617 | CV176: 7369.765617 | CW176: 7369.765617 | CX176: 7369.765617 | CY176: 7369.765617 | CZ176: 7369.765617 | DA176: 7369.765617 | DB176: 7369.765617 | DC176: 7369.765617 | DD176: 7369.765617 | DE176: 7369.765617 | DF176: 7369.765617 | DG176: 7369.765617 | DH176: 7369.765617 | DI176: 7369.765617 | DJ176: 7369.765617 | DK176: 7369.765617 | DL176: 7369.765617 | DM176: 7369.765617 | DN176: 7369.765617 | DO176: 7369.765617 | DP176: 7369.765617 | DQ176: 7369.765617 | DR176: 7369.765617 | DS176: 7369.765617 | DT176: 7369.765617 | DU176: 7369.765617 | DV176: 7369.765617 | DW176: 7369.765617 | DX176: 7369.765617 | DY176: 7369.765617 | DZ176: 7369.765617 | EA176: 7369.765617 | EB176: 7369.765617 | EC176: 7369.765617 | ED176: 7369.765617 | EE176: 7369.765617 | EF176: 7369.765617 | EG176: 7369.765617 | EH176: 7369.765617 | EI176: =SUM(EI174:EI175) -> 7369.765617 | EJ176: 7369.765617 | EK176: 7369.765617 | EL176: 7369.765617 | EM176: 7369.765617 | EN176: 7369.765617 | EO176: 7369.765617 | EP176: 7369.765617 | EQ176: 7369.765617 | ER176: 7369.765617 | ES176: 7369.765617 | ET176: 7369.765617 | EU176: 7369.765617 | EV176: 7369.765617 | EW176: 7369.765617 | EX176: 7369.765617 | EY176: 7369.765617 | EZ176: 7369.765617 | FA176: 7369.765617 | FB176: 7369.765617 | FC176: 7369.765617
C177: Equity Insured | E177: % | G177: =F49 -> 0.9 | J177: =$G$177*J174 -> 0 | K177: =$G$177*K174 -> 1219.092946 | L177: 1323.256639 | M177: 1456.338528 | N177: 1624.972747 | O177: 1836.481956 | P177: 2098.68626 | Q177: 2419.625418 | R177: 2678.795633 | S177: 2755.788654 | T177: 2846.367075 | U177: 2951.345291 | V177: 3071.191725 | W177: 3205.954341 | X177: 3355.203407 | Y177: 3517.998491 | Z177: 3692.885093 | AA177: 3877.92407 | AB177: 4070.754112 | AC177: 4268.684392 | AD177: 4468.811498 | AE177: 4668.152267 | AF177: 4863.782429 | AG177: 5052.9704 | AH177: 5233.296068 | AI177: 5402.746044 | AJ177: 5559.77929 | AK177: 5703.360043 | AL177: 5832.958052 | AM177: 5948.519047 | AN177: 6050.410688 | AO177: 6139.350794 | AP177: 6216.32534 | AQ177: 6282.50356 | AR177: 6339.156634 | AS177: 6387.585067 | AT177: 6429.058242 | AU177: 6444.671073 | AV177: 6460.339227 | AW177: 6476.062899 | AX177: 6632.789055 | AY177: 6632.789055 | AZ177: 6632.789055 | BA177: 6632.789055 | BB177: 6632.789055 | BC177: 6632.789055 | BD177: 6632.789055 | BE177: 6632.789055 | BF177: 6632.789055 | BG177: 6632.789055 | BH177: 6632.789055 | BI177: 6632.789055 | BJ177: 6632.789055 | BK177: 6632.789055 | BL177: 6632.789055 | BM177: 6632.789055 | BN177: 6632.789055 | BO177: 6632.789055 | BP177: 6632.789055 | BQ177: 6632.789055 | BR177: 6632.789055 | BS177: 6632.789055 | BT177: 6632.789055 | BU177: 6632.789055 | BV177: 6632.789055 | BW177: =$G$177*BW174 -> 6632.789055 | BX177: 6632.789055 | BY177: 6632.789055 | BZ177: 6632.789055 | CA177: 6632.789055 | CB177: 6632.789055 | CC177: 6632.789055 | CD177: 6632.789055 | CE177: 6632.789055 | CF177: 6632.789055 | CG177: 6632.789055 | CH177: 6632.789055 | CI177: 6632.789055 | CJ177: 6632.789055 | CK177: 6632.789055 | CL177: 6632.789055 | CM177: 6632.789055 | CN177: 6632.789055 | CO177: 6632.789055 | CP177: 6632.789055 | CQ177: 6632.789055 | CR177: 6632.789055 | CS177: 6632.789055 | CT177: 6632.789055 | CU177: 6632.789055 | CV177: 6632.789055 | CW177: 6632.789055 | CX177: 6632.789055 | CY177: 6632.789055 | CZ177: 6632.789055 | DA177: 6632.789055 | DB177: 6632.789055 | DC177: 6632.789055 | DD177: 6632.789055 | DE177: 6632.789055 | DF177: 6632.789055 | DG177: 6632.789055 | DH177: 6632.789055 | DI177: 6632.789055 | DJ177: 6632.789055 | DK177: 6632.789055 | DL177: 6632.789055 | DM177: 6632.789055 | DN177: 6632.789055 | DO177: 6632.789055 | DP177: 6632.789055 | DQ177: 6632.789055 | DR177: 6632.789055 | DS177: 6632.789055 | DT177: 6632.789055 | DU177: 6632.789055 | DV177: 6632.789055 | DW177: 6632.789055 | DX177: 6632.789055 | DY177: 6632.789055 | DZ177: 6632.789055 | EA177: 6632.789055 | EB177: 6632.789055 | EC177: 6632.789055 | ED177: 6632.789055 | EE177: 6632.789055 | EF177: 6632.789055 | EG177: 6632.789055 | EH177: 6632.789055 | EI177: =$G$177*EI174 -> 6632.789055 | EJ177: 6632.789055 | EK177: 6632.789055 | EL177: 6632.789055 | EM177: 6632.789055 | EN177: 6632.789055 | EO177: 6632.789055 | EP177: 6632.789055 | EQ177: 6632.789055 | ER177: 6632.789055 | ES177: 6632.789055 | ET177: 6632.789055 | EU177: 6632.789055 | EV177: 6632.789055 | EW177: 6632.789055 | EX177: 6632.789055 | EY177: 6632.789055 | EZ177: 6632.789055 | FA177: 6632.789055 | FB177: 6632.789055 | FC177: 6632.789055
C178: PRI Rate | E178: % | G178: =F48 -> 0.009 | J178: =$G$178/12*J4 -> 0.00075 | K178: =$G$178/12*K4 -> 0.00075 | L178: 0.00075 | M178: 0.00075 | N178: 0.00075 | O178: 0.00075 | P178: 0.00075 | Q178: 0.00075 | R178: 0.00075 | S178: 0.00075 | T178: 0.00075 | U178: 0.00075 | V178: 0.00075 | W178: 0.00075 | X178: 0.00075 | Y178: 0.00075 | Z178: 0.00075 | AA178: 0.00075 | AB178: 0.00075 | AC178: 0.00075 | AD178: 0.00075 | AE178: 0.00075 | AF178: 0.00075 | AG178: 0.00075 | AH178: 0.00075 | AI178: 0.00075 | AJ178: 0.00075 | AK178: 0.00075 | AL178: 0.00075 | AM178: 0.00075 | AN178: 0.00075 | AO178: 0.00075 | AP178: 0.00075 | AQ178: 0.00075 | AR178: 0.00075 | AS178: 0.00075 | AT178: 0.00075 | AU178: 0.00075 | AV178: 0.00075 | AW178: 0.00075 | AX178: 0.0045 | AY178: 0.0045 | AZ178: 0.0045 | BA178: 0.0045 | BB178: 0.0045 | BC178: 0.0045 | BD178: 0.0045 | BE178: 0.0045 | BF178: 0.0045 | BG178: 0.0045 | BH178: 0.0045 | BI178: 0.0045 | BJ178: 0.0045 | BK178: 0.0045 | BL178: 0.0045 | BM178: 0.0045 | BN178: 0.0045 | BO178: 0.0045 | BP178: 0.0045 | BQ178: 0.0045 | BR178: 0.0045 | BS178: 0.0045 | BT178: 0.0045 | BU178: 0.0045 | BV178: 0.0045 | BW178: =$G$178/12*BW4 -> 0.0045 | BX178: 0.0045 | BY178: 0.0045 | BZ178: 0.0045 | CA178: 0.0045 | CB178: 0.0045 | CC178: 0.0045 | CD178: 0.0045 | CE178: 0.0045 | CF178: 0.0045 | CG178: 0.0045 | CH178: 0.0045 | CI178: 0.0045 | CJ178: 0.0045 | CK178: 0.0045 | CL178: 0.0045 | CM178: 0.0045 | CN178: 0.0045 | CO178: 0.0045 | CP178: 0.0045 | CQ178: 0.0045 | CR178: 0.0045 | CS178: 0.0045 | CT178: 0.0045 | CU178: 0.0045 | CV178: 0.0045 | CW178: 0.0045 | CX178: 0.0045 | CY178: 0.0045 | CZ178: 0.0045 | DA178: 0.0045 | DB178: 0.0045 | DC178: 0.0045 | DD178: 0.0045 | DE178: 0.0045 | DF178: 0.0045 | DG178: 0.0045 | DH178: 0.0045 | DI178: 0.0045 | DJ178: 0.0045 | DK178: 0.0045 | DL178: 0.0045 | DM178: 0.0045 | DN178: 0.0045 | DO178: 0.0045 | DP178: 0.0045 | DQ178: 0.0045 | DR178: 0.0045 | DS178: 0.0045 | DT178: 0.0045 | DU178: 0.0045 | DV178: 0.0045 | DW178: 0.0045 | DX178: 0.0045 | DY178: 0.0045 | DZ178: 0.0045 | EA178: 0.0045 | EB178: 0.0045 | EC178: 0.0045 | ED178: 0.0045 | EE178: 0.0045 | EF178: 0.0045 | EG178: 0.0045 | EH178: 0.0045 | EI178: =$G$178/12*EI4 -> 0.0045 | EJ178: 0.0045 | EK178: 0.0045 | EL178: 0.0045 | EM178: 0.0045 | EN178: 0.0045 | EO178: 0.0045 | EP178: 0.0045 | EQ178: 0.0045 | ER178: 0.0045 | ES178: 0.0045 | ET178: 0.0045 | EU178: 0.0045 | EV178: 0.0045 | EW178: 0.0045 | EX178: 0.0045 | EY178: 0.0045 | EZ178: 0.0045 | FA178: 0.0045 | FB178: 0.0045 | FC178: 0.0045
C179: Equity PRI | E179: Euro | I179: =SUM(J179:FC179) -> 3409.403972 | J179: =J178*J177 -> 0 | K179: =K178*K177 -> 0.9143197099 | L179: 0.9924424789 | M179: 1.092253896 | N179: 1.21872956 | O179: 1.377361467 | P179: 1.574014695 | Q179: 1.814719063 | R179: 2.009096725 | S179: 2.06684149 | T179: 2.134775306 | U179: 2.213508968 | V179: 2.303393794 | W179: 2.404465755 | X179: 2.516402555 | Y179: 2.638498868 | Z179: 2.769663819 | AA179: 2.908443052 | AB179: 3.053065584 | AC179: 3.201513294 | AD179: 3.351608624 | AE179: 3.5011142 | AF179: 3.647836822 | AG179: 3.7897278 | AH179: 3.924972051 | AI179: 4.052059533 | AJ179: 4.169834467 | AK179: 4.277520032 | AL179: 4.374718539 | AM179: 4.461389285 | AN179: 4.537808016 | AO179: 4.604513095 | AP179: 4.662244005 | AQ179: 4.71187767 | AR179: 4.754367476 | AS179: 4.7906888 | AT179: 4.821793681 | AU179: 4.833503305 | AV179: 4.84525442 | AW179: 4.857047175 | AX179: 29.84755075 | AY179: 29.84755075 | AZ179: 29.84755075 | BA179: 29.84755075 | BB179: 29.84755075 | BC179: 29.84755075 | BD179: 29.84755075 | BE179: 29.84755075 | BF179: 29.84755075 | BG179: 29.84755075 | BH179: 29.84755075 | BI179: 29.84755075 | BJ179: 29.84755075 | BK179: 29.84755075 | BL179: 29.84755075 | BM179: 29.84755075 | BN179: 29.84755075 | BO179: 29.84755075 | BP179: 29.84755075 | BQ179: 29.84755075 | BR179: 29.84755075 | BS179: 29.84755075 | BT179: 29.84755075 | BU179: 29.84755075 | BV179: 29.84755075 | BW179: =BW178*BW177 -> 29.84755075 | BX179: 29.84755075 | BY179: 29.84755075 | BZ179: 29.84755075 | CA179: 29.84755075 | CB179: 29.84755075 | CC179: 29.84755075 | CD179: 29.84755075 | CE179: 29.84755075 | CF179: 29.84755075 | CG179: 29.84755075 | CH179: 29.84755075 | CI179: 29.84755075 | CJ179: 29.84755075 | CK179: 29.84755075 | CL179: 29.84755075 | CM179: 29.84755075 | CN179: 29.84755075 | CO179: 29.84755075 | CP179: 29.84755075 | CQ179: 29.84755075 | CR179: 29.84755075 | CS179: 29.84755075 | CT179: 29.84755075 | CU179: 29.84755075 | CV179: 29.84755075 | CW179: 29.84755075 | CX179: 29.84755075 | CY179: 29.84755075 | CZ179: 29.84755075 | DA179: 29.84755075 | DB179: 29.84755075 | DC179: 29.84755075 | DD179: 29.84755075 | DE179: 29.84755075 | DF179: 29.84755075 | DG179: 29.84755075 | DH179: 29.84755075 | DI179: 29.84755075 | DJ179: 29.84755075 | DK179: 29.84755075 | DL179: 29.84755075 | DM179: 29.84755075 | DN179: 29.84755075 | DO179: 29.84755075 | DP179: 29.84755075 | DQ179: 29.84755075 | DR179: 29.84755075 | DS179: 29.84755075 | DT179: 29.84755075 | DU179: 29.84755075 | DV179: 29.84755075 | DW179: 29.84755075 | DX179: 29.84755075 | DY179: 29.84755075 | DZ179: 29.84755075 | EA179: 29.84755075 | EB179: 29.84755075 | EC179: 29.84755075 | ED179: 29.84755075 | EE179: 29.84755075 | EF179: 29.84755075 | EG179: 29.84755075 | EH179: 29.84755075 | EI179: =EI178*EI177 -> 29.84755075 | EJ179: 29.84755075 | EK179: 29.84755075 | EL179: 29.84755075 | EM179: 29.84755075 | EN179: 29.84755075 | EO179: 29.84755075 | EP179: 29.84755075 | EQ179: 29.84755075 | ER179: 29.84755075 | ES179: 29.84755075 | ET179: 29.84755075 | EU179: 29.84755075 | EV179: 29.84755075 | EW179: 29.84755075 | EX179: 29.84755075 | EY179: 29.84755075 | EZ179: 29.84755075 | FA179: 29.84755075 | FB179: 29.84755075 | FC179: 29.84755075
C180: Equity PRI - Pre-COD | E180: Euro | I180: =SUM(J180:FC180) -> 126.1733891 | J180: =J179*J3 -> 0 | K180: =K179*K3 -> 0.9143197099 | L180: 0.9924424789 | M180: 1.092253896 | N180: 1.21872956 | O180: 1.377361467 | P180: 1.574014695 | Q180: 1.814719063 | R180: 2.009096725 | S180: 2.06684149 | T180: 2.134775306 | U180: 2.213508968 | V180: 2.303393794 | W180: 2.404465755 | X180: 2.516402555 | Y180: 2.638498868 | Z180: 2.769663819 | AA180: 2.908443052 | AB180: 3.053065584 | AC180: 3.201513294 | AD180: 3.351608624 | AE180: 3.5011142 | AF180: 3.647836822 | AG180: 3.7897278 | AH180: 3.924972051 | AI180: 4.052059533 | AJ180: 4.169834467 | AK180: 4.277520032 | AL180: 4.374718539 | AM180: 4.461389285 | AN180: 4.537808016 | AO180: 4.604513095 | AP180: 4.662244005 | AQ180: 4.71187767 | AR180: 4.754367476 | AS180: 4.7906888 | AT180: 4.821793681 | AU180: 4.833503305 | AV180: 4.84525442 | AW180: 4.857047175 | AX180: 0 | AY180: 0 | AZ180: 0 | BA180: 0 | BB180: 0 | BC180: 0 | BD180: 0 | BE180: 0 | BF180: 0 | BG180: 0 | BH180: 0 | BI180: 0 | BJ180: 0 | BK180: 0 | BL180: 0 | BM180: 0 | BN180: 0 | BO180: 0 | BP180: 0 | BQ180: 0 | BR180: 0 | BS180: 0 | BT180: 0 | BU180: 0 | BV180: 0 | BW180: =BW179*BW3 -> 0 | BX180: 0 | BY180: 0 | BZ180: 0 | CA180: 0 | CB180: 0 | CC180: 0 | CD180: 0 | CE180: 0 | CF180: 0 | CG180: 0 | CH180: 0 | CI180: 0 | CJ180: 0 | CK180: 0 | CL180: 0 | CM180: 0 | CN180: 0 | CO180: 0 | CP180: 0 | CQ180: 0 | CR180: 0 | CS180: 0 | CT180: 0 | CU180: 0 | CV180: 0 | CW180: 0 | CX180: 0 | CY180: 0 | CZ180: 0 | DA180: 0 | DB180: 0 | DC180: 0 | DD180: 0 | DE180: 0 | DF180: 0 | DG180: 0 | DH180: 0 | DI180: 0 | DJ180: 0 | DK180: 0 | DL180: 0 | DM180: 0 | DN180: 0 | DO180: 0 | DP180: 0 | DQ180: 0 | DR180: 0 | DS180: 0 | DT180: 0 | DU180: 0 | DV180: 0 | DW180: 0 | DX180: 0 | DY180: 0 | DZ180: 0 | EA180: 0 | EB180: 0 | EC180: 0 | ED180: 0 | EE180: 0 | EF180: 0 | EG180: 0 | EH180: 0 | EI180: =EI179*EI3 -> 0 | EJ180: 0 | EK180: 0 | EL180: 0 | EM180: 0 | EN180: 0 | EO180: 0 | EP180: 0 | EQ180: 0 | ER180: 0 | ES180: 0 | ET180: 0 | EU180: 0 | EV180: 0 | EW180: 0 | EX180: 0 | EY180: 0 | EZ180: 0 | FA180: 0 | FB180: 0 | FC180: 0
C181: Equity PRI - Post-COD | E181: Euro | I181: =SUM(J181:FC181) -> 2387.80406 | J181: =J179*J7 -> 0 | K181: =K179*K7 -> 0 | L181: 0 | M181: 0 | N181: 0 | O181: 0 | P181: 0 | Q181: 0 | R181: 0 | S181: 0 | T181: 0 | U181: 0 | V181: 0 | W181: 0 | X181: 0 | Y181: 0 | Z181: 0 | AA181: 0 | AB181: 0 | AC181: 0 | AD181: 0 | AE181: 0 | AF181: 0 | AG181: 0 | AH181: 0 | AI181: 0 | AJ181: 0 | AK181: 0 | AL181: 0 | AM181: 0 | AN181: 0 | AO181: 0 | AP181: 0 | AQ181: 0 | AR181: 0 | AS181: 0 | AT181: 0 | AU181: 0 | AV181: 0 | AW181: 0 | AX181: 29.84755075 | AY181: 29.84755075 | AZ181: 29.84755075 | BA181: 29.84755075 | BB181: 29.84755075 | BC181: 29.84755075 | BD181: 29.84755075 | BE181: 29.84755075 | BF181: 29.84755075 | BG181: 29.84755075 | BH181: 29.84755075 | BI181: 29.84755075 | BJ181: 29.84755075 | BK181: 29.84755075 | BL181: 29.84755075 | BM181: 29.84755075 | BN181: 29.84755075 | BO181: 29.84755075 | BP181: 29.84755075 | BQ181: 29.84755075 | BR181: 29.84755075 | BS181: 29.84755075 | BT181: 29.84755075 | BU181: 29.84755075 | BV181: 29.84755075 | BW181: =BW179*BW7 -> 29.84755075 | BX181: 29.84755075 | BY181: 29.84755075 | BZ181: 29.84755075 | CA181: 29.84755075 | CB181: 29.84755075 | CC181: 29.84755075 | CD181: 29.84755075 | CE181: 29.84755075 | CF181: 29.84755075 | CG181: 29.84755075 | CH181: 29.84755075 | CI181: 29.84755075 | CJ181: 29.84755075 | CK181: 29.84755075 | CL181: 29.84755075 | CM181: 29.84755075 | CN181: 29.84755075 | CO181: 29.84755075 | CP181: 29.84755075 | CQ181: 29.84755075 | CR181: 29.84755075 | CS181: 29.84755075 | CT181: 29.84755075 | CU181: 29.84755075 | CV181: 29.84755075 | CW181: 29.84755075 | CX181: 29.84755075 | CY181: 29.84755075 | CZ181: 29.84755075 | DA181: 29.84755075 | DB181: 29.84755075 | DC181: 29.84755075 | DD181: 29.84755075 | DE181: 29.84755075 | DF181: 29.84755075 | DG181: 29.84755075 | DH181: 29.84755075 | DI181: 29.84755075 | DJ181: 29.84755075 | DK181: 29.84755075 | DL181: 29.84755075 | DM181: 29.84755075 | DN181: 29.84755075 | DO181: 29.84755075 | DP181: 29.84755075 | DQ181: 29.84755075 | DR181: 29.84755075 | DS181: 29.84755075 | DT181: 29.84755075 | DU181: 29.84755075 | DV181: 29.84755075 | DW181: 29.84755075 | DX181: 29.84755075 | DY181: 29.84755075 | DZ181: 0 | EA181: 0 | EB181: 0 | EC181: 0 | ED181: 0 | EE181: 0 | EF181: 0 | EG181: 0 | EH181: 0 | EI181: =EI179*EI7 -> 0 | EJ181: 0 | EK181: 0 | EL181: 0 | EM181: 0 | EN181: 0 | EO181: 0 | EP181: 0 | EQ181: 0 | ER181: 0 | ES181: 0 | ET181: 0 | EU181: 0 | EV181: 0 | EW181: 0 | EX181: 0 | EY181: 0 | EZ181: 0 | FA181: 0 | FB181: 0 | FC181: 0
B183: DSRA
C184: Total Debt Service | E184: Euro | J184: =J146+J154 -> 0 | K184: =K146+K154 -> 0 | L184: 0 | M184: 0 | N184: 0 | O184: 0 | P184: 0 | Q184: 0 | R184: 0 | S184: 0 | T184: 0 | U184: 0 | V184: 0 | W184: 0 | X184: 0 | Y184: 0 | Z184: 0 | AA184: 0 | AB184: 0 | AC184: 0 | AD184: 0 | AE184: 0 | AF184: 0 | AG184: 0 | AH184: 0 | AI184: 0 | AJ184: 0 | AK184: 0 | AL184: 0 | AM184: 0 | AN184: 0 | AO184: 0 | AP184: 0 | AQ184: 0 | AR184: 0 | AS184: 0 | AT184: 0 | AU184: 0 | AV184: 0 | AW184: 0 | AX184: 939.6451162 | AY184: 929.6959326 | AZ184: 919.746749 | BA184: 909.7975654 | BB184: 910.0186584 | BC184: 899.8483819 | BD184: 889.6781053 | BE184: 879.5078288 | BF184: 883.2664092 | BG184: 872.7644932 | BH184: 862.2625772 | BI184: 851.7606612 | BJ184: 841.2587452 | BK184: 830.7568292 | BL184: 820.2549132 | BM184: 809.7529972 | BN184: 799.2510812 | BO184: 788.7491652 | BP184: 778.2472492 | BQ184: 767.7453332 | BR184: 757.2434172 | BS184: 746.7415012 | BT184: 736.2395852 | BU184: 725.7376691 | BV184: 715.2357531 | BW184: =BW146+BW154 -> 704.7338371 | BX184: 694.2319211 | BY184: 683.7300051 | BZ184: 673.2280891 | CA184: 662.7261731 | CB184: 652.2242571 | CC184: 641.7223411 | CD184: 631.2204251 | CE184: 620.7185091 | CF184: 610.2165931 | CG184: 599.7146771 | CH184: 589.2127611 | CI184: 578.7108451 | CJ184: 568.2089291 | CK184: 557.7070131 | CL184: 547.2050971 | CM184: 536.7031811 | CN184: 526.2012651 | CO184: 515.6993491 | CP184: 505.1974331 | CQ184: 494.6955171 | CR184: 484.193601 | CS184: 473.691685 | CT184: 463.189769 | CU184: 452.687853 | CV184: 3.861089226e-13 | CW184: 3.861089226e-13 | CX184: 3.861089226e-13 | CY184: 3.861089226e-13 | CZ184: 3.861089226e-13 | DA184: 3.861089226e-13 | DB184: 3.861089226e-13 | DC184: 3.861089226e-13 | DD184: 3.861089226e-13 | DE184: 3.861089226e-13 | DF184: 3.861089226e-13 | DG184: 3.861089226e-13 | DH184: 3.861089226e-13 | DI184: 3.861089226e-13 | DJ184: 3.861089226e-13 | DK184: 3.861089226e-13 | DL184: 3.861089226e-13 | DM184: 3.861089226e-13 | DN184: 3.861089226e-13 | DO184: 3.861089226e-13 | DP184: 3.861089226e-13 | DQ184: 3.861089226e-13 | DR184: 3.861089226e-13 | DS184: 3.861089226e-13 | DT184: 3.861089226e-13 | DU184: 3.861089226e-13 | DV184: 3.861089226e-13 | DW184: 3.861089226e-13 | DX184: 3.861089226e-13 | DY184: 3.861089226e-13 | DZ184: 0 | EA184: 0 | EB184: 0 | EC184: 0 | ED184: 0 | EE184: 0 | EF184: 0 | EG184: 0 | EH184: 0 | EI184: =EI146+EI154 -> 0 | EJ184: 0 | EK184: 0 | EL184: 0 | EM184: 0 | EN184: 0 | EO184: 0 | EP184: 0 | EQ184: 0 | ER184: 0 | ES184: 0 | ET184: 0 | EU184: 0 | EV184: 0 | EW184: 0 | EX184: 0 | EY184: 0 | EZ184: 0 | FA184: 0 | FB184: 0 | FC184: 0
C185: Prospective Debt Service | E185: Euro | G185: =F57/H4 -> 1 | J185: =SUM(OFFSET(J184,0,1,1,$G$185)) -> 0 | K185: =SUM(OFFSET(K184,0,1,1,$G$185)) -> 0 | L185: 0 | M185: 0 | N185: 0 | O185: 0 | P185: 0 | Q185: 0 | R185: 0 | S185: 0 | T185: 0 | U185: 0 | V185: 0 | W185: 0 | X185: 0 | Y185: 0 | Z185: 0 | AA185: 0 | AB185: 0 | AC185: 0 | AD185: 0 | AE185: 0 | AF185: 0 | AG185: 0 | AH185: 0 | AI185: 0 | AJ185: 0 | AK185: 0 | AL185: 0 | AM185: 0 | AN185: 0 | AO185: 0 | AP185: 0 | AQ185: 0 | AR185: 0 | AS185: 0 | AT185: 0 | AU185: 0 | AV185: 0 | AW185: 939.6451162 | AX185: 929.6959326 | AY185: 919.746749 | AZ185: 909.7975654 | BA185: 910.0186584 | BB185: 899.8483819 | BC185: 889.6781053 | BD185: 879.5078288 | BE185: 883.2664092 | BF185: 872.7644932 | BG185: 862.2625772 | BH185: 851.7606612 | BI185: 841.2587452 | BJ185: 830.7568292 | BK185: 820.2549132 | BL185: 809.7529972 | BM185: 799.2510812 | BN185: 788.7491652 | BO185: 778.2472492 | BP185: 767.7453332 | BQ185: 757.2434172 | BR185: 746.7415012 | BS185: 736.2395852 | BT185: 725.7376691 | BU185: 715.2357531 | BV185: 704.7338371 | BW185: =SUM(OFFSET(BW184,0,1,1,$G$185)) -> 694.2319211 | BX185: 683.7300051 | BY185: 673.2280891 | BZ185: 662.7261731 | CA185: 652.2242571 | CB185: 641.7223411 | CC185: 631.2204251 | CD185: 620.7185091 | CE185: 610.2165931 | CF185: 599.7146771 | CG185: 589.2127611 | CH185: 578.7108451 | CI185: 568.2089291 | CJ185: 557.7070131 | CK185: 547.2050971 | CL185: 536.7031811 | CM185: 526.2012651 | CN185: 515.6993491 | CO185: 505.1974331 | CP185: 494.6955171 | CQ185: 484.193601 | CR185: 473.691685 | CS185: 463.189769 | CT185: 452.687853 | CU185: 3.861089226e-13 | CV185: 3.861089226e-13 | CW185: 3.861089226e-13 | CX185: 3.861089226e-13 | CY185: 3.861089226e-13 | CZ185: 3.861089226e-13 | DA185: 3.861089226e-13 | DB185: 3.861089226e-13 | DC185: 3.861089226e-13 | DD185: 3.861089226e-13 | DE185: 3.861089226e-13 | DF185: 3.861089226e-13 | DG185: 3.861089226e-13 | DH185: 3.861089226e-13 | DI185: 3.861089226e-13 | DJ185: 3.861089226e-13 | DK185: 3.861089226e-13 | DL185: 3.861089226e-13 | DM185: 3.861089226e-13 | DN185: 3.861089226e-13 | DO185: 3.861089226e-13 | DP185: 3.861089226e-13 | DQ185: 3.861089226e-13 | DR185: 3.861089226e-13 | DS185: 3.861089226e-13 | DT185: 3.861089226e-13 | DU185: 3.861089226e-13 | DV185: 3.861089226e-13 | DW185: 3.861089226e-13 | DX185: 3.861089226e-13 | DY185: 0 | DZ185: 0 | EA185: 0 | EB185: 0 | EC185: 0 | ED185: 0 | EE185: 0 | EF185: 0 | EG185: 0 | EH185: 0 | EI185: =SUM(OFFSET(EI184,0,1,1,$G$185)) -> 0 | EJ185: 0 | EK185: 0 | EL185: 0 | EM185: 0 | EN185: 0 | EO185: 0 | EP185: 0 | EQ185: 0 | ER185: 0 | ES185: 0 | ET185: 0 | EU185: 0 | EV185: 0 | EW185: 0 | EX185: 0 | EY185: 0 | EZ185: 0 | FA185: 0 | FB185: 0 | FC185: 0
C186: Period Prior to COD | E186: Flag | G186: =EDATE(F11,-F15) -> 2023-08-01 | J186: =(J5=$G$186)*1 -> 0 | K186: =(K5=$G$186)*1 -> 0 | L186: 0 | M186: 0 | N186: 0 | O186: 0 | P186: 0 | Q186: 0 | R186: 0 | S186: 0 | T186: 0 | U186: 0 | V186: 0 | W186: 0 | X186: 0 | Y186: 0 | Z186: 0 | AA186: 0 | AB186: 0 | AC186: 0 | AD186: 0 | AE186: 0 | AF186: 0 | AG186: 0 | AH186: 0 | AI186: 0 | AJ186: 0 | AK186: 0 | AL186: 0 | AM186: 0 | AN186: 0 | AO186: 0 | AP186: 0 | AQ186: 0 | AR186: 0 | AS186: 0 | AT186: 0 | AU186: 0 | AV186: 0 | AW186: 1 | AX186: 0 | AY186: 0 | AZ186: 0 | BA186: 0 | BB186: 0 | BC186: 0 | BD186: 0 | BE186: 0 | BF186: 0 | BG186: 0 | BH186: 0 | BI186: 0 | BJ186: 0 | BK186: 0 | BL186: 0 | BM186: 0 | BN186: 0 | BO186: 0 | BP186: 0 | BQ186: 0 | BR186: 0 | BS186: 0 | BT186: 0 | BU186: 0 | BV186: 0 | BW186: =(BW5=$G$186)*1 -> 0 | BX186: 0 | BY186: 0 | BZ186: 0 | CA186: 0 | CB186: 0 | CC186: 0 | CD186: 0 | CE186: 0 | CF186: 0 | CG186: 0 | CH186: 0 | CI186: 0 | CJ186: 0 | CK186: 0 | CL186: 0 | CM186: 0 | CN186: 0 | CO186: 0 | CP186: 0 | CQ186: 0 | CR186: 0 | CS186: 0 | CT186: 0 | CU186: 0 | CV186: 0 | CW186: 0 | CX186: 0 | CY186: 0 | CZ186: 0 | DA186: 0 | DB186: 0 | DC186: 0 | DD186: 0 | DE186: 0 | DF186: 0 | DG186: 0 | DH186: 0 | DI186: 0 | DJ186: 0 | DK186: 0 | DL186: 0 | DM186: 0 | DN186: 0 | DO186: 0 | DP186: 0 | DQ186: 0 | DR186: 0 | DS186: 0 | DT186: 0 | DU186: 0 | DV186: 0 | DW186: 0 | DX186: 0 | DY186: 0 | DZ186: 0 | EA186: 0 | EB186: 0 | EC186: 0 | ED186: 0 | EE186: 0 | EF186: 0 | EG186: 0 | EH186: 0 | EI186: =(EI5=$G$186)*1 -> 0 | EJ186: 0 | EK186: 0 | EL186: 0 | EM186: 0 | EN186: 0 | EO186: 0 | EP186: 0 | EQ186: 0 | ER186: 0 | ES186: 0 | ET186: 0 | EU186: 0 | EV186: 0 | EW186: 0 | EX186: 0 | EY186: 0 | EZ186: 0 | FA186: 0 | FB186: 0 | FC186: 0
C187: Debt Service Reserve Requirement | E187: Euro | J187: =J185*(J186+J7) -> 0 | K187: =K185*(K186+K7) -> 0 | L187: 0 | M187: 0 | N187: 0 | O187: 0 | P187: 0 | Q187: 0 | R187: 0 | S187: 0 | T187: 0 | U187: 0 | V187: 0 | W187: 0 | X187: 0 | Y187: 0 | Z187: 0 | AA187: 0 | AB187: 0 | AC187: 0 | AD187: 0 | AE187: 0 | AF187: 0 | AG187: 0 | AH187: 0 | AI187: 0 | AJ187: 0 | AK187: 0 | AL187: 0 | AM187: 0 | AN187: 0 | AO187: 0 | AP187: 0 | AQ187: 0 | AR187: 0 | AS187: 0 | AT187: 0 | AU187: 0 | AV187: 0 | AW187: 939.6451162 | AX187: 929.6959326 | AY187: 919.746749 | AZ187: 909.7975654 | BA187: 910.0186584 | BB187: 899.8483819 | BC187: 889.6781053 | BD187: 879.5078288 | BE187: 883.2664092 | BF187: 872.7644932 | BG187: 862.2625772 | BH187: 851.7606612 | BI187: 841.2587452 | BJ187: 830.7568292 | BK187: 820.2549132 | BL187: 809.7529972 | BM187: 799.2510812 | BN187: 788.7491652 | BO187: 778.2472492 | BP187: 767.7453332 | BQ187: 757.2434172 | BR187: 746.7415012 | BS187: 736.2395852 | BT187: 725.7376691 | BU187: 715.2357531 | BV187: 704.7338371 | BW187: =BW185*(BW186+BW7) -> 694.2319211 | BX187: 683.7300051 | BY187: 673.2280891 | BZ187: 662.7261731 | CA187: 652.2242571 | CB187: 641.7223411 | CC187: 631.2204251 | CD187: 620.7185091 | CE187: 610.2165931 | CF187: 599.7146771 | CG187: 589.2127611 | CH187: 578.7108451 | CI187: 568.2089291 | CJ187: 557.7070131 | CK187: 547.2050971 | CL187: 536.7031811 | CM187: 526.2012651 | CN187: 515.6993491 | CO187: 505.1974331 | CP187: 494.6955171 | CQ187: 484.193601 | CR187: 473.691685 | CS187: 463.189769 | CT187: 452.687853 | CU187: 3.861089226e-13 | CV187: 3.861089226e-13 | CW187: 3.861089226e-13 | CX187: 3.861089226e-13 | CY187: 3.861089226e-13 | CZ187: 3.861089226e-13 | DA187: 3.861089226e-13 | DB187: 3.861089226e-13 | DC187: 3.861089226e-13 | DD187: 3.861089226e-13 | DE187: 3.861089226e-13 | DF187: 3.861089226e-13 | DG187: 3.861089226e-13 | DH187: 3.861089226e-13 | DI187: 3.861089226e-13 | DJ187: 3.861089226e-13 | DK187: 3.861089226e-13 | DL187: 3.861089226e-13 | DM187: 3.861089226e-13 | DN187: 3.861089226e-13 | DO187: 3.861089226e-13 | DP187: 3.861089226e-13 | DQ187: 3.861089226e-13 | DR187: 3.861089226e-13 | DS187: 3.861089226e-13 | DT187: 3.861089226e-13 | DU187: 3.861089226e-13 | DV187: 3.861089226e-13 | DW187: 3.861089226e-13 | DX187: 3.861089226e-13 | DY187: 0 | DZ187: 0 | EA187: 0 | EB187: 0 | EC187: 0 | ED187: 0 | EE187: 0 | EF187: 0 | EG187: 0 | EH187: 0 | EI187: =EI185*(EI186+EI7) -> 0 | EJ187: 0 | EK187: 0 | EL187: 0 | EM187: 0 | EN187: 0 | EO187: 0 | EP187: 0 | EQ187: 0 | ER187: 0 | ES187: 0 | ET187: 0 | EU187: 0 | EV187: 0 | EW187: 0 | EX187: 0 | EY187: 0 | EZ187: 0 | FA187: 0 | FB187: 0 | FC187: 0
C188: Less: Opening Balance | E188: Euro | J188: =J191 -> 0 | K188: =K191 -> 0 | L188: 0 | M188: 0 | N188: 0 | O188: 0 | P188: 0 | Q188: 0 | R188: 0 | S188: 0 | T188: 0 | U188: 0 | V188: 0 | W188: 0 | X188: 0 | Y188: 0 | Z188: 0 | AA188: 0 | AB188: 0 | AC188: 0 | AD188: 0 | AE188: 0 | AF188: 0 | AG188: 0 | AH188: 0 | AI188: 0 | AJ188: 0 | AK188: 0 | AL188: 0 | AM188: 0 | AN188: 0 | AO188: 0 | AP188: 0 | AQ188: 0 | AR188: 0 | AS188: 0 | AT188: 0 | AU188: 0 | AV188: 0 | AW188: 0 | AX188: 939.6451162 | AY188: 929.6959326 | AZ188: 919.746749 | BA188: 909.7975654 | BB188: 910.0186584 | BC188: 899.8483819 | BD188: 889.6781053 | BE188: 879.5078288 | BF188: 883.2664092 | BG188: 872.7644932 | BH188: 862.2625772 | BI188: 851.7606612 | BJ188: 841.2587452 | BK188: 830.7568292 | BL188: 820.2549132 | BM188: 809.7529972 | BN188: 799.2510812 | BO188: 788.7491652 | BP188: 778.2472492 | BQ188: 767.7453332 | BR188: 757.2434172 | BS188: 746.7415012 | BT188: 736.2395852 | BU188: 725.7376691 | BV188: 715.2357531 | BW188: =BW191 -> 704.7338371 | BX188: 694.2319211 | BY188: 683.7300051 | BZ188: 673.2280891 | CA188: 662.7261731 | CB188: 652.2242571 | CC188: 641.7223411 | CD188: 631.2204251 | CE188: 620.7185091 | CF188: 610.2165931 | CG188: 599.7146771 | CH188: 589.2127611 | CI188: 578.7108451 | CJ188: 568.2089291 | CK188: 557.7070131 | CL188: 547.2050971 | CM188: 536.7031811 | CN188: 526.2012651 | CO188: 515.6993491 | CP188: 505.1974331 | CQ188: 494.6955171 | CR188: 484.193601 | CS188: 473.691685 | CT188: 463.189769 | CU188: 452.687853 | CV188: 0 | CW188: 3.861089226e-13 | CX188: 3.861089226e-13 | CY188: 3.861089226e-13 | CZ188: 3.861089226e-13 | DA188: 3.861089226e-13 | DB188: 3.861089226e-13 | DC188: 3.861089226e-13 | DD188: 3.861089226e-13 | DE188: 3.861089226e-13 | DF188: 3.861089226e-13 | DG188: 3.861089226e-13 | DH188: 3.861089226e-13 | DI188: 3.861089226e-13 | DJ188: 3.861089226e-13 | DK188: 3.861089226e-13 | DL188: 3.861089226e-13 | DM188: 3.861089226e-13 | DN188: 3.861089226e-13 | DO188: 3.861089226e-13 | DP188: 3.861089226e-13 | DQ188: 3.861089226e-13 | DR188: 3.861089226e-13 | DS188: 3.861089226e-13 | DT188: 3.861089226e-13 | DU188: 3.861089226e-13 | DV188: 3.861089226e-13 | DW188: 3.861089226e-13 | DX188: 3.861089226e-13 | DY188: 3.861089226e-13 | DZ188: 0 | EA188: 0 | EB188: 0 | EC188: 0 | ED188: 0 | EE188: 0 | EF188: 0 | EG188: 0 | EH188: 0 | EI188: =EI191 -> 0 | EJ188: 0 | EK188: 0 | EL188: 0 | EM188: 0 | EN188: 0 | EO188: 0 | EP188: 0 | EQ188: 0 | ER188: 0 | ES188: 0 | ET188: 0 | EU188: 0 | EV188: 0 | EW188: 0 | EX188: 0 | EY188: 0 | EZ188: 0 | FA188: 0 | FB188: 0 | FC188: 0
C189: Funding Requirement | E189: Euro | J189: =J187-J188 -> 0 | K189: =K187-K188 -> 0 | L189: 0 | M189: 0 | N189: 0 | O189: 0 | P189: 0 | Q189: 0 | R189: 0 | S189: 0 | T189: 0 | U189: 0 | V189: 0 | W189: 0 | X189: 0 | Y189: 0 | Z189: 0 | AA189: 0 | AB189: 0 | AC189: 0 | AD189: 0 | AE189: 0 | AF189: 0 | AG189: 0 | AH189: 0 | AI189: 0 | AJ189: 0 | AK189: 0 | AL189: 0 | AM189: 0 | AN189: 0 | AO189: 0 | AP189: 0 | AQ189: 0 | AR189: 0 | AS189: 0 | AT189: 0 | AU189: 0 | AV189: 0 | AW189: 939.6451162 | AX189: -9.949183583 | AY189: -9.949183583 | AZ189: -9.949183583 | BA189: 0.2210929685 | BB189: -10.17027655 | BC189: -10.17027655 | BD189: -10.17027655 | BE189: 3.758580465 | BF189: -10.501916 | BG189: -10.501916 | BH189: -10.501916 | BI189: -10.501916 | BJ189: -10.501916 | BK189: -10.501916 | BL189: -10.501916 | BM189: -10.501916 | BN189: -10.501916 | BO189: -10.501916 | BP189: -10.501916 | BQ189: -10.501916 | BR189: -10.501916 | BS189: -10.501916 | BT189: -10.501916 | BU189: -10.501916 | BV189: -10.501916 | BW189: =BW187-BW188 -> -10.501916 | BX189: -10.501916 | BY189: -10.501916 | BZ189: -10.501916 | CA189: -10.501916 | CB189: -10.501916 | CC189: -10.501916 | CD189: -10.501916 | CE189: -10.501916 | CF189: -10.501916 | CG189: -10.501916 | CH189: -10.501916 | CI189: -10.501916 | CJ189: -10.501916 | CK189: -10.501916 | CL189: -10.501916 | CM189: -10.501916 | CN189: -10.501916 | CO189: -10.501916 | CP189: -10.501916 | CQ189: -10.501916 | CR189: -10.501916 | CS189: -10.501916 | CT189: -10.501916 | CU189: -452.687853 | CV189: 3.861089226e-13 | CW189: 0 | CX189: 0 | CY189: 0 | CZ189: 0 | DA189: 0 | DB189: 0 | DC189: 0 | DD189: 0 | DE189: 0 | DF189: 0 | DG189: 0 | DH189: 0 | DI189: 0 | DJ189: 0 | DK189: 0 | DL189: 0 | DM189: 0 | DN189: 0 | DO189: 0 | DP189: 0 | DQ189: 0 | DR189: 0 | DS189: 0 | DT189: 0 | DU189: 0 | DV189: 0 | DW189: 0 | DX189: 0 | DY189: -3.861089226e-13 | DZ189: 0 | EA189: 0 | EB189: 0 | EC189: 0 | ED189: 0 | EE189: 0 | EF189: 0 | EG189: 0 | EH189: 0 | EI189: =EI187-EI188 -> 0 | EJ189: 0 | EK189: 0 | EL189: 0 | EM189: 0 | EN189: 0 | EO189: 0 | EP189: 0 | EQ189: 0 | ER189: 0 | ES189: 0 | ET189: 0 | EU189: 0 | EV189: 0 | EW189: 0 | EX189: 0 | EY189: 0 | EZ189: 0 | FA189: 0 | FB189: 0 | FC189: 0
C191: Opening Balance | E191: Euro | J191: =I194 -> 0 | K191: =J194 -> 0 | L191: 0 | M191: 0 | N191: 0 | O191: 0 | P191: 0 | Q191: 0 | R191: 0 | S191: 0 | T191: 0 | U191: 0 | V191: 0 | W191: 0 | X191: 0 | Y191: 0 | Z191: 0 | AA191: 0 | AB191: 0 | AC191: 0 | AD191: 0 | AE191: 0 | AF191: 0 | AG191: 0 | AH191: 0 | AI191: 0 | AJ191: 0 | AK191: 0 | AL191: 0 | AM191: 0 | AN191: 0 | AO191: 0 | AP191: 0 | AQ191: 0 | AR191: 0 | AS191: 0 | AT191: 0 | AU191: 0 | AV191: 0 | AW191: 0 | AX191: 939.6451162 | AY191: 929.6959326 | AZ191: 919.746749 | BA191: 909.7975654 | BB191: 910.0186584 | BC191: 899.8483819 | BD191: 889.6781053 | BE191: 879.5078288 | BF191: 883.2664092 | BG191: 872.7644932 | BH191: 862.2625772 | BI191: 851.7606612 | BJ191: 841.2587452 | BK191: 830.7568292 | BL191: 820.2549132 | BM191: 809.7529972 | BN191: 799.2510812 | BO191: 788.7491652 | BP191: 778.2472492 | BQ191: 767.7453332 | BR191: 757.2434172 | BS191: 746.7415012 | BT191: 736.2395852 | BU191: 725.7376691 | BV191: 715.2357531 | BW191: =BV194 -> 704.7338371 | BX191: 694.2319211 | BY191: 683.7300051 | BZ191: 673.2280891 | CA191: 662.7261731 | CB191: 652.2242571 | CC191: 641.7223411 | CD191: 631.2204251 | CE191: 620.7185091 | CF191: 610.2165931 | CG191: 599.7146771 | CH191: 589.2127611 | CI191: 578.7108451 | CJ191: 568.2089291 | CK191: 557.7070131 | CL191: 547.2050971 | CM191: 536.7031811 | CN191: 526.2012651 | CO191: 515.6993491 | CP191: 505.1974331 | CQ191: 494.6955171 | CR191: 484.193601 | CS191: 473.691685 | CT191: 463.189769 | CU191: 452.687853 | CV191: 0 | CW191: 3.861089226e-13 | CX191: 3.861089226e-13 | CY191: 3.861089226e-13 | CZ191: 3.861089226e-13 | DA191: 3.861089226e-13 | DB191: 3.861089226e-13 | DC191: 3.861089226e-13 | DD191: 3.861089226e-13 | DE191: 3.861089226e-13 | DF191: 3.861089226e-13 | DG191: 3.861089226e-13 | DH191: 3.861089226e-13 | DI191: 3.861089226e-13 | DJ191: 3.861089226e-13 | DK191: 3.861089226e-13 | DL191: 3.861089226e-13 | DM191: 3.861089226e-13 | DN191: 3.861089226e-13 | DO191: 3.861089226e-13 | DP191: 3.861089226e-13 | DQ191: 3.861089226e-13 | DR191: 3.861089226e-13 | DS191: 3.861089226e-13 | DT191: 3.861089226e-13 | DU191: 3.861089226e-13 | DV191: 3.861089226e-13 | DW191: 3.861089226e-13 | DX191: 3.861089226e-13 | DY191: 3.861089226e-13 | DZ191: 0 | EA191: 0 | EB191: 0 | EC191: 0 | ED191: 0 | EE191: 0 | EF191: 0 | EG191: 0 | EH191: 0 | EI191: =EH194 -> 0 | EJ191: 0 | EK191: 0 | EL191: 0 | EM191: 0 | EN191: 0 | EO191: 0 | EP191: 0 | EQ191: 0 | ER191: 0 | ES191: 0 | ET191: 0 | EU191: 0 | EV191: 0 | EW191: 0 | EX191: 0 | EY191: 0 | EZ191: 0 | FA191: 0 | FB191: 0 | FC191: 0
C192: Add: Funding Pre-COD | E192: Euro | I192: =SUM(J192:FC192) -> 939.6451162 | J192: =J189*J3 -> 0 | K192: =K189*K3 -> 0 | L192: 0 | M192: 0 | N192: 0 | O192: 0 | P192: 0 | Q192: 0 | R192: 0 | S192: 0 | T192: 0 | U192: 0 | V192: 0 | W192: 0 | X192: 0 | Y192: 0 | Z192: 0 | AA192: 0 | AB192: 0 | AC192: 0 | AD192: 0 | AE192: 0 | AF192: 0 | AG192: 0 | AH192: 0 | AI192: 0 | AJ192: 0 | AK192: 0 | AL192: 0 | AM192: 0 | AN192: 0 | AO192: 0 | AP192: 0 | AQ192: 0 | AR192: 0 | AS192: 0 | AT192: 0 | AU192: 0 | AV192: 0 | AW192: 939.6451162 | AX192: 0 | AY192: 0 | AZ192: 0 | BA192: 0 | BB192: 0 | BC192: 0 | BD192: 0 | BE192: 0 | BF192: 0 | BG192: 0 | BH192: 0 | BI192: 0 | BJ192: 0 | BK192: 0 | BL192: 0 | BM192: 0 | BN192: 0 | BO192: 0 | BP192: 0 | BQ192: 0 | BR192: 0 | BS192: 0 | BT192: 0 | BU192: 0 | BV192: 0 | BW192: =BW189*BW3 -> 0 | BX192: 0 | BY192: 0 | BZ192: 0 | CA192: 0 | CB192: 0 | CC192: 0 | CD192: 0 | CE192: 0 | CF192: 0 | CG192: 0 | CH192: 0 | CI192: 0 | CJ192: 0 | CK192: 0 | CL192: 0 | CM192: 0 | CN192: 0 | CO192: 0 | CP192: 0 | CQ192: 0 | CR192: 0 | CS192: 0 | CT192: 0 | CU192: 0 | CV192: 0 | CW192: 0 | CX192: 0 | CY192: 0 | CZ192: 0 | DA192: 0 | DB192: 0 | DC192: 0 | DD192: 0 | DE192: 0 | DF192: 0 | DG192: 0 | DH192: 0 | DI192: 0 | DJ192: 0 | DK192: 0 | DL192: 0 | DM192: 0 | DN192: 0 | DO192: 0 | DP192: 0 | DQ192: 0 | DR192: 0 | DS192: 0 | DT192: 0 | DU192: 0 | DV192: 0 | DW192: 0 | DX192: 0 | DY192: 0 | DZ192: 0 | EA192: 0 | EB192: 0 | EC192: 0 | ED192: 0 | EE192: 0 | EF192: 0 | EG192: 0 | EH192: 0 | EI192: =EI189*EI3 -> 0 | EJ192: 0 | EK192: 0 | EL192: 0 | EM192: 0 | EN192: 0 | EO192: 0 | EP192: 0 | EQ192: 0 | ER192: 0 | ES192: 0 | ET192: 0 | EU192: 0 | EV192: 0 | EW192: 0 | EX192: 0 | EY192: 0 | EZ192: 0 | FA192: 0 | FB192: 0 | FC192: 0
C193: Add: Net Funding Post-COD | E193: Euro | I193: =SUM(J193:FC193) -> -939.6451162 | J193: =J189*J7 -> 0 | K193: =K189*K7 -> 0 | L193: 0 | M193: 0 | N193: 0 | O193: 0 | P193: 0 | Q193: 0 | R193: 0 | S193: 0 | T193: 0 | U193: 0 | V193: 0 | W193: 0 | X193: 0 | Y193: 0 | Z193: 0 | AA193: 0 | AB193: 0 | AC193: 0 | AD193: 0 | AE193: 0 | AF193: 0 | AG193: 0 | AH193: 0 | AI193: 0 | AJ193: 0 | AK193: 0 | AL193: 0 | AM193: 0 | AN193: 0 | AO193: 0 | AP193: 0 | AQ193: 0 | AR193: 0 | AS193: 0 | AT193: 0 | AU193: 0 | AV193: 0 | AW193: 0 | AX193: -9.949183583 | AY193: -9.949183583 | AZ193: -9.949183583 | BA193: 0.2210929685 | BB193: -10.17027655 | BC193: -10.17027655 | BD193: -10.17027655 | BE193: 3.758580465 | BF193: -10.501916 | BG193: -10.501916 | BH193: -10.501916 | BI193: -10.501916 | BJ193: -10.501916 | BK193: -10.501916 | BL193: -10.501916 | BM193: -10.501916 | BN193: -10.501916 | BO193: -10.501916 | BP193: -10.501916 | BQ193: -10.501916 | BR193: -10.501916 | BS193: -10.501916 | BT193: -10.501916 | BU193: -10.501916 | BV193: -10.501916 | BW193: =BW189*BW7 -> -10.501916 | BX193: -10.501916 | BY193: -10.501916 | BZ193: -10.501916 | CA193: -10.501916 | CB193: -10.501916 | CC193: -10.501916 | CD193: -10.501916 | CE193: -10.501916 | CF193: -10.501916 | CG193: -10.501916 | CH193: -10.501916 | CI193: -10.501916 | CJ193: -10.501916 | CK193: -10.501916 | CL193: -10.501916 | CM193: -10.501916 | CN193: -10.501916 | CO193: -10.501916 | CP193: -10.501916 | CQ193: -10.501916 | CR193: -10.501916 | CS193: -10.501916 | CT193: -10.501916 | CU193: -452.687853 | CV193: 3.861089226e-13 | CW193: 0 | CX193: 0 | CY193: 0 | CZ193: 0 | DA193: 0 | DB193: 0 | DC193: 0 | DD193: 0 | DE193: 0 | DF193: 0 | DG193: 0 | DH193: 0 | DI193: 0 | DJ193: 0 | DK193: 0 | DL193: 0 | DM193: 0 | DN193: 0 | DO193: 0 | DP193: 0 | DQ193: 0 | DR193: 0 | DS193: 0 | DT193: 0 | DU193: 0 | DV193: 0 | DW193: 0 | DX193: 0 | DY193: -3.861089226e-13 | DZ193: 0 | EA193: 0 | EB193: 0 | EC193: 0 | ED193: 0 | EE193: 0 | EF193: 0 | EG193: 0 | EH193: 0 | EI193: =EI189*EI7 -> 0 | EJ193: 0 | EK193: 0 | EL193: 0 | EM193: 0 | EN193: 0 | EO193: 0 | EP193: 0 | EQ193: 0 | ER193: 0 | ES193: 0 | ET193: 0 | EU193: 0 | EV193: 0 | EW193: 0 | EX193: 0 | EY193: 0 | EZ193: 0 | FA193: 0 | FB193: 0 | FC193: 0
C194: Closing Balance | E194: Euro | J194: =J191+J192+J193 -> 0 | K194: =K191+K192+K193 -> 0 | L194: 0 | M194: 0 | N194: 0 | O194: 0 | P194: 0 | Q194: 0 | R194: 0 | S194: 0 | T194: 0 | U194: 0 | V194: 0 | W194: 0 | X194: 0 | Y194: 0 | Z194: 0 | AA194: 0 | AB194: 0 | AC194: 0 | AD194: 0 | AE194: 0 | AF194: 0 | AG194: 0 | AH194: 0 | AI194: 0 | AJ194: 0 | AK194: 0 | AL194: 0 | AM194: 0 | AN194: 0 | AO194: 0 | AP194: 0 | AQ194: 0 | AR194: 0 | AS194: 0 | AT194: 0 | AU194: 0 | AV194: 0 | AW194: 939.6451162 | AX194: 929.6959326 | AY194: 919.746749 | AZ194: 909.7975654 | BA194: 910.0186584 | BB194: 899.8483819 | BC194: 889.6781053 | BD194: 879.5078288 | BE194: 883.2664092 | BF194: 872.7644932 | BG194: 862.2625772 | BH194: 851.7606612 | BI194: 841.2587452 | BJ194: 830.7568292 | BK194: 820.2549132 | BL194: 809.7529972 | BM194: 799.2510812 | BN194: 788.7491652 | BO194: 778.2472492 | BP194: 767.7453332 | BQ194: 757.2434172 | BR194: 746.7415012 | BS194: 736.2395852 | BT194: 725.7376691 | BU194: 715.2357531 | BV194: 704.7338371 | BW194: =BW191+BW192+BW193 -> 694.2319211 | BX194: 683.7300051 | BY194: 673.2280891 | BZ194: 662.7261731 | CA194: 652.2242571 | CB194: 641.7223411 | CC194: 631.2204251 | CD194: 620.7185091 | CE194: 610.2165931 | CF194: 599.7146771 | CG194: 589.2127611 | CH194: 578.7108451 | CI194: 568.2089291 | CJ194: 557.7070131 | CK194: 547.2050971 | CL194: 536.7031811 | CM194: 526.2012651 | CN194: 515.6993491 | CO194: 505.1974331 | CP194: 494.6955171 | CQ194: 484.193601 | CR194: 473.691685 | CS194: 463.189769 | CT194: 452.687853 | CU194: 0 | CV194: 3.861089226e-13 | CW194: 3.861089226e-13 | CX194: 3.861089226e-13 | CY194: 3.861089226e-13 | CZ194: 3.861089226e-13 | DA194: 3.861089226e-13 | DB194: 3.861089226e-13 | DC194: 3.861089226e-13 | DD194: 3.861089226e-13 | DE194: 3.861089226e-13 | DF194: 3.861089226e-13 | DG194: 3.861089226e-13 | DH194: 3.861089226e-13 | DI194: 3.861089226e-13 | DJ194: 3.861089226e-13 | DK194: 3.861089226e-13 | DL194: 3.861089226e-13 | DM194: 3.861089226e-13 | DN194: 3.861089226e-13 | DO194: 3.861089226e-13 | DP194: 3.861089226e-13 | DQ194: 3.861089226e-13 | DR194: 3.861089226e-13 | DS194: 3.861089226e-13 | DT194: 3.861089226e-13 | DU194: 3.861089226e-13 | DV194: 3.861089226e-13 | DW194: 3.861089226e-13 | DX194: 3.861089226e-13 | DY194: 0 | DZ194: 0 | EA194: 0 | EB194: 0 | EC194: 0 | ED194: 0 | EE194: 0 | EF194: 0 | EG194: 0 | EH194: 0 | EI194: =EI191+EI192+EI193 -> 0 | EJ194: 0 | EK194: 0 | EL194: 0 | EM194: 0 | EN194: 0 | EO194: 0 | EP194: 0 | EQ194: 0 | ER194: 0 | ES194: 0 | ET194: 0 | EU194: 0 | EV194: 0 | EW194: 0 | EX194: 0 | EY194: 0 | EZ194: 0 | FA194: 0 | FB194: 0 | FC194: 0
